Body Name,Body,Date,Department,Beneficiary,Summary of Purpose (SeRCOP),Amount,Merchant Code,Transaction Number
Sandwell Metropolitan Borough Council,http://www.sandwell.gov.uk/info/200202/performance_and_spending/3233/government_procurement_cards,04-Jan-2023,Law & Governance,SAINSBURYS S/MKTS,Assistant Chief Executive (Excl SIU),32,"GROCERY STORES, SUPERMARKETS",2022-23Q4_PC0001
Sandwell Metropolitan Borough Council,http://www.sandwell.gov.uk/info/200202/performance_and_spending/3233/government_procurement_cards,04-Jan-2023,Childrens Services,SAINSBURYS S/MKTS,Childrens Services,48.75,"GROCERY STORES, SUPERMARKETS",2022-23Q4_PC0002
Sandwell Metropolitan Borough Council,http://www.sandwell.gov.uk/info/200202/performance_and_spending/3233/government_procurement_cards,04-Jan-2023,Housing & Assets Total,EB  DISCOVER ABCD COUR,Corporate Management,35,BUSINESS SERVICES-NOT ELSEWHERE CLASSIFIED,2022-23Q4_PC0003
Sandwell Metropolitan Borough Council,http://www.sandwell.gov.uk/info/200202/performance_and_spending/3233/government_procurement_cards,04-Jan-2023,Housing & Assets Total,SESSILE OAK LLANELLI,Corporate Management,770,"BAR,LOUNGE,DISCO,NIGHTCLUB,TAVERN-ALCOHOLIC DRINKS",2022-23Q4_PC0006
Sandwell Metropolitan Borough Council,http://www.sandwell.gov.uk/info/200202/performance_and_spending/3233/government_procurement_cards,04-Jan-2023,Total ASCHWB,ARGOS LTD,Total Adult Social Care,119.98,DISCOUNT STORES,2022-23Q4_PC0005
Sandwell Metropolitan Borough Council,http://www.sandwell.gov.uk/info/200202/performance_and_spending/3233/government_procurement_cards,04-Jan-2023,Total Housing Revenue Account,CAPITA GAS,Total Housing Revenue Account,31.8,"ORGANIZATIONS, MEMBERSHIP-NOT ELSEWHERE CLASSIFIED",2022-23Q4_PC0004
Sandwell Metropolitan Borough Council,http://www.sandwell.gov.uk/info/200202/performance_and_spending/3233/government_procurement_cards,05-Jan-2023,FINANCE (Inc SIU),Trainline.COM,Assistant Chief Executive (Excl SIU),116.35,PASSENGER RAILWAYS,2022-23Q4_PC0016
Sandwell Metropolitan Borough Council,http://www.sandwell.gov.uk/info/200202/performance_and_spending/3233/government_procurement_cards,05-Jan-2023,Childrens Services,ALDI 9 772,Childrens Services,12.7,"GROCERY STORES, SUPERMARKETS",2022-23Q4_PC0014
Sandwell Metropolitan Borough Council,http://www.sandwell.gov.uk/info/200202/performance_and_spending/3233/government_procurement_cards,05-Jan-2023,Childrens Services,Amazon Prime 1642H7UT4,Childrens Services,8.99,DIRECT MARKETING-CONTINUITY/SUBSCRIPTION MERCHANTS,2022-23Q4_PC0025
Sandwell Metropolitan Borough Council,http://www.sandwell.gov.uk/info/200202/performance_and_spending/3233/government_procurement_cards,05-Jan-2023,Childrens Services,RONTEC DUDLEY PORT,Childrens Services,3.58,SERVICE STATIONS WITH OR WITHOUT ANCILLARY SERVICE,2022-23Q4_PC0010
Sandwell Metropolitan Borough Council,http://www.sandwell.gov.uk/info/200202/performance_and_spending/3233/government_procurement_cards,05-Jan-2023,Childrens Services,WWW.OFFICETEAMCONNECT.,Childrens Services,194.94,STATIONERY/OFFICE SUPPLIES/PRINTING & WRITING PAP.,2022-23Q4_PC0012
Sandwell Metropolitan Borough Council,http://www.sandwell.gov.uk/info/200202/performance_and_spending/3233/government_procurement_cards,05-Jan-2023,Childrens Services,WWW.SCREWFIX.COM,Childrens Services,16.98,"BUILDING MATERIALS, LUMBER STORES",2022-23Q4_PC0017
Sandwell Metropolitan Borough Council,http://www.sandwell.gov.uk/info/200202/performance_and_spending/3233/government_procurement_cards,05-Jan-2023,Individual School Budgets With Inclusion,AQUAID WATERCOOLERS,Individual School Budgets With Inclusion,21.6,MISCELLANEOUS GENERAL MERCHANDISE,2022-23Q4_PC0007
Sandwell Metropolitan Borough Council,http://www.sandwell.gov.uk/info/200202/performance_and_spending/3233/government_procurement_cards,05-Jan-2023,Individual School Budgets With Inclusion,ASDA STORES 4765,Individual School Budgets With Inclusion,3.51,"GROCERY STORES, SUPERMARKETS",2022-23Q4_PC0015
Sandwell Metropolitan Borough Council,http://www.sandwell.gov.uk/info/200202/performance_and_spending/3233/government_procurement_cards,05-Jan-2023,Regeneration & Growth,Amazon.co.uk 164D01WW4,Regeneration And The Economy,16.22,DIRECT MARKETING-OTHER DIRECT MARKETERS/NOT ELSEW.,2022-23Q4_PC0022
Sandwell Metropolitan Borough Council,http://www.sandwell.gov.uk/info/200202/performance_and_spending/3233/government_procurement_cards,05-Jan-2023,Regeneration & Growth,Amazon.co.uk 167UX3UK4,Regeneration And The Economy,16.22,DIRECT MARKETING-OTHER DIRECT MARKETERS/NOT ELSEW.,2022-23Q4_PC0021
Sandwell Metropolitan Borough Council,http://www.sandwell.gov.uk/info/200202/performance_and_spending/3233/government_procurement_cards,05-Jan-2023,Regeneration & Growth,AMZNMktplace,Regeneration And The Economy,19.95,MISCELLANEOUS AND SPECIALTY RETAIL STORES,2022-23Q4_PC0013
Sandwell Metropolitan Borough Council,http://www.sandwell.gov.uk/info/200202/performance_and_spending/3233/government_procurement_cards,05-Jan-2023,Regeneration & Growth,RICS COM GBP CYBS,Regeneration And The Economy,282,"ORGANIZATIONS, MEMBERSHIP-NOT ELSEWHERE CLASSIFIED",2022-23Q4_PC0008
Sandwell Metropolitan Borough Council,http://www.sandwell.gov.uk/info/200202/performance_and_spending/3233/government_procurement_cards,05-Jan-2023,Regeneration & Growth,TIMPSON LTD,Regeneration And The Economy,41,MISCELLANEOUS AND SPECIALTY RETAIL STORES,2022-23Q4_PC0018
Sandwell Metropolitan Borough Council,http://www.sandwell.gov.uk/info/200202/performance_and_spending/3233/government_procurement_cards,05-Jan-2023,Total ASCHWB,Amazon.co.uk 163JN8RD4,Total Adult Social Care,50.51,DIRECT MARKETING-OTHER DIRECT MARKETERS/NOT ELSEW.,2022-23Q4_PC0009
Sandwell Metropolitan Borough Council,http://www.sandwell.gov.uk/info/200202/performance_and_spending/3233/government_procurement_cards,05-Jan-2023,Total Borough Economy,Amazon.co.uk 165Q55R94,Total Adult Social Care,49.16,DIRECT MARKETING-OTHER DIRECT MARKETERS/NOT ELSEW.,2022-23Q4_PC0019
Sandwell Metropolitan Borough Council,http://www.sandwell.gov.uk/info/200202/performance_and_spending/3233/government_procurement_cards,05-Jan-2023,Total Borough Economy,AMZNMktplace,Total Adult Social Care,23.97,MISCELLANEOUS AND SPECIALTY RETAIL STORES,2022-23Q4_PC0023
Sandwell Metropolitan Borough Council,http://www.sandwell.gov.uk/info/200202/performance_and_spending/3233/government_procurement_cards,05-Jan-2023,Total Borough Economy,AMZNMktplace,Total Adult Social Care,12.99,MISCELLANEOUS AND SPECIALTY RETAIL STORES,2022-23Q4_PC0024
Sandwell Metropolitan Borough Council,http://www.sandwell.gov.uk/info/200202/performance_and_spending/3233/government_procurement_cards,05-Jan-2023,Total Borough Economy,WEST BROMWICH VETS4PET,Total Adult Social Care,150,VETERINARY SERVICES,2022-23Q4_PC0020
Sandwell Metropolitan Borough Council,http://www.sandwell.gov.uk/info/200202/performance_and_spending/3233/government_procurement_cards,05-Jan-2023,Total ASCHWB,WORKWEAR EXPRESS,Total Adult Social Care,77.15,MEN'S/WOMEN'S/CHILDREN'S UNIFORMS/COMMERCIAL CLOTH,2022-23Q4_PC0011
Sandwell Metropolitan Borough Council,http://www.sandwell.gov.uk/info/200202/performance_and_spending/3233/government_procurement_cards,06-Jan-2023,Total Business Strategy & Change,AMZNMktplace,Assistant Chief Executive (Excl SIU),32.97,MISCELLANEOUS AND SPECIALTY RETAIL STORES,2022-23Q4_PC0041
Sandwell Metropolitan Borough Council,http://www.sandwell.gov.uk/info/200202/performance_and_spending/3233/government_procurement_cards,06-Jan-2023,FINANCE (Inc SIU),HELLIDON LAKES,Assistant Chief Executive (Excl SIU),179,"LODGING-HOTELS,MOTELS,RESORTS-NOT CLASSIFIED",2022-23Q4_PC0054
Sandwell Metropolitan Borough Council,http://www.sandwell.gov.uk/info/200202/performance_and_spending/3233/government_procurement_cards,06-Jan-2023,Childrens Services,AMZ Wuhaizher,Childrens Services,-8.98,MISCELLANEOUS AND SPECIALTY RETAIL STORES,2022-23Q4_PC0045
Sandwell Metropolitan Borough Council,http://www.sandwell.gov.uk/info/200202/performance_and_spending/3233/government_procurement_cards,06-Jan-2023,Childrens Services,AMZNMktplace,Childrens Services,225.62,MISCELLANEOUS AND SPECIALTY RETAIL STORES,2022-23Q4_PC0028
Sandwell Metropolitan Borough Council,http://www.sandwell.gov.uk/info/200202/performance_and_spending/3233/government_procurement_cards,06-Jan-2023,Childrens Services,AMZNMktplace,Childrens Services,12.95,MISCELLANEOUS AND SPECIALTY RETAIL STORES,2022-23Q4_PC0032
Sandwell Metropolitan Borough Council,http://www.sandwell.gov.uk/info/200202/performance_and_spending/3233/government_procurement_cards,06-Jan-2023,Childrens Services,AMZNMktplace,Childrens Services,19.86,MISCELLANEOUS AND SPECIALTY RETAIL STORES,2022-23Q4_PC0046
Sandwell Metropolitan Borough Council,http://www.sandwell.gov.uk/info/200202/performance_and_spending/3233/government_procurement_cards,06-Jan-2023,Childrens Services,AMZNMktplace,Childrens Services,4.49,MISCELLANEOUS AND SPECIALTY RETAIL STORES,2022-23Q4_PC0047
Sandwell Metropolitan Borough Council,http://www.sandwell.gov.uk/info/200202/performance_and_spending/3233/government_procurement_cards,06-Jan-2023,Childrens Services,AMZNMKTPLACE AMAZON.CO,Childrens Services,9.95,MISCELLANEOUS AND SPECIALTY RETAIL STORES,2022-23Q4_PC0040
Sandwell Metropolitan Borough Council,http://www.sandwell.gov.uk/info/200202/performance_and_spending/3233/government_procurement_cards,06-Jan-2023,Childrens Services,AMZNMKTPLACE AMAZON.CO,Childrens Services,17.88,MISCELLANEOUS AND SPECIALTY RETAIL STORES,2022-23Q4_PC0042
Sandwell Metropolitan Borough Council,http://www.sandwell.gov.uk/info/200202/performance_and_spending/3233/government_procurement_cards,06-Jan-2023,Total Public Health,AMZNMktplace,Public Health,37.02,MISCELLANEOUS AND SPECIALTY RETAIL STORES,2022-23Q4_PC0049
Sandwell Metropolitan Borough Council,http://www.sandwell.gov.uk/info/200202/performance_and_spending/3233/government_procurement_cards,06-Jan-2023,Total Public Health,AMZNMKTPLACE AMAZON.CO,Public Health,51.98,MISCELLANEOUS AND SPECIALTY RETAIL STORES,2022-23Q4_PC0048
Sandwell Metropolitan Borough Council,http://www.sandwell.gov.uk/info/200202/performance_and_spending/3233/government_procurement_cards,06-Jan-2023,Total Public Health,Just Eat,Public Health,93.56,FAST FOOD RESTAURANTS,2022-23Q4_PC0050
Sandwell Metropolitan Borough Council,http://www.sandwell.gov.uk/info/200202/performance_and_spending/3233/government_procurement_cards,06-Jan-2023,Total Public Health,Trainline,Public Health,7,PASSENGER RAILWAYS,2022-23Q4_PC0030
Sandwell Metropolitan Borough Council,http://www.sandwell.gov.uk/info/200202/performance_and_spending/3233/government_procurement_cards,06-Jan-2023,Total Public Health,Trainline.COM,Public Health,7.29,PASSENGER RAILWAYS,2022-23Q4_PC0029
Sandwell Metropolitan Borough Council,http://www.sandwell.gov.uk/info/200202/performance_and_spending/3233/government_procurement_cards,06-Jan-2023,Total Public Health,UBER    TRIP,Public Health,14.58,LIMOUSINES AND TAXICABS,2022-23Q4_PC0031
Sandwell Metropolitan Borough Council,http://www.sandwell.gov.uk/info/200202/performance_and_spending/3233/government_procurement_cards,06-Jan-2023,Total Public Health,WWW.HEYN.CO.UK,Public Health,58.8,BUSINESS SERVICES-NOT ELSEWHERE CLASSIFIED,2022-23Q4_PC0043
Sandwell Metropolitan Borough Council,http://www.sandwell.gov.uk/info/200202/performance_and_spending/3233/government_procurement_cards,06-Jan-2023,Regeneration & Growth,J P LENNARD LTD,Regeneration And The Economy,429.36,SPORTING GOODS STORES,2022-23Q4_PC0026
Sandwell Metropolitan Borough Council,http://www.sandwell.gov.uk/info/200202/performance_and_spending/3233/government_procurement_cards,06-Jan-2023,Regeneration & Growth,STAR ELECTRICAL,Regeneration And The Economy,11.99,ELECTRICAL PARTS AND EQUIPMENT,2022-23Q4_PC0027
Sandwell Metropolitan Borough Council,http://www.sandwell.gov.uk/info/200202/performance_and_spending/3233/government_procurement_cards,06-Jan-2023,Total Borough Economy,Amazon.co.uk 1H89M7FS4,Total Adult Social Care,45.76,DIRECT MARKETING-OTHER DIRECT MARKETERS/NOT ELSEW.,2022-23Q4_PC0055
Sandwell Metropolitan Borough Council,http://www.sandwell.gov.uk/info/200202/performance_and_spending/3233/government_procurement_cards,06-Jan-2023,Total ASCHWB,AMZNMktplace,Total Adult Social Care,29.98,MISCELLANEOUS AND SPECIALTY RETAIL STORES,2022-23Q4_PC0033
Sandwell Metropolitan Borough Council,http://www.sandwell.gov.uk/info/200202/performance_and_spending/3233/government_procurement_cards,06-Jan-2023,Total ASCHWB,AMZNMktplace,Total Adult Social Care,5.6,MISCELLANEOUS AND SPECIALTY RETAIL STORES,2022-23Q4_PC0035
Sandwell Metropolitan Borough Council,http://www.sandwell.gov.uk/info/200202/performance_and_spending/3233/government_procurement_cards,06-Jan-2023,Total ASCHWB,AMZNMktplace,Total Adult Social Care,214.75,MISCELLANEOUS AND SPECIALTY RETAIL STORES,2022-23Q4_PC0037
Sandwell Metropolitan Borough Council,http://www.sandwell.gov.uk/info/200202/performance_and_spending/3233/government_procurement_cards,06-Jan-2023,Total ASCHWB,AMZNMktplace,Total Adult Social Care,287.32,MISCELLANEOUS AND SPECIALTY RETAIL STORES,2022-23Q4_PC0056
Sandwell Metropolitan Borough Council,http://www.sandwell.gov.uk/info/200202/performance_and_spending/3233/government_procurement_cards,06-Jan-2023,Total ASCHWB,AMZNMKTPLACE AMAZON.CO,Total Adult Social Care,32.96,MISCELLANEOUS AND SPECIALTY RETAIL STORES,2022-23Q4_PC0034
Sandwell Metropolitan Borough Council,http://www.sandwell.gov.uk/info/200202/performance_and_spending/3233/government_procurement_cards,06-Jan-2023,Total Borough Economy,AMZNMKTPLACE AMAZON.CO,Total Adult Social Care,16.08,MISCELLANEOUS AND SPECIALTY RETAIL STORES,2022-23Q4_PC0052
Sandwell Metropolitan Borough Council,http://www.sandwell.gov.uk/info/200202/performance_and_spending/3233/government_procurement_cards,06-Jan-2023,Total ASCHWB,AMZNMKTPLACE AMAZON.CO,Total Adult Social Care,639.52,MISCELLANEOUS AND SPECIALTY RETAIL STORES,2022-23Q4_PC0057
Sandwell Metropolitan Borough Council,http://www.sandwell.gov.uk/info/200202/performance_and_spending/3233/government_procurement_cards,06-Jan-2023,Total Borough Economy,ARGOS LTD,Total Adult Social Care,59.99,DISCOUNT STORES,2022-23Q4_PC0044
Sandwell Metropolitan Borough Council,http://www.sandwell.gov.uk/info/200202/performance_and_spending/3233/government_procurement_cards,06-Jan-2023,Total ASCHWB,LOMART LTD,Total Adult Social Care,67.2,"AUTOMOTIVE PARTS, ACCESSORIES STORES",2022-23Q4_PC0036
Sandwell Metropolitan Borough Council,http://www.sandwell.gov.uk/info/200202/performance_and_spending/3233/government_procurement_cards,06-Jan-2023,Total ASCHWB,SQ  JOANNES FLOWERS,Total Adult Social Care,50,MISCELLANEOUS GENERAL MERCHANDISE,2022-23Q4_PC0038
Sandwell Metropolitan Borough Council,http://www.sandwell.gov.uk/info/200202/performance_and_spending/3233/government_procurement_cards,06-Jan-2023,Total Borough Economy,TVLICENSING.CO.UK,Total Adult Social Care,159,"CONSULTING, MANAGEMENT, AND PUBLIC RELATIONS SVCS",2022-23Q4_PC0051
Sandwell Metropolitan Borough Council,http://www.sandwell.gov.uk/info/200202/performance_and_spending/3233/government_procurement_cards,06-Jan-2023,Total Borough Economy,VIKING UK,Total Adult Social Care,205.92,STATIONERY/OFFICE SUPPLIES/PRINTING & WRITING PAP.,2022-23Q4_PC0039
Sandwell Metropolitan Borough Council,http://www.sandwell.gov.uk/info/200202/performance_and_spending/3233/government_procurement_cards,06-Jan-2023,Total Borough Economy,WEST BROMWICH VETS4PET,Total Adult Social Care,344.04,VETERINARY SERVICES,2022-23Q4_PC0053
Sandwell Metropolitan Borough Council,http://www.sandwell.gov.uk/info/200202/performance_and_spending/3233/government_procurement_cards,09-Jan-2023,FINANCE (Inc SIU),Amazon Prime 1H43B6T04,Assistant Chief Executive (Excl SIU),8.99,DIRECT MARKETING-CONTINUITY/SUBSCRIPTION MERCHANTS,2022-23Q4_PC0079
Sandwell Metropolitan Borough Council,http://www.sandwell.gov.uk/info/200202/performance_and_spending/3233/government_procurement_cards,09-Jan-2023,Law & Governance,Amazon.co.uk 1H3RX4AB4,Assistant Chief Executive (Excl SIU),45.82,DIRECT MARKETING-OTHER DIRECT MARKETERS/NOT ELSEW.,2022-23Q4_PC0060
Sandwell Metropolitan Borough Council,http://www.sandwell.gov.uk/info/200202/performance_and_spending/3233/government_procurement_cards,09-Jan-2023,Law & Governance,AMZ KP TECHNOLOGY,Assistant Chief Executive (Excl SIU),-7.99,MISCELLANEOUS AND SPECIALTY RETAIL STORES,2022-23Q4_PC0076
Sandwell Metropolitan Borough Council,http://www.sandwell.gov.uk/info/200202/performance_and_spending/3233/government_procurement_cards,09-Jan-2023,Law & Governance,AMZNMKTPLACE AMAZON.CO,Assistant Chief Executive (Excl SIU),106.99,MISCELLANEOUS AND SPECIALTY RETAIL STORES,2022-23Q4_PC0075
Sandwell Metropolitan Borough Council,http://www.sandwell.gov.uk/info/200202/performance_and_spending/3233/government_procurement_cards,09-Jan-2023,Total Business Strategy & Change,BOOKTEQ,Assistant Chief Executive (Excl SIU),70,COMPUTER SOFTWARE STORES,2022-23Q4_PC0070
Sandwell Metropolitan Borough Council,http://www.sandwell.gov.uk/info/200202/performance_and_spending/3233/government_procurement_cards,09-Jan-2023,Law & Governance,Martys Lifestyle Expre,Assistant Chief Executive (Excl SIU),8.54,"GROCERY STORES, SUPERMARKETS",2022-23Q4_PC0077
Sandwell Metropolitan Borough Council,http://www.sandwell.gov.uk/info/200202/performance_and_spending/3233/government_procurement_cards,09-Jan-2023,FINANCE (Inc SIU),WWW.OFFICETEAMCONNECT.,Assistant Chief Executive (Excl SIU),200.06,STATIONERY/OFFICE SUPPLIES/PRINTING & WRITING PAP.,2022-23Q4_PC0078
Sandwell Metropolitan Borough Council,http://www.sandwell.gov.uk/info/200202/performance_and_spending/3233/government_procurement_cards,09-Jan-2023,Childrens Services,Amazon.co.uk 1H0BU1ZB4,Childrens Services,11.29,DIRECT MARKETING-OTHER DIRECT MARKETERS/NOT ELSEW.,2022-23Q4_PC0087
Sandwell Metropolitan Borough Council,http://www.sandwell.gov.uk/info/200202/performance_and_spending/3233/government_procurement_cards,09-Jan-2023,Childrens Services,AMZNMktplace,Childrens Services,24.99,MISCELLANEOUS AND SPECIALTY RETAIL STORES,2022-23Q4_PC0067
Sandwell Metropolitan Borough Council,http://www.sandwell.gov.uk/info/200202/performance_and_spending/3233/government_procurement_cards,09-Jan-2023,Childrens Services,AMZNMKTPLACE AMAZON.CO,Childrens Services,8.96,MISCELLANEOUS AND SPECIALTY RETAIL STORES,2022-23Q4_PC0090
Sandwell Metropolitan Borough Council,http://www.sandwell.gov.uk/info/200202/performance_and_spending/3233/government_procurement_cards,09-Jan-2023,Childrens Services,ASDA GROCERIES ONLINE,Childrens Services,87.4,"GROCERY STORES, SUPERMARKETS",2022-23Q4_PC0088
Sandwell Metropolitan Borough Council,http://www.sandwell.gov.uk/info/200202/performance_and_spending/3233/government_procurement_cards,09-Jan-2023,Childrens Services,SCOTTISH POWER,Childrens Services,49.46,"FUEL DEALERS-COAL, FUEL OIL, LIQ PETROLEUM, WOOD",2022-23Q4_PC0082
Sandwell Metropolitan Borough Council,http://www.sandwell.gov.uk/info/200202/performance_and_spending/3233/government_procurement_cards,09-Jan-2023,Childrens Services,TESCO STORES 2770,Childrens Services,94.35,"GROCERY STORES, SUPERMARKETS",2022-23Q4_PC0066
Sandwell Metropolitan Borough Council,http://www.sandwell.gov.uk/info/200202/performance_and_spending/3233/government_procurement_cards,09-Jan-2023,Childrens Services,TOTALWORKWE,Childrens Services,426,MEN'S AND BOY'S CLOTHING AND ACCESSORIES STORES,2022-23Q4_PC0065
Sandwell Metropolitan Borough Council,http://www.sandwell.gov.uk/info/200202/performance_and_spending/3233/government_procurement_cards,09-Jan-2023,Childrens Services,WILKO RETAIL LIMITED,Childrens Services,37.2,MISCELLANEOUS GENERAL MERCHANDISE,2022-23Q4_PC0068
Sandwell Metropolitan Borough Council,http://www.sandwell.gov.uk/info/200202/performance_and_spending/3233/government_procurement_cards,09-Jan-2023,Childrens Services,WWW.THEWORKS.CO.UK,Childrens Services,-80,DISCOUNT STORES,2022-23Q4_PC0089
Sandwell Metropolitan Borough Council,http://www.sandwell.gov.uk/info/200202/performance_and_spending/3233/government_procurement_cards,09-Jan-2023,Housing & Assets Total,Amazon.co.uk 1H90H7Z04,Corporate Management,6.29,DIRECT MARKETING-OTHER DIRECT MARKETERS/NOT ELSEW.,2022-23Q4_PC0085
Sandwell Metropolitan Borough Council,http://www.sandwell.gov.uk/info/200202/performance_and_spending/3233/government_procurement_cards,09-Jan-2023,Individual School Budgets With Inclusion,ARGOS LTD,Individual School Budgets With Inclusion,-160,DISCOUNT STORES,2022-23Q4_PC0058
Sandwell Metropolitan Borough Council,http://www.sandwell.gov.uk/info/200202/performance_and_spending/3233/government_procurement_cards,09-Jan-2023,Total Public Health,PREMIER INN,Public Health,87,PREMIER INN,2022-23Q4_PC0061
Sandwell Metropolitan Borough Council,http://www.sandwell.gov.uk/info/200202/performance_and_spending/3233/government_procurement_cards,09-Jan-2023,Total Public Health,PREMIER INN,Public Health,84,PREMIER INN,2022-23Q4_PC0062
Sandwell Metropolitan Borough Council,http://www.sandwell.gov.uk/info/200202/performance_and_spending/3233/government_procurement_cards,09-Jan-2023,Total Public Health,Trainline,Public Health,-7,PASSENGER RAILWAYS,2022-23Q4_PC0064
Sandwell Metropolitan Borough Council,http://www.sandwell.gov.uk/info/200202/performance_and_spending/3233/government_procurement_cards,09-Jan-2023,Total Public Health,Trainline.COM,Public Health,-6.5,PASSENGER RAILWAYS,2022-23Q4_PC0063
Sandwell Metropolitan Borough Council,http://www.sandwell.gov.uk/info/200202/performance_and_spending/3233/government_procurement_cards,09-Jan-2023,Regeneration & Growth,AMZ Amazon.co.uk,Regeneration And The Economy,-16.22,DIRECT MARKETING-OTHER DIRECT MARKETERS/NOT ELSEW.,2022-23Q4_PC0099
Sandwell Metropolitan Borough Council,http://www.sandwell.gov.uk/info/200202/performance_and_spending/3233/government_procurement_cards,09-Jan-2023,Regeneration & Growth,AMZNMktplace,Regeneration And The Economy,309.99,MISCELLANEOUS AND SPECIALTY RETAIL STORES,2022-23Q4_PC0059
Sandwell Metropolitan Borough Council,http://www.sandwell.gov.uk/info/200202/performance_and_spending/3233/government_procurement_cards,09-Jan-2023,Regeneration & Growth,AMZNMktplace,Regeneration And The Economy,8.95,MISCELLANEOUS AND SPECIALTY RETAIL STORES,2022-23Q4_PC0092
Sandwell Metropolitan Borough Council,http://www.sandwell.gov.uk/info/200202/performance_and_spending/3233/government_procurement_cards,09-Jan-2023,Regeneration & Growth,AMZNMktplace,Regeneration And The Economy,15,MISCELLANEOUS AND SPECIALTY RETAIL STORES,2022-23Q4_PC0093
Sandwell Metropolitan Borough Council,http://www.sandwell.gov.uk/info/200202/performance_and_spending/3233/government_procurement_cards,09-Jan-2023,Regeneration & Growth,AMZNMktplace,Regeneration And The Economy,10.69,MISCELLANEOUS AND SPECIALTY RETAIL STORES,2022-23Q4_PC0098
Sandwell Metropolitan Borough Council,http://www.sandwell.gov.uk/info/200202/performance_and_spending/3233/government_procurement_cards,09-Jan-2023,Regeneration & Growth,AMZNMKTPLACE AMAZON.CO,Regeneration And The Economy,-16.45,MISCELLANEOUS AND SPECIALTY RETAIL STORES,2022-23Q4_PC0069
Sandwell Metropolitan Borough Council,http://www.sandwell.gov.uk/info/200202/performance_and_spending/3233/government_procurement_cards,09-Jan-2023,Regeneration & Growth,ARCO LTD,Regeneration And The Economy,81.6,INDUSTRIAL SUPPLIES NOT ELSEWHERE CLASSIFIED,2022-23Q4_PC0083
Sandwell Metropolitan Borough Council,http://www.sandwell.gov.uk/info/200202/performance_and_spending/3233/government_procurement_cards,09-Jan-2023,Regeneration & Growth,SumUp   Bostin Hardwar,Regeneration And The Economy,10.5,MISCELLANEOUS AND SPECIALTY RETAIL STORES,2022-23Q4_PC0091
Sandwell Metropolitan Borough Council,http://www.sandwell.gov.uk/info/200202/performance_and_spending/3233/government_procurement_cards,09-Jan-2023,Total ASCHWB,Amazon.co.uk 1H65S4ZZ4,Total Adult Social Care,87.32,DIRECT MARKETING-OTHER DIRECT MARKETERS/NOT ELSEW.,2022-23Q4_PC0080
Sandwell Metropolitan Borough Council,http://www.sandwell.gov.uk/info/200202/performance_and_spending/3233/government_procurement_cards,09-Jan-2023,Total Borough Economy,AMZ FINCHLEY ENTERPRIS,Total Adult Social Care,-15.99,MISCELLANEOUS AND SPECIALTY RETAIL STORES,2022-23Q4_PC0072
Sandwell Metropolitan Borough Council,http://www.sandwell.gov.uk/info/200202/performance_and_spending/3233/government_procurement_cards,09-Jan-2023,Total Borough Economy,AMZNMktplace,Total Adult Social Care,322.74,MISCELLANEOUS AND SPECIALTY RETAIL STORES,2022-23Q4_PC0101
Sandwell Metropolitan Borough Council,http://www.sandwell.gov.uk/info/200202/performance_and_spending/3233/government_procurement_cards,09-Jan-2023,Total ASCHWB,AMZNMKTPLACE AMAZON.CO,Total Adult Social Care,58.95,MISCELLANEOUS AND SPECIALTY RETAIL STORES,2022-23Q4_PC0084
Sandwell Metropolitan Borough Council,http://www.sandwell.gov.uk/info/200202/performance_and_spending/3233/government_procurement_cards,09-Jan-2023,Total Borough Economy,AMZNMKTPLACE AMAZON.CO,Total Adult Social Care,31.78,MISCELLANEOUS AND SPECIALTY RETAIL STORES,2022-23Q4_PC0100
Sandwell Metropolitan Borough Council,http://www.sandwell.gov.uk/info/200202/performance_and_spending/3233/government_procurement_cards,09-Jan-2023,Total ASCHWB,ARGOS LTD,Total Adult Social Care,104.5,DISCOUNT STORES,2022-23Q4_PC0102
Sandwell Metropolitan Borough Council,http://www.sandwell.gov.uk/info/200202/performance_and_spending/3233/government_procurement_cards,09-Jan-2023,Total Borough Economy,B & Q 1276,Total Adult Social Care,282.52,HOME SUPPLY WAREHOUSE STORES,2022-23Q4_PC0096
Sandwell Metropolitan Borough Council,http://www.sandwell.gov.uk/info/200202/performance_and_spending/3233/government_procurement_cards,09-Jan-2023,Total Borough Economy,B & Q 1276,Total Adult Social Care,8.61,HOME SUPPLY WAREHOUSE STORES,2022-23Q4_PC0097
Sandwell Metropolitan Borough Council,http://www.sandwell.gov.uk/info/200202/performance_and_spending/3233/government_procurement_cards,09-Jan-2023,Total Borough Economy,EB  ARTS CONNECTS MOON,Total Adult Social Care,130,BUSINESS SERVICES-NOT ELSEWHERE CLASSIFIED,2022-23Q4_PC0071
Sandwell Metropolitan Borough Council,http://www.sandwell.gov.uk/info/200202/performance_and_spending/3233/government_procurement_cards,09-Jan-2023,Total Borough Economy,PODBEAN.COM,Total Adult Social Care,33.88,"CONSULTING, MANAGEMENT, AND PUBLIC RELATIONS SVCS",2022-23Q4_PC0074
Sandwell Metropolitan Borough Council,http://www.sandwell.gov.uk/info/200202/performance_and_spending/3233/government_procurement_cards,09-Jan-2023,Total ASCHWB,TVLICENSING.CO.UK,Total Adult Social Care,159,"CONSULTING, MANAGEMENT, AND PUBLIC RELATIONS SVCS",2022-23Q4_PC0081
Sandwell Metropolitan Borough Council,http://www.sandwell.gov.uk/info/200202/performance_and_spending/3233/government_procurement_cards,09-Jan-2023,Total Borough Economy,WEST BROMWICH VETS4PET,Total Adult Social Care,35,VETERINARY SERVICES,2022-23Q4_PC0095
Sandwell Metropolitan Borough Council,http://www.sandwell.gov.uk/info/200202/performance_and_spending/3233/government_procurement_cards,09-Jan-2023,Total ASCHWB,WORKWEAR EXPRESS,Total Adult Social Care,93.77,MEN'S/WOMEN'S/CHILDREN'S UNIFORMS/COMMERCIAL CLOTH,2022-23Q4_PC0073
Sandwell Metropolitan Borough Council,http://www.sandwell.gov.uk/info/200202/performance_and_spending/3233/government_procurement_cards,09-Jan-2023,Total ASCHWB,WWW.OFFICETEAMCONNECT.,Total Adult Social Care,30.77,STATIONERY/OFFICE SUPPLIES/PRINTING & WRITING PAP.,2022-23Q4_PC0086
Sandwell Metropolitan Borough Council,http://www.sandwell.gov.uk/info/200202/performance_and_spending/3233/government_procurement_cards,09-Jan-2023,Total Housing Revenue Account,WWW.SCREWFIX.COM,Total Housing Revenue Account,8.2,"BUILDING MATERIALS, LUMBER STORES",2022-23Q4_PC0094
Sandwell Metropolitan Borough Council,http://www.sandwell.gov.uk/info/200202/performance_and_spending/3233/government_procurement_cards,10-Jan-2023,Law & Governance,LLG ENTERPRISES LTD,Assistant Chief Executive (Excl SIU),246,"SCHOOLS, TRADE AND VOCATIONAL",2022-23Q4_PC0122
Sandwell Metropolitan Borough Council,http://www.sandwell.gov.uk/info/200202/performance_and_spending/3233/government_procurement_cards,10-Jan-2023,FINANCE (Inc SIU),ROYAL MAIL GROUP LTD,Assistant Chief Executive (Excl SIU),5.95,POSTAL SERVICES-GOVERNMENT ONLY,2022-23Q4_PC0112
Sandwell Metropolitan Borough Council,http://www.sandwell.gov.uk/info/200202/performance_and_spending/3233/government_procurement_cards,10-Jan-2023,FINANCE (Inc SIU),ROYAL MAIL GROUP LTD,Assistant Chief Executive (Excl SIU),5.95,POSTAL SERVICES-GOVERNMENT ONLY,2022-23Q4_PC0113
Sandwell Metropolitan Borough Council,http://www.sandwell.gov.uk/info/200202/performance_and_spending/3233/government_procurement_cards,10-Jan-2023,FINANCE (Inc SIU),WWW.SANDWELL.GOV.UK,Assistant Chief Executive (Excl SIU),35,GOVERNMENT SERVICES-NOT ELSEWHERE CLASSIFIED,2022-23Q4_PC0108
Sandwell Metropolitan Borough Council,http://www.sandwell.gov.uk/info/200202/performance_and_spending/3233/government_procurement_cards,10-Jan-2023,Childrens Services,Amazon.co.uk 1H1I80544,Childrens Services,19.98,DIRECT MARKETING-OTHER DIRECT MARKETERS/NOT ELSEW.,2022-23Q4_PC0104
Sandwell Metropolitan Borough Council,http://www.sandwell.gov.uk/info/200202/performance_and_spending/3233/government_procurement_cards,10-Jan-2023,Childrens Services,AMZNMKTPLACE AMAZON.CO,Childrens Services,-18.99,MISCELLANEOUS AND SPECIALTY RETAIL STORES,2022-23Q4_PC0116
Sandwell Metropolitan Borough Council,http://www.sandwell.gov.uk/info/200202/performance_and_spending/3233/government_procurement_cards,10-Jan-2023,Childrens Services,ASDA GROCERIES ONLINE,Childrens Services,-12,"GROCERY STORES, SUPERMARKETS",2022-23Q4_PC0120
Sandwell Metropolitan Borough Council,http://www.sandwell.gov.uk/info/200202/performance_and_spending/3233/government_procurement_cards,10-Jan-2023,Childrens Services,ASDA GROCERIES ONLINE,Childrens Services,50.37,"GROCERY STORES, SUPERMARKETS",2022-23Q4_PC0121
Sandwell Metropolitan Borough Council,http://www.sandwell.gov.uk/info/200202/performance_and_spending/3233/government_procurement_cards,10-Jan-2023,Childrens Services,BEEBYS BUBBLES,Childrens Services,127.5,"CLEANING, GARMENT, AND LAUNDRY SERVICES",2022-23Q4_PC0118
Sandwell Metropolitan Borough Council,http://www.sandwell.gov.uk/info/200202/performance_and_spending/3233/government_procurement_cards,10-Jan-2023,Childrens Services,GOMPELS HEALTHCARE,Childrens Services,123.82,WHOLESALE CLUBS,2022-23Q4_PC0119
Sandwell Metropolitan Borough Council,http://www.sandwell.gov.uk/info/200202/performance_and_spending/3233/government_procurement_cards,10-Jan-2023,Childrens Services,HTTPS://WWW.GDJONES.CO,Childrens Services,423.94,"FUEL DEALERS-COAL, FUEL OIL, LIQ PETROLEUM, WOOD",2022-23Q4_PC0109
Sandwell Metropolitan Borough Council,http://www.sandwell.gov.uk/info/200202/performance_and_spending/3233/government_procurement_cards,10-Jan-2023,Childrens Services,SAFETYSIGNSUP.COUK,Childrens Services,7.44,"COMMERCIAL ART, GRAPHICS, PHOTOGRAPHY",2022-23Q4_PC0103
Sandwell Metropolitan Borough Council,http://www.sandwell.gov.uk/info/200202/performance_and_spending/3233/government_procurement_cards,10-Jan-2023,Childrens Services,TESCO STORES 2770,Childrens Services,30.45,"GROCERY STORES, SUPERMARKETS",2022-23Q4_PC0105
Sandwell Metropolitan Borough Council,http://www.sandwell.gov.uk/info/200202/performance_and_spending/3233/government_procurement_cards,10-Jan-2023,Childrens Services,TESCO STORES 2770,Childrens Services,235.78,"GROCERY STORES, SUPERMARKETS",2022-23Q4_PC0106
Sandwell Metropolitan Borough Council,http://www.sandwell.gov.uk/info/200202/performance_and_spending/3233/government_procurement_cards,10-Jan-2023,Childrens Services,YORKSHIRE PURCHASING O,Childrens Services,192.19,STATIONERY/OFFICE SUPPLIES/PRINTING & WRITING PAP.,2022-23Q4_PC0114
Sandwell Metropolitan Borough Council,http://www.sandwell.gov.uk/info/200202/performance_and_spending/3233/government_procurement_cards,10-Jan-2023,Housing & Assets Total,AMZNMktplace,Corporate Management,7.9,MISCELLANEOUS AND SPECIALTY RETAIL STORES,2022-23Q4_PC0111
Sandwell Metropolitan Borough Council,http://www.sandwell.gov.uk/info/200202/performance_and_spending/3233/government_procurement_cards,10-Jan-2023,Regeneration & Growth,Hotel at Booking.com,Regeneration And The Economy,292.84,"LODGING-HOTELS,MOTELS,RESORTS-NOT CLASSIFIED",2022-23Q4_PC0110
Sandwell Metropolitan Borough Council,http://www.sandwell.gov.uk/info/200202/performance_and_spending/3233/government_procurement_cards,10-Jan-2023,Regeneration & Growth,Trainline.COM,Regeneration And The Economy,7.1,PASSENGER RAILWAYS,2022-23Q4_PC0126
Sandwell Metropolitan Borough Council,http://www.sandwell.gov.uk/info/200202/performance_and_spending/3233/government_procurement_cards,10-Jan-2023,Total ASCHWB,AMZNMktplace,Total Adult Social Care,156.8,MISCELLANEOUS AND SPECIALTY RETAIL STORES,2022-23Q4_PC0107
Sandwell Metropolitan Borough Council,http://www.sandwell.gov.uk/info/200202/performance_and_spending/3233/government_procurement_cards,10-Jan-2023,Total Borough Economy,ANIMED DIRECT,Total Adult Social Care,139.67,VETERINARY SERVICES,2022-23Q4_PC0123
Sandwell Metropolitan Borough Council,http://www.sandwell.gov.uk/info/200202/performance_and_spending/3233/government_procurement_cards,10-Jan-2023,Total Borough Economy,DVSA,Total Adult Social Care,1025,GOVERNMENT SERVICES-NOT ELSEWHERE CLASSIFIED,2022-23Q4_PC0115
Sandwell Metropolitan Borough Council,http://www.sandwell.gov.uk/info/200202/performance_and_spending/3233/government_procurement_cards,10-Jan-2023,Total Borough Economy,HERON FOODS,Total Adult Social Care,5,"GROCERY STORES, SUPERMARKETS",2022-23Q4_PC0117
Sandwell Metropolitan Borough Council,http://www.sandwell.gov.uk/info/200202/performance_and_spending/3233/government_procurement_cards,10-Jan-2023,Total Borough Economy,STABLEFORD STORE,Total Adult Social Care,151.31,"BUILDING MATERIALS, LUMBER STORES",2022-23Q4_PC0124
Sandwell Metropolitan Borough Council,http://www.sandwell.gov.uk/info/200202/performance_and_spending/3233/government_procurement_cards,10-Jan-2023,Total Borough Economy,STABLEFORD STORE,Total Adult Social Care,40.26,"BUILDING MATERIALS, LUMBER STORES",2022-23Q4_PC0125
Sandwell Metropolitan Borough Council,http://www.sandwell.gov.uk/info/200202/performance_and_spending/3233/government_procurement_cards,11-Jan-2023,FINANCE (Inc SIU),REMARKABLE,Assistant Chief Executive (Excl SIU),39,ELECTRONIC SALES,2022-23Q4_PC0145
Sandwell Metropolitan Borough Council,http://www.sandwell.gov.uk/info/200202/performance_and_spending/3233/government_procurement_cards,11-Jan-2023,FINANCE (Inc SIU),ROYAL MAIL GROUP LTD,Assistant Chief Executive (Excl SIU),5.95,POSTAL SERVICES-GOVERNMENT ONLY,2022-23Q4_PC0144
Sandwell Metropolitan Borough Council,http://www.sandwell.gov.uk/info/200202/performance_and_spending/3233/government_procurement_cards,11-Jan-2023,Law & Governance,SumUp   John Somervil,Assistant Chief Executive (Excl SIU),3,MISCELLANEOUS GENERAL MERCHANDISE,2022-23Q4_PC0147
Sandwell Metropolitan Borough Council,http://www.sandwell.gov.uk/info/200202/performance_and_spending/3233/government_procurement_cards,11-Jan-2023,FINANCE (Inc SIU),Trainline.COM,Assistant Chief Executive (Excl SIU),-26.5,PASSENGER RAILWAYS,2022-23Q4_PC0143
Sandwell Metropolitan Borough Council,http://www.sandwell.gov.uk/info/200202/performance_and_spending/3233/government_procurement_cards,11-Jan-2023,Total Business Strategy & Change,WESTMINSTER INSIGHT,Assistant Chief Executive (Excl SIU),745.2,DIGITAL GOODS AUDIOVISUAL MEDIA,2022-23Q4_PC0141
Sandwell Metropolitan Borough Council,http://www.sandwell.gov.uk/info/200202/performance_and_spending/3233/government_procurement_cards,11-Jan-2023,Law & Governance,WWW.OFFICETEAMCONNECT.,Assistant Chief Executive (Excl SIU),190.21,STATIONERY/OFFICE SUPPLIES/PRINTING & WRITING PAP.,2022-23Q4_PC0131
Sandwell Metropolitan Borough Council,http://www.sandwell.gov.uk/info/200202/performance_and_spending/3233/government_procurement_cards,11-Jan-2023,Childrens Services,ALDI 9 772,Childrens Services,4.36,"GROCERY STORES, SUPERMARKETS",2022-23Q4_PC0138
Sandwell Metropolitan Borough Council,http://www.sandwell.gov.uk/info/200202/performance_and_spending/3233/government_procurement_cards,11-Jan-2023,Childrens Services,Amazon.co.uk 1H4OE28E4,Childrens Services,160,DIRECT MARKETING-OTHER DIRECT MARKETERS/NOT ELSEW.,2022-23Q4_PC0130
Sandwell Metropolitan Borough Council,http://www.sandwell.gov.uk/info/200202/performance_and_spending/3233/government_procurement_cards,11-Jan-2023,Childrens Services,CATERING ENGINEERS,Childrens Services,185,"COMMERCIAL EQUIPMENT, NOT ELSEWHERE CLASSIFIED",2022-23Q4_PC0136
Sandwell Metropolitan Borough Council,http://www.sandwell.gov.uk/info/200202/performance_and_spending/3233/government_procurement_cards,11-Jan-2023,Childrens Services,FARMFOODS 621,Childrens Services,69.94,"GROCERY STORES, SUPERMARKETS",2022-23Q4_PC0128
Sandwell Metropolitan Borough Council,http://www.sandwell.gov.uk/info/200202/performance_and_spending/3233/government_procurement_cards,11-Jan-2023,Childrens Services,FIRSTAID4LESS.CO.UK,Childrens Services,108.84,MISCELLANEOUS AND SPECIALTY RETAIL STORES,2022-23Q4_PC0135
Sandwell Metropolitan Borough Council,http://www.sandwell.gov.uk/info/200202/performance_and_spending/3233/government_procurement_cards,11-Jan-2023,Childrens Services,LITERACYTRUST.ORG.UK,Childrens Services,120,"ORGANIZATIONS, CHARITABLE AND SOCIAL SERVICES",2022-23Q4_PC0148
Sandwell Metropolitan Borough Council,http://www.sandwell.gov.uk/info/200202/performance_and_spending/3233/government_procurement_cards,11-Jan-2023,Childrens Services,MEDTREE,Childrens Services,22.68,MISCELLANEOUS AND SPECIALTY RETAIL STORES,2022-23Q4_PC0134
Sandwell Metropolitan Borough Council,http://www.sandwell.gov.uk/info/200202/performance_and_spending/3233/government_procurement_cards,11-Jan-2023,Childrens Services,Monster Mayhem,Childrens Services,144.5,"GAME, TOY, AND HOBBY SHOPS",2022-23Q4_PC0149
Sandwell Metropolitan Borough Council,http://www.sandwell.gov.uk/info/200202/performance_and_spending/3233/government_procurement_cards,11-Jan-2023,Childrens Services,SAINSBURYS S/MKTS,Childrens Services,27.3,"GROCERY STORES, SUPERMARKETS",2022-23Q4_PC0139
Sandwell Metropolitan Borough Council,http://www.sandwell.gov.uk/info/200202/performance_and_spending/3233/government_procurement_cards,11-Jan-2023,Childrens Services,WWW.SCREWFIX.COM,Childrens Services,158.47,"BUILDING MATERIALS, LUMBER STORES",2022-23Q4_PC0129
Sandwell Metropolitan Borough Council,http://www.sandwell.gov.uk/info/200202/performance_and_spending/3233/government_procurement_cards,11-Jan-2023,Childrens Services,WWW.SCREWFIX.COM,Childrens Services,124.98,"BUILDING MATERIALS, LUMBER STORES",2022-23Q4_PC0146
Sandwell Metropolitan Borough Council,http://www.sandwell.gov.uk/info/200202/performance_and_spending/3233/government_procurement_cards,11-Jan-2023,Housing & Assets Total,AMZNMktplace,Corporate Management,194.46,MISCELLANEOUS AND SPECIALTY RETAIL STORES,2022-23Q4_PC0140
Sandwell Metropolitan Borough Council,http://www.sandwell.gov.uk/info/200202/performance_and_spending/3233/government_procurement_cards,11-Jan-2023,Total Public Health,CIM,Public Health,540,SCHOOLS & EDUCATIONAL SVC-NOT ELSEWHERE CLASSIFIED,2022-23Q4_PC0142
Sandwell Metropolitan Borough Council,http://www.sandwell.gov.uk/info/200202/performance_and_spending/3233/government_procurement_cards,11-Jan-2023,Regeneration & Growth,Amazon.co.uk 1H7BC46M4,Regeneration And The Economy,18.63,DIRECT MARKETING-OTHER DIRECT MARKETERS/NOT ELSEW.,2022-23Q4_PC0137
Sandwell Metropolitan Borough Council,http://www.sandwell.gov.uk/info/200202/performance_and_spending/3233/government_procurement_cards,11-Jan-2023,Regeneration & Growth,CL:AIREINITIATIVES,Regeneration And The Economy,105,LANDSCAPING AND HORTICULTURAL SERVICES,2022-23Q4_PC0127
Sandwell Metropolitan Borough Council,http://www.sandwell.gov.uk/info/200202/performance_and_spending/3233/government_procurement_cards,11-Jan-2023,Total Borough Economy,MURRAY FARMCARE LD,Total Adult Social Care,38.42,MISCELLANEOUS AND SPECIALTY RETAIL STORES,2022-23Q4_PC0153
Sandwell Metropolitan Borough Council,http://www.sandwell.gov.uk/info/200202/performance_and_spending/3233/government_procurement_cards,11-Jan-2023,Total Borough Economy,SAINSBURYS S/MKTS,Total Adult Social Care,11.35,"GROCERY STORES, SUPERMARKETS",2022-23Q4_PC0132
Sandwell Metropolitan Borough Council,http://www.sandwell.gov.uk/info/200202/performance_and_spending/3233/government_procurement_cards,11-Jan-2023,Total Borough Economy,STAR SUPERMARKET,Total Adult Social Care,16.7,"MISC FOOD STORE-CONVENIENCE,MRKT,SPLTY,VENDNG MACS",2022-23Q4_PC0150
Sandwell Metropolitan Borough Council,http://www.sandwell.gov.uk/info/200202/performance_and_spending/3233/government_procurement_cards,11-Jan-2023,Total Borough Economy,WWW.LINCRAFTS.COM,Total Adult Social Care,109.96,"GAME, TOY, AND HOBBY SHOPS",2022-23Q4_PC0154
Sandwell Metropolitan Borough Council,http://www.sandwell.gov.uk/info/200202/performance_and_spending/3233/government_procurement_cards,11-Jan-2023,Total Borough Economy,WWW.SANDWELL.GOV.UK,Total Adult Social Care,21,GOVERNMENT SERVICES-NOT ELSEWHERE CLASSIFIED,2022-23Q4_PC0155
Sandwell Metropolitan Borough Council,http://www.sandwell.gov.uk/info/200202/performance_and_spending/3233/government_procurement_cards,11-Jan-2023,Total ASCHWB,ZIP HEATERS (UK) LTD,Total Adult Social Care,198.5,PLUMBING AND HEATING EQUIPMENT,2022-23Q4_PC0133
Sandwell Metropolitan Borough Council,http://www.sandwell.gov.uk/info/200202/performance_and_spending/3233/government_procurement_cards,11-Jan-2023,Total Housing Revenue Account,KANE INTERNATIONAL LTD,Total Housing Revenue Account,1221.12,ELECTRONIC SALES,2022-23Q4_PC0152
Sandwell Metropolitan Borough Council,http://www.sandwell.gov.uk/info/200202/performance_and_spending/3233/government_procurement_cards,11-Jan-2023,Total Housing Revenue Account,WWW.OFFICETEAMCONNECT.,Total Housing Revenue Account,84.17,STATIONERY/OFFICE SUPPLIES/PRINTING & WRITING PAP.,2022-23Q4_PC0151
Sandwell Metropolitan Borough Council,http://www.sandwell.gov.uk/info/200202/performance_and_spending/3233/government_procurement_cards,12-Jan-2023,Law & Governance,B&M 049 - ASTLE PARK,Assistant Chief Executive (Excl SIU),6.99,MISCELLANEOUS GENERAL MERCHANDISE,2022-23Q4_PC0167
Sandwell Metropolitan Borough Council,http://www.sandwell.gov.uk/info/200202/performance_and_spending/3233/government_procurement_cards,12-Jan-2023,Law & Governance,CARTRIDGEPEOPLE.COM,Assistant Chief Executive (Excl SIU),247.7,STATIONERY/OFFICE SUPPLIES/PRINTING & WRITING PAP.,2022-23Q4_PC0166
Sandwell Metropolitan Borough Council,http://www.sandwell.gov.uk/info/200202/performance_and_spending/3233/government_procurement_cards,12-Jan-2023,Law & Governance,CHARTERED INSTITUTE OF,Assistant Chief Executive (Excl SIU),240,"SCHOOLS, BUSINESS AND SECRETARIAL",2022-23Q4_PC0157
Sandwell Metropolitan Borough Council,http://www.sandwell.gov.uk/info/200202/performance_and_spending/3233/government_procurement_cards,12-Jan-2023,Total Business Strategy & Change,POUNDLAND LTD 1729,Assistant Chief Executive (Excl SIU),4,DISCOUNT STORES,2022-23Q4_PC0169
Sandwell Metropolitan Borough Council,http://www.sandwell.gov.uk/info/200202/performance_and_spending/3233/government_procurement_cards,12-Jan-2023,Law & Governance,SAINSBURYS S/MKTS,Assistant Chief Executive (Excl SIU),20.25,"GROCERY STORES, SUPERMARKETS",2022-23Q4_PC0168
Sandwell Metropolitan Borough Council,http://www.sandwell.gov.uk/info/200202/performance_and_spending/3233/government_procurement_cards,12-Jan-2023,Childrens Services,AMZNMktplace,Childrens Services,12.98,MISCELLANEOUS AND SPECIALTY RETAIL STORES,2022-23Q4_PC0163
Sandwell Metropolitan Borough Council,http://www.sandwell.gov.uk/info/200202/performance_and_spending/3233/government_procurement_cards,12-Jan-2023,Childrens Services,AMZNMktplace,Childrens Services,27.98,MISCELLANEOUS AND SPECIALTY RETAIL STORES,2022-23Q4_PC0164
Sandwell Metropolitan Borough Council,http://www.sandwell.gov.uk/info/200202/performance_and_spending/3233/government_procurement_cards,12-Jan-2023,Childrens Services,AMZNMktplace,Childrens Services,19.99,MISCELLANEOUS AND SPECIALTY RETAIL STORES,2022-23Q4_PC0172
Sandwell Metropolitan Borough Council,http://www.sandwell.gov.uk/info/200202/performance_and_spending/3233/government_procurement_cards,12-Jan-2023,Childrens Services,AMZNMktplace,Childrens Services,23.92,MISCELLANEOUS AND SPECIALTY RETAIL STORES,2022-23Q4_PC0187
Sandwell Metropolitan Borough Council,http://www.sandwell.gov.uk/info/200202/performance_and_spending/3233/government_procurement_cards,12-Jan-2023,Childrens Services,CARTRIDGEPEOPLE.COM,Childrens Services,90.9,STATIONERY/OFFICE SUPPLIES/PRINTING & WRITING PAP.,2022-23Q4_PC0185
Sandwell Metropolitan Borough Council,http://www.sandwell.gov.uk/info/200202/performance_and_spending/3233/government_procurement_cards,12-Jan-2023,Childrens Services,SAINSBURYS,Childrens Services,3.7,"GROCERY STORES, SUPERMARKETS",2022-23Q4_PC0160
Sandwell Metropolitan Borough Council,http://www.sandwell.gov.uk/info/200202/performance_and_spending/3233/government_procurement_cards,12-Jan-2023,Childrens Services,SAINSBURYS S/MKTS,Childrens Services,2.4,"GROCERY STORES, SUPERMARKETS",2022-23Q4_PC0165
Sandwell Metropolitan Borough Council,http://www.sandwell.gov.uk/info/200202/performance_and_spending/3233/government_procurement_cards,12-Jan-2023,Childrens Services,TESCO STORES 2770,Childrens Services,202.61,"GROCERY STORES, SUPERMARKETS",2022-23Q4_PC0159
Sandwell Metropolitan Borough Council,http://www.sandwell.gov.uk/info/200202/performance_and_spending/3233/government_procurement_cards,12-Jan-2023,Housing & Assets Total,ARGOS LTD,Corporate Management,-163.95,DISCOUNT STORES,2022-23Q4_PC0175
Sandwell Metropolitan Borough Council,http://www.sandwell.gov.uk/info/200202/performance_and_spending/3233/government_procurement_cards,12-Jan-2023,Housing & Assets Total,ARGOS LTD,Corporate Management,163.95,DISCOUNT STORES,2022-23Q4_PC0176
Sandwell Metropolitan Borough Council,http://www.sandwell.gov.uk/info/200202/performance_and_spending/3233/government_procurement_cards,12-Jan-2023,Housing & Assets Total,ARGOS LTD,Corporate Management,163.95,DISCOUNT STORES,2022-23Q4_PC0177
Sandwell Metropolitan Borough Council,http://www.sandwell.gov.uk/info/200202/performance_and_spending/3233/government_procurement_cards,12-Jan-2023,Housing & Assets Total,ARGOS LTD,Corporate Management,110,DISCOUNT STORES,2022-23Q4_PC0178
Sandwell Metropolitan Borough Council,http://www.sandwell.gov.uk/info/200202/performance_and_spending/3233/government_procurement_cards,12-Jan-2023,Housing & Assets Total,ASDA STORES,Corporate Management,37.18,"GROCERY STORES, SUPERMARKETS",2022-23Q4_PC0174
Sandwell Metropolitan Borough Council,http://www.sandwell.gov.uk/info/200202/performance_and_spending/3233/government_procurement_cards,12-Jan-2023,Housing & Assets Total,SESSILE OAK LLANELLI,Corporate Management,770,"BAR,LOUNGE,DISCO,NIGHTCLUB,TAVERN-ALCOHOLIC DRINKS",2022-23Q4_PC0186
Sandwell Metropolitan Borough Council,http://www.sandwell.gov.uk/info/200202/performance_and_spending/3233/government_procurement_cards,12-Jan-2023,Individual School Budgets With Inclusion,ASDA STORES 4765,Individual School Budgets With Inclusion,15.26,"GROCERY STORES, SUPERMARKETS",2022-23Q4_PC0173
Sandwell Metropolitan Borough Council,http://www.sandwell.gov.uk/info/200202/performance_and_spending/3233/government_procurement_cards,12-Jan-2023,Individual School Budgets With Inclusion,SAINSBURYS S/MKTS,Individual School Budgets With Inclusion,7.6,"GROCERY STORES, SUPERMARKETS",2022-23Q4_PC0171
Sandwell Metropolitan Borough Council,http://www.sandwell.gov.uk/info/200202/performance_and_spending/3233/government_procurement_cards,12-Jan-2023,Total Public Health,MENTIMETER BASIC,Public Health,102.01,COMPUTER SOFTWARE STORES,2022-23Q4_PC0158
Sandwell Metropolitan Borough Council,http://www.sandwell.gov.uk/info/200202/performance_and_spending/3233/government_procurement_cards,12-Jan-2023,Regeneration & Growth,AMZNMktplace,Regeneration And The Economy,22.58,MISCELLANEOUS AND SPECIALTY RETAIL STORES,2022-23Q4_PC0170
Sandwell Metropolitan Borough Council,http://www.sandwell.gov.uk/info/200202/performance_and_spending/3233/government_procurement_cards,12-Jan-2023,Regeneration & Growth,SAINSBURYS S/MKTS,Regeneration And The Economy,15.07,"GROCERY STORES, SUPERMARKETS",2022-23Q4_PC0156
Sandwell Metropolitan Borough Council,http://www.sandwell.gov.uk/info/200202/performance_and_spending/3233/government_procurement_cards,12-Jan-2023,Total ASCHWB,AMZNMKTPLACE AMAZON.CO,Total Adult Social Care,106,MISCELLANEOUS AND SPECIALTY RETAIL STORES,2022-23Q4_PC0162
Sandwell Metropolitan Borough Council,http://www.sandwell.gov.uk/info/200202/performance_and_spending/3233/government_procurement_cards,12-Jan-2023,Total Borough Economy,ICELAND FOODS,Total Adult Social Care,32.6,"GROCERY STORES, SUPERMARKETS",2022-23Q4_PC0179
Sandwell Metropolitan Borough Council,http://www.sandwell.gov.uk/info/200202/performance_and_spending/3233/government_procurement_cards,12-Jan-2023,Total Borough Economy,ICELAND FOODS,Total Adult Social Care,-2.8,"GROCERY STORES, SUPERMARKETS",2022-23Q4_PC0180
Sandwell Metropolitan Borough Council,http://www.sandwell.gov.uk/info/200202/performance_and_spending/3233/government_procurement_cards,12-Jan-2023,Total Borough Economy,SECURITY INDUSTRY AUTH,Total Adult Social Care,190,GOVERNMENT SERVICES-NOT ELSEWHERE CLASSIFIED,2022-23Q4_PC0184
Sandwell Metropolitan Borough Council,http://www.sandwell.gov.uk/info/200202/performance_and_spending/3233/government_procurement_cards,12-Jan-2023,Total ASCHWB,WILKO.COM,Total Adult Social Care,37.5,MISCELLANEOUS GENERAL MERCHANDISE,2022-23Q4_PC0161
Sandwell Metropolitan Borough Council,http://www.sandwell.gov.uk/info/200202/performance_and_spending/3233/government_procurement_cards,12-Jan-2023,Total Housing Revenue Account,NORDAN UK LTD,Total Housing Revenue Account,108,"BUILDING MATERIALS, LUMBER STORES",2022-23Q4_PC0181
Sandwell Metropolitan Borough Council,http://www.sandwell.gov.uk/info/200202/performance_and_spending/3233/government_procurement_cards,12-Jan-2023,Total Housing Revenue Account,TRAVIS PERKINS,Total Housing Revenue Account,24.83,"BUILDING MATERIALS, LUMBER STORES",2022-23Q4_PC0182
Sandwell Metropolitan Borough Council,http://www.sandwell.gov.uk/info/200202/performance_and_spending/3233/government_procurement_cards,12-Jan-2023,Total Housing Revenue Account,TRAVIS PERKINS,Total Housing Revenue Account,15.34,"BUILDING MATERIALS, LUMBER STORES",2022-23Q4_PC0183
Sandwell Metropolitan Borough Council,http://www.sandwell.gov.uk/info/200202/performance_and_spending/3233/government_procurement_cards,13-Jan-2023,Total Business Strategy & Change,Amazon.co.uk 1H92229E4,Assistant Chief Executive (Excl SIU),12.98,DIRECT MARKETING-OTHER DIRECT MARKETERS/NOT ELSEW.,2022-23Q4_PC0193
Sandwell Metropolitan Borough Council,http://www.sandwell.gov.uk/info/200202/performance_and_spending/3233/government_procurement_cards,13-Jan-2023,FINANCE (Inc SIU),AMZNMKTPLACE AMAZON.CO,Assistant Chief Executive (Excl SIU),10.72,MISCELLANEOUS AND SPECIALTY RETAIL STORES,2022-23Q4_PC0200
Sandwell Metropolitan Borough Council,http://www.sandwell.gov.uk/info/200202/performance_and_spending/3233/government_procurement_cards,13-Jan-2023,Total Business Strategy & Change,Trainline.COM,Assistant Chief Executive (Excl SIU),107.84,PASSENGER RAILWAYS,2022-23Q4_PC0221
Sandwell Metropolitan Borough Council,http://www.sandwell.gov.uk/info/200202/performance_and_spending/3233/government_procurement_cards,13-Jan-2023,FINANCE (Inc SIU),WWW.OFFICETEAMCONNECT.,Assistant Chief Executive (Excl SIU),186.92,STATIONERY/OFFICE SUPPLIES/PRINTING & WRITING PAP.,2022-23Q4_PC0202
Sandwell Metropolitan Borough Council,http://www.sandwell.gov.uk/info/200202/performance_and_spending/3233/government_procurement_cards,13-Jan-2023,Childrens Services,Amazon.co.uk 1H24Q2WF4,Childrens Services,59.35,DIRECT MARKETING-OTHER DIRECT MARKETERS/NOT ELSEW.,2022-23Q4_PC0209
Sandwell Metropolitan Borough Council,http://www.sandwell.gov.uk/info/200202/performance_and_spending/3233/government_procurement_cards,13-Jan-2023,Childrens Services,AMZNMktplace,Childrens Services,11.88,MISCELLANEOUS AND SPECIALTY RETAIL STORES,2022-23Q4_PC0205
Sandwell Metropolitan Borough Council,http://www.sandwell.gov.uk/info/200202/performance_and_spending/3233/government_procurement_cards,13-Jan-2023,Childrens Services,AMZNMktplace,Childrens Services,25.97,MISCELLANEOUS AND SPECIALTY RETAIL STORES,2022-23Q4_PC0212
Sandwell Metropolitan Borough Council,http://www.sandwell.gov.uk/info/200202/performance_and_spending/3233/government_procurement_cards,13-Jan-2023,Childrens Services,CATERING ENGINEERS,Childrens Services,170.42,"COMMERCIAL EQUIPMENT, NOT ELSEWHERE CLASSIFIED",2022-23Q4_PC0204
Sandwell Metropolitan Borough Council,http://www.sandwell.gov.uk/info/200202/performance_and_spending/3233/government_procurement_cards,13-Jan-2023,Childrens Services,Dunelm SoftFurnishings,Childrens Services,323.4,"EQUIP, FURNITURE, HOME FURNSHNGS STRS (EXCPT APPL)",2022-23Q4_PC0210
Sandwell Metropolitan Borough Council,http://www.sandwell.gov.uk/info/200202/performance_and_spending/3233/government_procurement_cards,13-Jan-2023,Childrens Services,ROYAL MAIL GROUP LTD,Childrens Services,8.1,POSTAL SERVICES-GOVERNMENT ONLY,2022-23Q4_PC0211
Sandwell Metropolitan Borough Council,http://www.sandwell.gov.uk/info/200202/performance_and_spending/3233/government_procurement_cards,13-Jan-2023,Childrens Services,TESCO STORES 4512,Childrens Services,2.85,"GROCERY STORES, SUPERMARKETS",2022-23Q4_PC0191
Sandwell Metropolitan Borough Council,http://www.sandwell.gov.uk/info/200202/performance_and_spending/3233/government_procurement_cards,13-Jan-2023,Childrens Services,Turkish grill & kebab,Childrens Services,55,FAST FOOD RESTAURANTS,2022-23Q4_PC0192
Sandwell Metropolitan Borough Council,http://www.sandwell.gov.uk/info/200202/performance_and_spending/3233/government_procurement_cards,13-Jan-2023,Law & Governance,WWW.OFFICETEAMCONNECT.,Dead SeRCOP,72.72,STATIONERY/OFFICE SUPPLIES/PRINTING & WRITING PAP.,2022-23Q4_PC0215
Sandwell Metropolitan Borough Council,http://www.sandwell.gov.uk/info/200202/performance_and_spending/3233/government_procurement_cards,13-Jan-2023,Individual School Budgets With Inclusion,AMZNMktplace,Individual School Budgets With Inclusion,45.98,MISCELLANEOUS AND SPECIALTY RETAIL STORES,2022-23Q4_PC0188
Sandwell Metropolitan Borough Council,http://www.sandwell.gov.uk/info/200202/performance_and_spending/3233/government_procurement_cards,13-Jan-2023,Individual School Budgets With Inclusion,GLOBAL PLUS,Individual School Budgets With Inclusion,7,"PACKAGE STORES, BEER, WINE, LIQUOR",2022-23Q4_PC0208
Sandwell Metropolitan Borough Council,http://www.sandwell.gov.uk/info/200202/performance_and_spending/3233/government_procurement_cards,13-Jan-2023,Individual School Budgets With Inclusion,MAKRO SELF SERVICE HAL,Individual School Budgets With Inclusion,16.14,WHOLESALE CLUBS,2022-23Q4_PC0207
Sandwell Metropolitan Borough Council,http://www.sandwell.gov.uk/info/200202/performance_and_spending/3233/government_procurement_cards,13-Jan-2023,Regeneration & Growth,AMZNMktplace,Regeneration And The Economy,42.95,MISCELLANEOUS AND SPECIALTY RETAIL STORES,2022-23Q4_PC0213
Sandwell Metropolitan Borough Council,http://www.sandwell.gov.uk/info/200202/performance_and_spending/3233/government_procurement_cards,13-Jan-2023,FINANCE (Inc SIU),Amazon.co.uk 1H6KD5W44,Total Adult Social Care,48.31,DIRECT MARKETING-OTHER DIRECT MARKETERS/NOT ELSEW.,2022-23Q4_PC0206
Sandwell Metropolitan Borough Council,http://www.sandwell.gov.uk/info/200202/performance_and_spending/3233/government_procurement_cards,13-Jan-2023,Total Borough Economy,Amazon.co.uk 1H7KH99P4,Total Adult Social Care,24.98,DIRECT MARKETING-OTHER DIRECT MARKETERS/NOT ELSEW.,2022-23Q4_PC0216
Sandwell Metropolitan Borough Council,http://www.sandwell.gov.uk/info/200202/performance_and_spending/3233/government_procurement_cards,13-Jan-2023,Total Borough Economy,AMZNMktplace,Total Adult Social Care,46.78,MISCELLANEOUS AND SPECIALTY RETAIL STORES,2022-23Q4_PC0203
Sandwell Metropolitan Borough Council,http://www.sandwell.gov.uk/info/200202/performance_and_spending/3233/government_procurement_cards,13-Jan-2023,Total Borough Economy,AMZNMktplace,Total Adult Social Care,6.98,MISCELLANEOUS AND SPECIALTY RETAIL STORES,2022-23Q4_PC0217
Sandwell Metropolitan Borough Council,http://www.sandwell.gov.uk/info/200202/performance_and_spending/3233/government_procurement_cards,13-Jan-2023,Total Borough Economy,AMZNMktplace,Total Adult Social Care,59.97,MISCELLANEOUS AND SPECIALTY RETAIL STORES,2022-23Q4_PC0219
Sandwell Metropolitan Borough Council,http://www.sandwell.gov.uk/info/200202/performance_and_spending/3233/government_procurement_cards,13-Jan-2023,Total Borough Economy,ASDA GROCERIES ONLINE,Total Adult Social Care,55.45,"GROCERY STORES, SUPERMARKETS",2022-23Q4_PC0190
Sandwell Metropolitan Borough Council,http://www.sandwell.gov.uk/info/200202/performance_and_spending/3233/government_procurement_cards,13-Jan-2023,Total Borough Economy,CANVA  I03663-12692653,Total Adult Social Care,30,PHOTOGRAPHIC STUDIOS,2022-23Q4_PC0196
Sandwell Metropolitan Borough Council,http://www.sandwell.gov.uk/info/200202/performance_and_spending/3233/government_procurement_cards,13-Jan-2023,Total Borough Economy,CANVA  I03663-12709976,Total Adult Social Care,30,PHOTOGRAPHIC STUDIOS,2022-23Q4_PC0197
Sandwell Metropolitan Borough Council,http://www.sandwell.gov.uk/info/200202/performance_and_spending/3233/government_procurement_cards,13-Jan-2023,Total Borough Economy,CANVA  I03663-12874155,Total Adult Social Care,280,PHOTOGRAPHIC STUDIOS,2022-23Q4_PC0198
Sandwell Metropolitan Borough Council,http://www.sandwell.gov.uk/info/200202/performance_and_spending/3233/government_procurement_cards,13-Jan-2023,Total Borough Economy,HSE  ID-7500150,Total Adult Social Care,10.2,BOOK STORES,2022-23Q4_PC0189
Sandwell Metropolitan Borough Council,http://www.sandwell.gov.uk/info/200202/performance_and_spending/3233/government_procurement_cards,13-Jan-2023,Total Borough Economy,notonthehighstreet.com,Total Adult Social Care,20.25,MISCELLANEOUS AND SPECIALTY RETAIL STORES,2022-23Q4_PC0199
Sandwell Metropolitan Borough Council,http://www.sandwell.gov.uk/info/200202/performance_and_spending/3233/government_procurement_cards,13-Jan-2023,Total ASCHWB,SAINSBURYS S/MKTS,Total Adult Social Care,18.5,"GROCERY STORES, SUPERMARKETS",2022-23Q4_PC0195
Sandwell Metropolitan Borough Council,http://www.sandwell.gov.uk/info/200202/performance_and_spending/3233/government_procurement_cards,13-Jan-2023,Total ASCHWB,SP SERVICES UK LTD,Total Adult Social Care,349.24,"HEALTH PRACTITIONERS, MEDICAL SRVCS-NOT ELSEWHERE",2022-23Q4_PC0194
Sandwell Metropolitan Borough Council,http://www.sandwell.gov.uk/info/200202/performance_and_spending/3233/government_procurement_cards,13-Jan-2023,Total Borough Economy,Trainline.COM,Total Adult Social Care,13.51,PASSENGER RAILWAYS,2022-23Q4_PC0201
Sandwell Metropolitan Borough Council,http://www.sandwell.gov.uk/info/200202/performance_and_spending/3233/government_procurement_cards,13-Jan-2023,Total Borough Economy,WWW.BRITISHHARDWOOD.CO,Total Adult Social Care,376.5,AGRICULTURAL COOPERATIVES,2022-23Q4_PC0218
Sandwell Metropolitan Borough Council,http://www.sandwell.gov.uk/info/200202/performance_and_spending/3233/government_procurement_cards,13-Jan-2023,Total Borough Economy,WWW.OFFICETEAMCONNECT.,Total Adult Social Care,25.56,STATIONERY/OFFICE SUPPLIES/PRINTING & WRITING PAP.,2022-23Q4_PC0220
Sandwell Metropolitan Borough Council,http://www.sandwell.gov.uk/info/200202/performance_and_spending/3233/government_procurement_cards,13-Jan-2023,Total Housing Revenue Account,ARCO LTD,Total Housing Revenue Account,101.98,INDUSTRIAL SUPPLIES NOT ELSEWHERE CLASSIFIED,2022-23Q4_PC0214
Sandwell Metropolitan Borough Council,http://www.sandwell.gov.uk/info/200202/performance_and_spending/3233/government_procurement_cards,16-Jan-2023,Law & Governance,Amazon Prime 1A8760CF4,Assistant Chief Executive (Excl SIU),8.99,DIRECT MARKETING-CONTINUITY/SUBSCRIPTION MERCHANTS,2022-23Q4_PC0273
Sandwell Metropolitan Borough Council,http://www.sandwell.gov.uk/info/200202/performance_and_spending/3233/government_procurement_cards,16-Jan-2023,Total Business Strategy & Change,Amazon.co.uk 1A07814F4,Assistant Chief Executive (Excl SIU),40.67,DIRECT MARKETING-OTHER DIRECT MARKETERS/NOT ELSEW.,2022-23Q4_PC0232
Sandwell Metropolitan Borough Council,http://www.sandwell.gov.uk/info/200202/performance_and_spending/3233/government_procurement_cards,16-Jan-2023,Total Business Strategy & Change,AMZNMktplace,Assistant Chief Executive (Excl SIU),18.98,MISCELLANEOUS AND SPECIALTY RETAIL STORES,2022-23Q4_PC0250
Sandwell Metropolitan Borough Council,http://www.sandwell.gov.uk/info/200202/performance_and_spending/3233/government_procurement_cards,16-Jan-2023,Total Business Strategy & Change,AMZNMktplace,Assistant Chief Executive (Excl SIU),15.42,MISCELLANEOUS AND SPECIALTY RETAIL STORES,2022-23Q4_PC0253
Sandwell Metropolitan Borough Council,http://www.sandwell.gov.uk/info/200202/performance_and_spending/3233/government_procurement_cards,16-Jan-2023,Law & Governance,AMZNMKTPLACE AMAZON.CO,Assistant Chief Executive (Excl SIU),70.54,MISCELLANEOUS AND SPECIALTY RETAIL STORES,2022-23Q4_PC0229
Sandwell Metropolitan Borough Council,http://www.sandwell.gov.uk/info/200202/performance_and_spending/3233/government_procurement_cards,16-Jan-2023,Total Business Strategy & Change,MEDISAVE,Assistant Chief Executive (Excl SIU),48.58,DENTAL/LAB/MED/OPHTHALMIC HOSP EQUIP & SUPPLIES,2022-23Q4_PC0251
Sandwell Metropolitan Borough Council,http://www.sandwell.gov.uk/info/200202/performance_and_spending/3233/government_procurement_cards,16-Jan-2023,FINANCE (Inc SIU),REMARKABLE,Assistant Chief Executive (Excl SIU),2.99,ELECTRONIC SALES,2022-23Q4_PC0261
Sandwell Metropolitan Borough Council,http://www.sandwell.gov.uk/info/200202/performance_and_spending/3233/government_procurement_cards,16-Jan-2023,Total Business Strategy & Change,WWW.NUMED.CO.UK,Assistant Chief Executive (Excl SIU),121.2,DENTAL/LAB/MED/OPHTHALMIC HOSP EQUIP & SUPPLIES,2022-23Q4_PC0252
Sandwell Metropolitan Borough Council,http://www.sandwell.gov.uk/info/200202/performance_and_spending/3233/government_procurement_cards,16-Jan-2023,Law & Governance,WWW.OFFICETEAMCONNECT.,Assistant Chief Executive (Excl SIU),174.34,STATIONERY/OFFICE SUPPLIES/PRINTING & WRITING PAP.,2022-23Q4_PC0245
Sandwell Metropolitan Borough Council,http://www.sandwell.gov.uk/info/200202/performance_and_spending/3233/government_procurement_cards,16-Jan-2023,Law & Governance,WWW.OFFICETEAMCONNECT.,Assistant Chief Executive (Excl SIU),316.44,STATIONERY/OFFICE SUPPLIES/PRINTING & WRITING PAP.,2022-23Q4_PC0246
Sandwell Metropolitan Borough Council,http://www.sandwell.gov.uk/info/200202/performance_and_spending/3233/government_procurement_cards,16-Jan-2023,Childrens Services,AMZNMktplace,Childrens Services,203.66,MISCELLANEOUS AND SPECIALTY RETAIL STORES,2022-23Q4_PC0236
Sandwell Metropolitan Borough Council,http://www.sandwell.gov.uk/info/200202/performance_and_spending/3233/government_procurement_cards,16-Jan-2023,Childrens Services,AMZNMktplace,Childrens Services,23.32,MISCELLANEOUS AND SPECIALTY RETAIL STORES,2022-23Q4_PC0275
Sandwell Metropolitan Borough Council,http://www.sandwell.gov.uk/info/200202/performance_and_spending/3233/government_procurement_cards,16-Jan-2023,Childrens Services,BAKER ROSS,Childrens Services,197.6,"ARTIST SUPPLY STORES, CRAFT SHOPS",2022-23Q4_PC0233
Sandwell Metropolitan Borough Council,http://www.sandwell.gov.uk/info/200202/performance_and_spending/3233/government_procurement_cards,16-Jan-2023,Childrens Services,BAKER ROSS,Childrens Services,153.7,"ARTIST SUPPLY STORES, CRAFT SHOPS",2022-23Q4_PC0234
Sandwell Metropolitan Borough Council,http://www.sandwell.gov.uk/info/200202/performance_and_spending/3233/government_procurement_cards,16-Jan-2023,Childrens Services,BEEBYS BUBBLES,Childrens Services,106,"CLEANING, GARMENT, AND LAUNDRY SERVICES",2022-23Q4_PC0268
Sandwell Metropolitan Borough Council,http://www.sandwell.gov.uk/info/200202/performance_and_spending/3233/government_procurement_cards,16-Jan-2023,Childrens Services,FACEBK XDYW9JXV92,Childrens Services,82.99,ADVERTISING SERVICES,2022-23Q4_PC0238
Sandwell Metropolitan Borough Council,http://www.sandwell.gov.uk/info/200202/performance_and_spending/3233/government_procurement_cards,16-Jan-2023,Childrens Services,GEAR4MUSIC,Childrens Services,174.67,"MUSIC STORES-INSTRUMENTS, PIANOS, SHEET MUSIC",2022-23Q4_PC0235
Sandwell Metropolitan Borough Council,http://www.sandwell.gov.uk/info/200202/performance_and_spending/3233/government_procurement_cards,16-Jan-2023,Childrens Services,GEAR4MUSIC,Childrens Services,14.48,"MUSIC STORES-INSTRUMENTS, PIANOS, SHEET MUSIC",2022-23Q4_PC0237
Sandwell Metropolitan Borough Council,http://www.sandwell.gov.uk/info/200202/performance_and_spending/3233/government_procurement_cards,16-Jan-2023,Childrens Services,SPOTIFY,Childrens Services,9.99,DIGITAL GOODS AUDIOVISUAL MEDIA,2022-23Q4_PC0262
Sandwell Metropolitan Borough Council,http://www.sandwell.gov.uk/info/200202/performance_and_spending/3233/government_procurement_cards,16-Jan-2023,Childrens Services,TESCO STORES 6197,Childrens Services,5.4,"GROCERY STORES, SUPERMARKETS",2022-23Q4_PC0264
Sandwell Metropolitan Borough Council,http://www.sandwell.gov.uk/info/200202/performance_and_spending/3233/government_procurement_cards,16-Jan-2023,Childrens Services,Trainline.COM,Childrens Services,50.86,PASSENGER RAILWAYS,2022-23Q4_PC0249
Sandwell Metropolitan Borough Council,http://www.sandwell.gov.uk/info/200202/performance_and_spending/3233/government_procurement_cards,16-Jan-2023,Childrens Services,WWW.OFFICETEAMCONNECT.,Childrens Services,35.98,STATIONERY/OFFICE SUPPLIES/PRINTING & WRITING PAP.,2022-23Q4_PC0241
Sandwell Metropolitan Borough Council,http://www.sandwell.gov.uk/info/200202/performance_and_spending/3233/government_procurement_cards,16-Jan-2023,Housing & Assets Total,AMZNMKTPLACE AMAZON.CO,Corporate Management,37.99,MISCELLANEOUS AND SPECIALTY RETAIL STORES,2022-23Q4_PC0263
Sandwell Metropolitan Borough Council,http://www.sandwell.gov.uk/info/200202/performance_and_spending/3233/government_procurement_cards,16-Jan-2023,Housing & Assets Total,ASDA STORES,Corporate Management,39.45,"GROCERY STORES, SUPERMARKETS",2022-23Q4_PC0259
Sandwell Metropolitan Borough Council,http://www.sandwell.gov.uk/info/200202/performance_and_spending/3233/government_procurement_cards,16-Jan-2023,Corporate Management,trainline,Corporate Management,30.13,PASSENGER RAILWAYS,2022-23Q4_PC0258
Sandwell Metropolitan Borough Council,http://www.sandwell.gov.uk/info/200202/performance_and_spending/3233/government_procurement_cards,16-Jan-2023,Corporate Management,Trainline.COM,Corporate Management,397.05,PASSENGER RAILWAYS,2022-23Q4_PC0256
Sandwell Metropolitan Borough Council,http://www.sandwell.gov.uk/info/200202/performance_and_spending/3233/government_procurement_cards,16-Jan-2023,Corporate Management,Trainline.COM,Corporate Management,101.23,PASSENGER RAILWAYS,2022-23Q4_PC0257
Sandwell Metropolitan Borough Council,http://www.sandwell.gov.uk/info/200202/performance_and_spending/3233/government_procurement_cards,16-Jan-2023,Individual School Budgets With Inclusion,APPLE.COM/BILL,Individual School Budgets With Inclusion,35.99,DIGITAL GOODS MULTI CATEGORY,2022-23Q4_PC0242
Sandwell Metropolitan Borough Council,http://www.sandwell.gov.uk/info/200202/performance_and_spending/3233/government_procurement_cards,16-Jan-2023,Individual School Budgets With Inclusion,BUDGENS,Individual School Budgets With Inclusion,6,"GROCERY STORES, SUPERMARKETS",2022-23Q4_PC0255
Sandwell Metropolitan Borough Council,http://www.sandwell.gov.uk/info/200202/performance_and_spending/3233/government_procurement_cards,16-Jan-2023,Total Public Health,AMZNMktplace,Public Health,63.97,MISCELLANEOUS AND SPECIALTY RETAIL STORES,2022-23Q4_PC0230
Sandwell Metropolitan Borough Council,http://www.sandwell.gov.uk/info/200202/performance_and_spending/3233/government_procurement_cards,16-Jan-2023,Total Public Health,SAINSBURYS S/MKTS,Public Health,2.3,"GROCERY STORES, SUPERMARKETS",2022-23Q4_PC0265
Sandwell Metropolitan Borough Council,http://www.sandwell.gov.uk/info/200202/performance_and_spending/3233/government_procurement_cards,16-Jan-2023,Regeneration & Growth,AMZNMktplace,Regeneration And The Economy,21.55,MISCELLANEOUS AND SPECIALTY RETAIL STORES,2022-23Q4_PC0266
Sandwell Metropolitan Borough Council,http://www.sandwell.gov.uk/info/200202/performance_and_spending/3233/government_procurement_cards,16-Jan-2023,Regeneration & Growth,AMZNMktplace,Regeneration And The Economy,19.98,MISCELLANEOUS AND SPECIALTY RETAIL STORES,2022-23Q4_PC0267
Sandwell Metropolitan Borough Council,http://www.sandwell.gov.uk/info/200202/performance_and_spending/3233/government_procurement_cards,16-Jan-2023,Total Borough Economy,ADOBE ACROPRO SUBS,Total Adult Social Care,19.97,COMPUTER SOFTWARE STORES,2022-23Q4_PC0244
Sandwell Metropolitan Borough Council,http://www.sandwell.gov.uk/info/200202/performance_and_spending/3233/government_procurement_cards,16-Jan-2023,Total ASCHWB,Amazon Prime 1A3YY0CZ4,Total Adult Social Care,8.99,DIRECT MARKETING-CONTINUITY/SUBSCRIPTION MERCHANTS,2022-23Q4_PC0240
Sandwell Metropolitan Borough Council,http://www.sandwell.gov.uk/info/200202/performance_and_spending/3233/government_procurement_cards,16-Jan-2023,Total Borough Economy,Amazon.co.uk 1A0YV1LR4,Total Adult Social Care,20.47,DIRECT MARKETING-OTHER DIRECT MARKETERS/NOT ELSEW.,2022-23Q4_PC0248
Sandwell Metropolitan Borough Council,http://www.sandwell.gov.uk/info/200202/performance_and_spending/3233/government_procurement_cards,16-Jan-2023,Total Borough Economy,AMZNMktplace,Total Adult Social Care,111.92,MISCELLANEOUS AND SPECIALTY RETAIL STORES,2022-23Q4_PC0271
Sandwell Metropolitan Borough Council,http://www.sandwell.gov.uk/info/200202/performance_and_spending/3233/government_procurement_cards,16-Jan-2023,Total ASCHWB,AMZNMktplace,Total Adult Social Care,41.83,MISCELLANEOUS AND SPECIALTY RETAIL STORES,2022-23Q4_PC0274
Sandwell Metropolitan Borough Council,http://www.sandwell.gov.uk/info/200202/performance_and_spending/3233/government_procurement_cards,16-Jan-2023,Total ASCHWB,AMZNMKTPLACE AMAZON.CO,Total Adult Social Care,10.09,MISCELLANEOUS AND SPECIALTY RETAIL STORES,2022-23Q4_PC0239
Sandwell Metropolitan Borough Council,http://www.sandwell.gov.uk/info/200202/performance_and_spending/3233/government_procurement_cards,16-Jan-2023,Total Borough Economy,CURRYS ONLINE,Total Adult Social Care,149,ELECTRONIC SALES,2022-23Q4_PC0269
Sandwell Metropolitan Borough Council,http://www.sandwell.gov.uk/info/200202/performance_and_spending/3233/government_procurement_cards,16-Jan-2023,Total Borough Economy,Landlife Wildflowers,Total Adult Social Care,417.99,LAWN AND GARDEN SUPPLY STORES,2022-23Q4_PC0270
Sandwell Metropolitan Borough Council,http://www.sandwell.gov.uk/info/200202/performance_and_spending/3233/government_procurement_cards,16-Jan-2023,Total Borough Economy,S & B WASTE,Total Adult Social Care,218.4,"UTLTS-ELCTRC, GAS, HEATING OIL, SANITARY, WATER",2022-23Q4_PC0243
Sandwell Metropolitan Borough Council,http://www.sandwell.gov.uk/info/200202/performance_and_spending/3233/government_procurement_cards,16-Jan-2023,Total Borough Economy,trainline,Total Adult Social Care,38.34,PASSENGER RAILWAYS,2022-23Q4_PC0260
Sandwell Metropolitan Borough Council,http://www.sandwell.gov.uk/info/200202/performance_and_spending/3233/government_procurement_cards,16-Jan-2023,Total Borough Economy,TVLICENSING.CO.UK,Total Adult Social Care,159,"CONSULTING, MANAGEMENT, AND PUBLIC RELATIONS SVCS",2022-23Q4_PC0231
Sandwell Metropolitan Borough Council,http://www.sandwell.gov.uk/info/200202/performance_and_spending/3233/government_procurement_cards,16-Jan-2023,Total Borough Economy,VIKING UK,Total Adult Social Care,65.71,STATIONERY/OFFICE SUPPLIES/PRINTING & WRITING PAP.,2022-23Q4_PC0224
Sandwell Metropolitan Borough Council,http://www.sandwell.gov.uk/info/200202/performance_and_spending/3233/government_procurement_cards,16-Jan-2023,Total Borough Economy,VIKING UK,Total Adult Social Care,63.88,STATIONERY/OFFICE SUPPLIES/PRINTING & WRITING PAP.,2022-23Q4_PC0228
Sandwell Metropolitan Borough Council,http://www.sandwell.gov.uk/info/200202/performance_and_spending/3233/government_procurement_cards,16-Jan-2023,Total Borough Economy,Wm Morrisons Store Pic,Total Adult Social Care,96.05,"GROCERY STORES, SUPERMARKETS",2022-23Q4_PC0223
Sandwell Metropolitan Borough Council,http://www.sandwell.gov.uk/info/200202/performance_and_spending/3233/government_procurement_cards,16-Jan-2023,Total Borough Economy,WWW.BRITISHGAS.CO.,Total Adult Social Care,181.05,"UTLTS-ELCTRC, GAS, HEATING OIL, SANITARY, WATER",2022-23Q4_PC0272
Sandwell Metropolitan Borough Council,http://www.sandwell.gov.uk/info/200202/performance_and_spending/3233/government_procurement_cards,16-Jan-2023,Total Borough Economy,WWW.OFFICETEAMCONNECT.,Total Adult Social Care,355.45,STATIONERY/OFFICE SUPPLIES/PRINTING & WRITING PAP.,2022-23Q4_PC0222
Sandwell Metropolitan Borough Council,http://www.sandwell.gov.uk/info/200202/performance_and_spending/3233/government_procurement_cards,16-Jan-2023,Total Borough Economy,Zettle_ Funtime Theatr,Total Adult Social Care,250,RECREATION SERVICES (NOT ELSEWHERE CLASSIFIED),2022-23Q4_PC0225
Sandwell Metropolitan Borough Council,http://www.sandwell.gov.uk/info/200202/performance_and_spending/3233/government_procurement_cards,16-Jan-2023,Total Borough Economy,Zettle_ Funtime Theatr,Total Adult Social Care,250,RECREATION SERVICES (NOT ELSEWHERE CLASSIFIED),2022-23Q4_PC0226
Sandwell Metropolitan Borough Council,http://www.sandwell.gov.uk/info/200202/performance_and_spending/3233/government_procurement_cards,16-Jan-2023,Total Borough Economy,Zettle_ Funtime Theatr,Total Adult Social Care,250,RECREATION SERVICES (NOT ELSEWHERE CLASSIFIED),2022-23Q4_PC0227
Sandwell Metropolitan Borough Council,http://www.sandwell.gov.uk/info/200202/performance_and_spending/3233/government_procurement_cards,16-Jan-2023,Total Housing Revenue Account,AMZNMktplace,Total Housing Revenue Account,23.99,MISCELLANEOUS AND SPECIALTY RETAIL STORES,2022-23Q4_PC0254
Sandwell Metropolitan Borough Council,http://www.sandwell.gov.uk/info/200202/performance_and_spending/3233/government_procurement_cards,16-Jan-2023,Total Housing Revenue Account,AMZNMKTPLACE AMAZON.CO,Total Housing Revenue Account,20.99,MISCELLANEOUS AND SPECIALTY RETAIL STORES,2022-23Q4_PC0247
Sandwell Metropolitan Borough Council,http://www.sandwell.gov.uk/info/200202/performance_and_spending/3233/government_procurement_cards,17-Jan-2023,Law & Governance,AMZNMKTPLACE AMAZON.CO,Assistant Chief Executive (Excl SIU),29.99,MISCELLANEOUS AND SPECIALTY RETAIL STORES,2022-23Q4_PC0281
Sandwell Metropolitan Borough Council,http://www.sandwell.gov.uk/info/200202/performance_and_spending/3233/government_procurement_cards,17-Jan-2023,Childrens Services,AMZNMktplace,Childrens Services,144,MISCELLANEOUS AND SPECIALTY RETAIL STORES,2022-23Q4_PC0282
Sandwell Metropolitan Borough Council,http://www.sandwell.gov.uk/info/200202/performance_and_spending/3233/government_procurement_cards,17-Jan-2023,Childrens Services,ASDA GROCERIES ONLINE,Childrens Services,-0.5,"GROCERY STORES, SUPERMARKETS",2022-23Q4_PC0295
Sandwell Metropolitan Borough Council,http://www.sandwell.gov.uk/info/200202/performance_and_spending/3233/government_procurement_cards,17-Jan-2023,Childrens Services,ASDA GROCERIES ONLINE,Childrens Services,118.13,"GROCERY STORES, SUPERMARKETS",2022-23Q4_PC0296
Sandwell Metropolitan Borough Council,http://www.sandwell.gov.uk/info/200202/performance_and_spending/3233/government_procurement_cards,17-Jan-2023,Childrens Services,WORKGLOVES.CO.UK,Childrens Services,81.38,DENTAL/LAB/MED/OPHTHALMIC HOSP EQUIP & SUPPLIES,2022-23Q4_PC0294
Sandwell Metropolitan Borough Council,http://www.sandwell.gov.uk/info/200202/performance_and_spending/3233/government_procurement_cards,17-Jan-2023,Childrens Services,WORKPLACEDEPOT.CO.UK,Childrens Services,98.22,INDUSTRIAL SUPPLIES NOT ELSEWHERE CLASSIFIED,2022-23Q4_PC0279
Sandwell Metropolitan Borough Council,http://www.sandwell.gov.uk/info/200202/performance_and_spending/3233/government_procurement_cards,17-Jan-2023,Childrens Services,www.ladderstore.com,Childrens Services,2.88,HARDWARE EQUIPMENT AND SUPPLIES,2022-23Q4_PC0280
Sandwell Metropolitan Borough Council,http://www.sandwell.gov.uk/info/200202/performance_and_spending/3233/government_procurement_cards,17-Jan-2023,Childrens Services,WWW.THEWORKS.CO.UK,Childrens Services,26.5,DISCOUNT STORES,2022-23Q4_PC0297
Sandwell Metropolitan Borough Council,http://www.sandwell.gov.uk/info/200202/performance_and_spending/3233/government_procurement_cards,17-Jan-2023,Housing & Assets Total,AMZNMktplace,Corporate Management,7.99,MISCELLANEOUS AND SPECIALTY RETAIL STORES,2022-23Q4_PC0292
Sandwell Metropolitan Borough Council,http://www.sandwell.gov.uk/info/200202/performance_and_spending/3233/government_procurement_cards,17-Jan-2023,Housing & Assets Total,AMZNMktplace,Corporate Management,-7.9,MISCELLANEOUS AND SPECIALTY RETAIL STORES,2022-23Q4_PC0293
Sandwell Metropolitan Borough Council,http://www.sandwell.gov.uk/info/200202/performance_and_spending/3233/government_procurement_cards,17-Jan-2023,Individual School Budgets With Inclusion,AMZNMktplace,Individual School Budgets With Inclusion,9.24,MISCELLANEOUS AND SPECIALTY RETAIL STORES,2022-23Q4_PC0276
Sandwell Metropolitan Borough Council,http://www.sandwell.gov.uk/info/200202/performance_and_spending/3233/government_procurement_cards,17-Jan-2023,Individual School Budgets With Inclusion,ASDA GROCERIES ONLINE,Individual School Budgets With Inclusion,57.87,"GROCERY STORES, SUPERMARKETS",2022-23Q4_PC0291
Sandwell Metropolitan Borough Council,http://www.sandwell.gov.uk/info/200202/performance_and_spending/3233/government_procurement_cards,17-Jan-2023,Total Borough Economy,Amazon.co.uk 1A12B2JL4,Total Adult Social Care,14,DIRECT MARKETING-OTHER DIRECT MARKETERS/NOT ELSEW.,2022-23Q4_PC0287
Sandwell Metropolitan Borough Council,http://www.sandwell.gov.uk/info/200202/performance_and_spending/3233/government_procurement_cards,17-Jan-2023,Total Borough Economy,Amazon.co.uk 1A4VI7JH4,Total Adult Social Care,14,DIRECT MARKETING-OTHER DIRECT MARKETERS/NOT ELSEW.,2022-23Q4_PC0285
Sandwell Metropolitan Borough Council,http://www.sandwell.gov.uk/info/200202/performance_and_spending/3233/government_procurement_cards,17-Jan-2023,Total Borough Economy,Amazon.co.uk 1A5EK3JF4,Total Adult Social Care,14,DIRECT MARKETING-OTHER DIRECT MARKETERS/NOT ELSEW.,2022-23Q4_PC0284
Sandwell Metropolitan Borough Council,http://www.sandwell.gov.uk/info/200202/performance_and_spending/3233/government_procurement_cards,17-Jan-2023,Total Borough Economy,Amazon.co.uk 1A6843J14,Total Adult Social Care,14,DIRECT MARKETING-OTHER DIRECT MARKETERS/NOT ELSEW.,2022-23Q4_PC0286
Sandwell Metropolitan Borough Council,http://www.sandwell.gov.uk/info/200202/performance_and_spending/3233/government_procurement_cards,17-Jan-2023,Total Borough Economy,Amazon.co.uk 1A7GW9TU4,Total Adult Social Care,14,DIRECT MARKETING-OTHER DIRECT MARKETERS/NOT ELSEW.,2022-23Q4_PC0283
Sandwell Metropolitan Borough Council,http://www.sandwell.gov.uk/info/200202/performance_and_spending/3233/government_procurement_cards,17-Jan-2023,Total Borough Economy,Amazon.co.uk 1A8ST0J24,Total Adult Social Care,14,DIRECT MARKETING-OTHER DIRECT MARKETERS/NOT ELSEW.,2022-23Q4_PC0288
Sandwell Metropolitan Borough Council,http://www.sandwell.gov.uk/info/200202/performance_and_spending/3233/government_procurement_cards,17-Jan-2023,Total ASCHWB,AMZNMktplace,Total Adult Social Care,43.98,MISCELLANEOUS AND SPECIALTY RETAIL STORES,2022-23Q4_PC0289
Sandwell Metropolitan Borough Council,http://www.sandwell.gov.uk/info/200202/performance_and_spending/3233/government_procurement_cards,17-Jan-2023,Total Borough Economy,AMZNMktplace,Total Adult Social Care,21.57,MISCELLANEOUS AND SPECIALTY RETAIL STORES,2022-23Q4_PC0300
Sandwell Metropolitan Borough Council,http://www.sandwell.gov.uk/info/200202/performance_and_spending/3233/government_procurement_cards,17-Jan-2023,Total Borough Economy,AMZNMKTPLACE AMAZON.CO,Total Adult Social Care,46.75,MISCELLANEOUS AND SPECIALTY RETAIL STORES,2022-23Q4_PC0299
Sandwell Metropolitan Borough Council,http://www.sandwell.gov.uk/info/200202/performance_and_spending/3233/government_procurement_cards,17-Jan-2023,Total Borough Economy,EB  LIBRARIES CONNECTE,Total Adult Social Care,120,BUSINESS SERVICES-NOT ELSEWHERE CLASSIFIED,2022-23Q4_PC0278
Sandwell Metropolitan Borough Council,http://www.sandwell.gov.uk/info/200202/performance_and_spending/3233/government_procurement_cards,17-Jan-2023,Total Borough Economy,HOME BARGAINS,Total Adult Social Care,79.34,HARDWARE STORES,2022-23Q4_PC0302
Sandwell Metropolitan Borough Council,http://www.sandwell.gov.uk/info/200202/performance_and_spending/3233/government_procurement_cards,17-Jan-2023,Total Borough Economy,NEWAUTO LIMITED,Total Adult Social Care,177.6,PROFESSIONAL SERVICES-NOT ELSEWHERE CLASSIFIED,2022-23Q4_PC0277
Sandwell Metropolitan Borough Council,http://www.sandwell.gov.uk/info/200202/performance_and_spending/3233/government_procurement_cards,17-Jan-2023,Total ASCHWB,VIKING UK,Total Adult Social Care,59.88,STATIONERY/OFFICE SUPPLIES/PRINTING & WRITING PAP.,2022-23Q4_PC0290
Sandwell Metropolitan Borough Council,http://www.sandwell.gov.uk/info/200202/performance_and_spending/3233/government_procurement_cards,17-Jan-2023,Total Borough Economy,WWW.DBMDIY.COM,Total Adult Social Care,254.26,FLOOR COVERING STORES,2022-23Q4_PC0301
Sandwell Metropolitan Borough Council,http://www.sandwell.gov.uk/info/200202/performance_and_spending/3233/government_procurement_cards,17-Jan-2023,Total Housing Revenue Account,Staffordshire Builder,Total Housing Revenue Account,12.46,"BUILDING MATERIALS, LUMBER STORES",2022-23Q4_PC0298
Sandwell Metropolitan Borough Council,http://www.sandwell.gov.uk/info/200202/performance_and_spending/3233/government_procurement_cards,18-Jan-2023,Law & Governance,ALDI 42 772,Assistant Chief Executive (Excl SIU),10.01,"GROCERY STORES, SUPERMARKETS",2022-23Q4_PC0315
Sandwell Metropolitan Borough Council,http://www.sandwell.gov.uk/info/200202/performance_and_spending/3233/government_procurement_cards,18-Jan-2023,FINANCE (Inc SIU),Amazon Prime 1A2696AR4,Assistant Chief Executive (Excl SIU),8.99,DIRECT MARKETING-CONTINUITY/SUBSCRIPTION MERCHANTS,2022-23Q4_PC0323
Sandwell Metropolitan Borough Council,http://www.sandwell.gov.uk/info/200202/performance_and_spending/3233/government_procurement_cards,18-Jan-2023,Law & Governance,BCC CLEAN AIR ZONE,Assistant Chief Executive (Excl SIU),8,GOVERNMENT SERVICES-NOT ELSEWHERE CLASSIFIED,2022-23Q4_PC0327
Sandwell Metropolitan Borough Council,http://www.sandwell.gov.uk/info/200202/performance_and_spending/3233/government_procurement_cards,18-Jan-2023,Law & Governance,ROYAL MAIL GROUP LTD,Assistant Chief Executive (Excl SIU),21.15,POSTAL SERVICES-GOVERNMENT ONLY,2022-23Q4_PC0314
Sandwell Metropolitan Borough Council,http://www.sandwell.gov.uk/info/200202/performance_and_spending/3233/government_procurement_cards,18-Jan-2023,Childrens Services,AMZNMktplace,Childrens Services,3.49,MISCELLANEOUS AND SPECIALTY RETAIL STORES,2022-23Q4_PC0308
Sandwell Metropolitan Borough Council,http://www.sandwell.gov.uk/info/200202/performance_and_spending/3233/government_procurement_cards,18-Jan-2023,Childrens Services,ASDA STORE,Childrens Services,61,"GROCERY STORES, SUPERMARKETS",2022-23Q4_PC0334
Sandwell Metropolitan Borough Council,http://www.sandwell.gov.uk/info/200202/performance_and_spending/3233/government_procurement_cards,18-Jan-2023,Childrens Services,ASDA SUPERSTORE,Childrens Services,23,"GROCERY STORES, SUPERMARKETS",2022-23Q4_PC0332
Sandwell Metropolitan Borough Council,http://www.sandwell.gov.uk/info/200202/performance_and_spending/3233/government_procurement_cards,18-Jan-2023,Childrens Services,CabCard Services UK,Childrens Services,60,LIMOUSINES AND TAXICABS,2022-23Q4_PC0316
Sandwell Metropolitan Borough Council,http://www.sandwell.gov.uk/info/200202/performance_and_spending/3233/government_procurement_cards,18-Jan-2023,Childrens Services,HOTEL FOOTBALL,Childrens Services,118,"LODGING-HOTELS,MOTELS,RESORTS-NOT CLASSIFIED",2022-23Q4_PC0317
Sandwell Metropolitan Borough Council,http://www.sandwell.gov.uk/info/200202/performance_and_spending/3233/government_procurement_cards,18-Jan-2023,Childrens Services,HOTEL FOOTBALL,Childrens Services,118,"LODGING-HOTELS,MOTELS,RESORTS-NOT CLASSIFIED",2022-23Q4_PC0318
Sandwell Metropolitan Borough Council,http://www.sandwell.gov.uk/info/200202/performance_and_spending/3233/government_procurement_cards,18-Jan-2023,Childrens Services,HOTEL FOOTBALL,Childrens Services,118,"LODGING-HOTELS,MOTELS,RESORTS-NOT CLASSIFIED",2022-23Q4_PC0319
Sandwell Metropolitan Borough Council,http://www.sandwell.gov.uk/info/200202/performance_and_spending/3233/government_procurement_cards,18-Jan-2023,Childrens Services,SAINSBURYS S/MKTS,Childrens Services,42.15,"GROCERY STORES, SUPERMARKETS",2022-23Q4_PC0320
Sandwell Metropolitan Borough Council,http://www.sandwell.gov.uk/info/200202/performance_and_spending/3233/government_procurement_cards,18-Jan-2023,Childrens Services,WILKO RETAIL LIMITED,Childrens Services,40,MISCELLANEOUS GENERAL MERCHANDISE,2022-23Q4_PC0333
Sandwell Metropolitan Borough Council,http://www.sandwell.gov.uk/info/200202/performance_and_spending/3233/government_procurement_cards,18-Jan-2023,Childrens Services,WWW.WMCA.ORG.UK,Childrens Services,20,"TRANSPRTN-SUBRBN & LOCAL COMTR PSNGR, INCL FERRIES",2022-23Q4_PC0304
Sandwell Metropolitan Borough Council,http://www.sandwell.gov.uk/info/200202/performance_and_spending/3233/government_procurement_cards,18-Jan-2023,Childrens Services,WWW.WMCA.ORG.UK,Childrens Services,20,"TRANSPRTN-SUBRBN & LOCAL COMTR PSNGR, INCL FERRIES",2022-23Q4_PC0305
Sandwell Metropolitan Borough Council,http://www.sandwell.gov.uk/info/200202/performance_and_spending/3233/government_procurement_cards,18-Jan-2023,Corporate Management,AMZNMktplace,Corporate Management,28.98,MISCELLANEOUS AND SPECIALTY RETAIL STORES,2022-23Q4_PC0322
Sandwell Metropolitan Borough Council,http://www.sandwell.gov.uk/info/200202/performance_and_spending/3233/government_procurement_cards,18-Jan-2023,Individual School Budgets With Inclusion,BUDGENS,Individual School Budgets With Inclusion,9,"GROCERY STORES, SUPERMARKETS",2022-23Q4_PC0321
Sandwell Metropolitan Borough Council,http://www.sandwell.gov.uk/info/200202/performance_and_spending/3233/government_procurement_cards,18-Jan-2023,Total Public Health,AMZNMKTPLACE AMAZON.CO,Public Health,61.77,MISCELLANEOUS AND SPECIALTY RETAIL STORES,2022-23Q4_PC0306
Sandwell Metropolitan Borough Council,http://www.sandwell.gov.uk/info/200202/performance_and_spending/3233/government_procurement_cards,18-Jan-2023,Total Public Health,IKEA LTD SHOP ONLINE,Public Health,75,"EQUIP, FURNITURE, HOME FURNSHNGS STRS (EXCPT APPL)",2022-23Q4_PC0324
Sandwell Metropolitan Borough Council,http://www.sandwell.gov.uk/info/200202/performance_and_spending/3233/government_procurement_cards,18-Jan-2023,Total Public Health,Trainline.COM,Public Health,69.29,PASSENGER RAILWAYS,2022-23Q4_PC0307
Sandwell Metropolitan Borough Council,http://www.sandwell.gov.uk/info/200202/performance_and_spending/3233/government_procurement_cards,18-Jan-2023,Regeneration & Growth,EB  CONCEPT DESIGN COU,Regeneration And The Economy,350,BUSINESS SERVICES-NOT ELSEWHERE CLASSIFIED,2022-23Q4_PC0303
Sandwell Metropolitan Borough Council,http://www.sandwell.gov.uk/info/200202/performance_and_spending/3233/government_procurement_cards,18-Jan-2023,Regeneration & Growth,TRAVIS PERKINS,Regeneration And The Economy,120.6,"BUILDING MATERIALS, LUMBER STORES",2022-23Q4_PC0328
Sandwell Metropolitan Borough Council,http://www.sandwell.gov.uk/info/200202/performance_and_spending/3233/government_procurement_cards,18-Jan-2023,Total Borough Economy,ALDI 109 772,Total Adult Social Care,17.94,"GROCERY STORES, SUPERMARKETS",2022-23Q4_PC0325
Sandwell Metropolitan Borough Council,http://www.sandwell.gov.uk/info/200202/performance_and_spending/3233/government_procurement_cards,18-Jan-2023,Total Borough Economy,Amazon.co.uk 1A1WQ80V4,Total Adult Social Care,14,DIRECT MARKETING-OTHER DIRECT MARKETERS/NOT ELSEW.,2022-23Q4_PC0312
Sandwell Metropolitan Borough Council,http://www.sandwell.gov.uk/info/200202/performance_and_spending/3233/government_procurement_cards,18-Jan-2023,Total ASCHWB,Amazon.co.uk 1A6W860X4,Total Adult Social Care,10.86,DIRECT MARKETING-OTHER DIRECT MARKETERS/NOT ELSEW.,2022-23Q4_PC0311
Sandwell Metropolitan Borough Council,http://www.sandwell.gov.uk/info/200202/performance_and_spending/3233/government_procurement_cards,18-Jan-2023,Total Borough Economy,Amazon.co.uk 1A7UU61V4,Total Adult Social Care,14,DIRECT MARKETING-OTHER DIRECT MARKETERS/NOT ELSEW.,2022-23Q4_PC0313
Sandwell Metropolitan Borough Council,http://www.sandwell.gov.uk/info/200202/performance_and_spending/3233/government_procurement_cards,18-Jan-2023,Total ASCHWB,AMZNMktplace,Total Adult Social Care,23.9,MISCELLANEOUS AND SPECIALTY RETAIL STORES,2022-23Q4_PC0310
Sandwell Metropolitan Borough Council,http://www.sandwell.gov.uk/info/200202/performance_and_spending/3233/government_procurement_cards,18-Jan-2023,Total Borough Economy,AMZNMKTPLACE AMAZON.CO,Total Adult Social Care,333.61,MISCELLANEOUS AND SPECIALTY RETAIL STORES,2022-23Q4_PC0329
Sandwell Metropolitan Borough Council,http://www.sandwell.gov.uk/info/200202/performance_and_spending/3233/government_procurement_cards,18-Jan-2023,Total Borough Economy,CENTRAL ENG COOP,Total Adult Social Care,1.2,"GROCERY STORES, SUPERMARKETS",2022-23Q4_PC0331
Sandwell Metropolitan Borough Council,http://www.sandwell.gov.uk/info/200202/performance_and_spending/3233/government_procurement_cards,18-Jan-2023,Total ASCHWB,SMARTY CO UK,Total Adult Social Care,20,TELECOM INCL PREPAID/RECURRING PHONE SVCS,2022-23Q4_PC0309
Sandwell Metropolitan Borough Council,http://www.sandwell.gov.uk/info/200202/performance_and_spending/3233/government_procurement_cards,18-Jan-2023,Total Borough Economy,VIKING UK,Total Adult Social Care,11.81,STATIONERY/OFFICE SUPPLIES/PRINTING & WRITING PAP.,2022-23Q4_PC0326
Sandwell Metropolitan Borough Council,http://www.sandwell.gov.uk/info/200202/performance_and_spending/3233/government_procurement_cards,18-Jan-2023,Total Borough Economy,WWW.OFFICETEAMCONNECT.,Total Adult Social Care,104.45,STATIONERY/OFFICE SUPPLIES/PRINTING & WRITING PAP.,2022-23Q4_PC0330
Sandwell Metropolitan Borough Council,http://www.sandwell.gov.uk/info/200202/performance_and_spending/3233/government_procurement_cards,19-Jan-2023,Total Business Strategy & Change,AMZNMKTPLACE AMAZON.CO,Assistant Chief Executive (Excl SIU),45.83,MISCELLANEOUS AND SPECIALTY RETAIL STORES,2022-23Q4_PC0354
Sandwell Metropolitan Borough Council,http://www.sandwell.gov.uk/info/200202/performance_and_spending/3233/government_procurement_cards,19-Jan-2023,Law & Governance,DEFIBSHOP.CO.UK,Assistant Chief Executive (Excl SIU),234,DENTAL/LAB/MED/OPHTHALMIC HOSP EQUIP & SUPPLIES,2022-23Q4_PC0343
Sandwell Metropolitan Borough Council,http://www.sandwell.gov.uk/info/200202/performance_and_spending/3233/government_procurement_cards,19-Jan-2023,Childrens Services,Amazon.co.uk 1A68Z1G24,Childrens Services,11.71,DIRECT MARKETING-OTHER DIRECT MARKETERS/NOT ELSEW.,2022-23Q4_PC0340
Sandwell Metropolitan Borough Council,http://www.sandwell.gov.uk/info/200202/performance_and_spending/3233/government_procurement_cards,19-Jan-2023,Childrens Services,AMZNMktplace,Childrens Services,8.98,MISCELLANEOUS AND SPECIALTY RETAIL STORES,2022-23Q4_PC0342
Sandwell Metropolitan Borough Council,http://www.sandwell.gov.uk/info/200202/performance_and_spending/3233/government_procurement_cards,19-Jan-2023,Childrens Services,AMZNMktplace,Childrens Services,68.35,MISCELLANEOUS AND SPECIALTY RETAIL STORES,2022-23Q4_PC0344
Sandwell Metropolitan Borough Council,http://www.sandwell.gov.uk/info/200202/performance_and_spending/3233/government_procurement_cards,19-Jan-2023,Childrens Services,BEEBYS BUBBLES,Childrens Services,67.5,"CLEANING, GARMENT, AND LAUNDRY SERVICES",2022-23Q4_PC0358
Sandwell Metropolitan Borough Council,http://www.sandwell.gov.uk/info/200202/performance_and_spending/3233/government_procurement_cards,19-Jan-2023,Childrens Services,CabCard Services UK,Childrens Services,10,LIMOUSINES AND TAXICABS,2022-23Q4_PC0345
Sandwell Metropolitan Borough Council,http://www.sandwell.gov.uk/info/200202/performance_and_spending/3233/government_procurement_cards,19-Jan-2023,Childrens Services,WWW.SCREWFIX.COM,Childrens Services,49.99,"BUILDING MATERIALS, LUMBER STORES",2022-23Q4_PC0355
Sandwell Metropolitan Borough Council,http://www.sandwell.gov.uk/info/200202/performance_and_spending/3233/government_procurement_cards,19-Jan-2023,Housing & Assets Total,AMZNMktplace,Corporate Management,29.91,MISCELLANEOUS AND SPECIALTY RETAIL STORES,2022-23Q4_PC0349
Sandwell Metropolitan Borough Council,http://www.sandwell.gov.uk/info/200202/performance_and_spending/3233/government_procurement_cards,19-Jan-2023,Corporate Management,AMZNMKTPLACE AMAZON.CO,Corporate Management,80.39,MISCELLANEOUS AND SPECIALTY RETAIL STORES,2022-23Q4_PC0348
Sandwell Metropolitan Borough Council,http://www.sandwell.gov.uk/info/200202/performance_and_spending/3233/government_procurement_cards,19-Jan-2023,Housing & Assets Total,SESSILE OAK LLANELLI,Corporate Management,770,"BAR,LOUNGE,DISCO,NIGHTCLUB,TAVERN-ALCOHOLIC DRINKS",2022-23Q4_PC0362
Sandwell Metropolitan Borough Council,http://www.sandwell.gov.uk/info/200202/performance_and_spending/3233/government_procurement_cards,19-Jan-2023,Total Public Health,UBER    TRIP,Public Health,29.9,LIMOUSINES AND TAXICABS,2022-23Q4_PC0339
Sandwell Metropolitan Borough Council,http://www.sandwell.gov.uk/info/200202/performance_and_spending/3233/government_procurement_cards,19-Jan-2023,Regeneration & Growth,AMZNMktplace,Regeneration And The Economy,479.01,MISCELLANEOUS AND SPECIALTY RETAIL STORES,2022-23Q4_PC0335
Sandwell Metropolitan Borough Council,http://www.sandwell.gov.uk/info/200202/performance_and_spending/3233/government_procurement_cards,19-Jan-2023,Regeneration & Growth,AMZNMktplace,Regeneration And The Economy,88.68,MISCELLANEOUS AND SPECIALTY RETAIL STORES,2022-23Q4_PC0360
Sandwell Metropolitan Borough Council,http://www.sandwell.gov.uk/info/200202/performance_and_spending/3233/government_procurement_cards,19-Jan-2023,Regeneration & Growth,AMZNMKTPLACE AMAZON.CO,Regeneration And The Economy,22.97,MISCELLANEOUS AND SPECIALTY RETAIL STORES,2022-23Q4_PC0341
Sandwell Metropolitan Borough Council,http://www.sandwell.gov.uk/info/200202/performance_and_spending/3233/government_procurement_cards,19-Jan-2023,FINANCE (Inc SIU),AMZNMKTPLACE AMAZON.CO,Total Adult Social Care,20.99,MISCELLANEOUS AND SPECIALTY RETAIL STORES,2022-23Q4_PC0347
Sandwell Metropolitan Borough Council,http://www.sandwell.gov.uk/info/200202/performance_and_spending/3233/government_procurement_cards,19-Jan-2023,Total Borough Economy,AMZNMKTPLACE AMAZON.CO,Total Adult Social Care,25.98,MISCELLANEOUS AND SPECIALTY RETAIL STORES,2022-23Q4_PC0359
Sandwell Metropolitan Borough Council,http://www.sandwell.gov.uk/info/200202/performance_and_spending/3233/government_procurement_cards,19-Jan-2023,Total Borough Economy,FARMFOODS 609,Total Adult Social Care,40.6,"GROCERY STORES, SUPERMARKETS",2022-23Q4_PC0356
Sandwell Metropolitan Borough Council,http://www.sandwell.gov.uk/info/200202/performance_and_spending/3233/government_procurement_cards,19-Jan-2023,Total Borough Economy,SPRINGBOARD SUPPLIES,Total Adult Social Care,92.08,MISCELLANEOUS GENERAL MERCHANDISE,2022-23Q4_PC0336
Sandwell Metropolitan Borough Council,http://www.sandwell.gov.uk/info/200202/performance_and_spending/3233/government_procurement_cards,19-Jan-2023,Total Borough Economy,STRICTLY TABLES AND CH,Total Adult Social Care,499.8,OFFICE AND COMMERCIAL FURNITURE,2022-23Q4_PC0361
Sandwell Metropolitan Borough Council,http://www.sandwell.gov.uk/info/200202/performance_and_spending/3233/government_procurement_cards,19-Jan-2023,Total Borough Economy,Trainline.COM,Total Adult Social Care,-70.7,PASSENGER RAILWAYS,2022-23Q4_PC0350
Sandwell Metropolitan Borough Council,http://www.sandwell.gov.uk/info/200202/performance_and_spending/3233/government_procurement_cards,19-Jan-2023,Total Borough Economy,WWW.NISBETS.COM,Total Adult Social Care,105.57,DIRECT MARKETING-CATALOG MERCHANTS,2022-23Q4_PC0337
Sandwell Metropolitan Borough Council,http://www.sandwell.gov.uk/info/200202/performance_and_spending/3233/government_procurement_cards,19-Jan-2023,Total Borough Economy,WWW.NISBETS.COM,Total Adult Social Care,59.98,DIRECT MARKETING-CATALOG MERCHANTS,2022-23Q4_PC0338
Sandwell Metropolitan Borough Council,http://www.sandwell.gov.uk/info/200202/performance_and_spending/3233/government_procurement_cards,19-Jan-2023,Total ASCHWB,WWW.OFFICETEAMCONNECT.,Total Adult Social Care,80.02,STATIONERY/OFFICE SUPPLIES/PRINTING & WRITING PAP.,2022-23Q4_PC0346
Sandwell Metropolitan Borough Council,http://www.sandwell.gov.uk/info/200202/performance_and_spending/3233/government_procurement_cards,19-Jan-2023,Total Housing Revenue Account,Amazon.co.uk 1A0UF0X94,Total Housing Revenue Account,10.77,DIRECT MARKETING-OTHER DIRECT MARKETERS/NOT ELSEW.,2022-23Q4_PC0352
Sandwell Metropolitan Borough Council,http://www.sandwell.gov.uk/info/200202/performance_and_spending/3233/government_procurement_cards,19-Jan-2023,Total Housing Revenue Account,AMZNMKTPLACE AMAZON.CO,Total Housing Revenue Account,26.98,MISCELLANEOUS AND SPECIALTY RETAIL STORES,2022-23Q4_PC0351
Sandwell Metropolitan Borough Council,http://www.sandwell.gov.uk/info/200202/performance_and_spending/3233/government_procurement_cards,19-Jan-2023,Total Housing Revenue Account,AMZNMKTPLACE AMAZON.CO,Total Housing Revenue Account,21.5,MISCELLANEOUS AND SPECIALTY RETAIL STORES,2022-23Q4_PC0353
Sandwell Metropolitan Borough Council,http://www.sandwell.gov.uk/info/200202/performance_and_spending/3233/government_procurement_cards,19-Jan-2023,Total Housing Revenue Account,PLUMBING FOR LESS,Total Housing Revenue Account,104.7,PLUMBING AND HEATING EQUIPMENT,2022-23Q4_PC0357
Sandwell Metropolitan Borough Council,http://www.sandwell.gov.uk/info/200202/performance_and_spending/3233/government_procurement_cards,20-Jan-2023,Childrens Services,Amazon Prime 1A59S3VN4,Childrens Services,96,DIRECT MARKETING-CONTINUITY/SUBSCRIPTION MERCHANTS,2022-23Q4_PC0369
Sandwell Metropolitan Borough Council,http://www.sandwell.gov.uk/info/200202/performance_and_spending/3233/government_procurement_cards,20-Jan-2023,Childrens Services,Amazon.co.uk 1A7493VT4,Childrens Services,28.19,DIRECT MARKETING-OTHER DIRECT MARKETERS/NOT ELSEW.,2022-23Q4_PC0396
Sandwell Metropolitan Borough Council,http://www.sandwell.gov.uk/info/200202/performance_and_spending/3233/government_procurement_cards,20-Jan-2023,Childrens Services,AMZNMKTPLACE AMAZON.CO,Childrens Services,84.98,MISCELLANEOUS AND SPECIALTY RETAIL STORES,2022-23Q4_PC0365
Sandwell Metropolitan Borough Council,http://www.sandwell.gov.uk/info/200202/performance_and_spending/3233/government_procurement_cards,20-Jan-2023,Childrens Services,ASDA GROCERIES ONLINE,Childrens Services,46.03,"GROCERY STORES, SUPERMARKETS",2022-23Q4_PC0388
Sandwell Metropolitan Borough Council,http://www.sandwell.gov.uk/info/200202/performance_and_spending/3233/government_procurement_cards,20-Jan-2023,Childrens Services,ASDA STORE,Childrens Services,7.3,"GROCERY STORES, SUPERMARKETS",2022-23Q4_PC0372
Sandwell Metropolitan Borough Council,http://www.sandwell.gov.uk/info/200202/performance_and_spending/3233/government_procurement_cards,20-Jan-2023,Childrens Services,eBay O 10-09600-70329,Childrens Services,76.17,DEPARTMENT STORES,2022-23Q4_PC0366
Sandwell Metropolitan Borough Council,http://www.sandwell.gov.uk/info/200202/performance_and_spending/3233/government_procurement_cards,20-Jan-2023,Childrens Services,HIRE IT KIDDERMINSTER,Childrens Services,234,"EQUIPMENT RENTAL&LEASING SVS, FURNTURE/TOOL RENTAL",2022-23Q4_PC0368
Sandwell Metropolitan Borough Council,http://www.sandwell.gov.uk/info/200202/performance_and_spending/3233/government_procurement_cards,20-Jan-2023,Childrens Services,ROYAL MAIL GROUP LTD,Childrens Services,2.7,POSTAL SERVICES-GOVERNMENT ONLY,2022-23Q4_PC0383
Sandwell Metropolitan Borough Council,http://www.sandwell.gov.uk/info/200202/performance_and_spending/3233/government_procurement_cards,20-Jan-2023,Childrens Services,UK COACHING SOLUTIONS,Childrens Services,12,COMPUTER SOFTWARE STORES,2022-23Q4_PC0376
Sandwell Metropolitan Borough Council,http://www.sandwell.gov.uk/info/200202/performance_and_spending/3233/government_procurement_cards,20-Jan-2023,Childrens Services,WWW.QUICKSARCHERY.CO.U,Childrens Services,200.05,MISCELLANEOUS AND SPECIALTY RETAIL STORES,2022-23Q4_PC0367
Sandwell Metropolitan Borough Council,http://www.sandwell.gov.uk/info/200202/performance_and_spending/3233/government_procurement_cards,20-Jan-2023,Housing & Assets Total,Amazon Prime 1A8ZB6VM4,Corporate Management,8.99,DIRECT MARKETING-CONTINUITY/SUBSCRIPTION MERCHANTS,2022-23Q4_PC0382
Sandwell Metropolitan Borough Council,http://www.sandwell.gov.uk/info/200202/performance_and_spending/3233/government_procurement_cards,20-Jan-2023,Individual School Budgets With Inclusion,IKEA LTD SHOP ONLINE,Individual School Budgets With Inclusion,195,"EQUIP, FURNITURE, HOME FURNSHNGS STRS (EXCPT APPL)",2022-23Q4_PC0363
Sandwell Metropolitan Borough Council,http://www.sandwell.gov.uk/info/200202/performance_and_spending/3233/government_procurement_cards,20-Jan-2023,Individual School Budgets With Inclusion,PRAXIS CPD LTD,Individual School Budgets With Inclusion,90,SCHOOLS & EDUCATIONAL SVC-NOT ELSEWHERE CLASSIFIED,2022-23Q4_PC0379
Sandwell Metropolitan Borough Council,http://www.sandwell.gov.uk/info/200202/performance_and_spending/3233/government_procurement_cards,20-Jan-2023,Individual School Budgets With Inclusion,PRAXIS CPD LTD,Individual School Budgets With Inclusion,90,SCHOOLS & EDUCATIONAL SVC-NOT ELSEWHERE CLASSIFIED,2022-23Q4_PC0380
Sandwell Metropolitan Borough Council,http://www.sandwell.gov.uk/info/200202/performance_and_spending/3233/government_procurement_cards,20-Jan-2023,Total Public Health,BUFFET EXPRESS,Public Health,103.8,FAST FOOD RESTAURANTS,2022-23Q4_PC0384
Sandwell Metropolitan Borough Council,http://www.sandwell.gov.uk/info/200202/performance_and_spending/3233/government_procurement_cards,20-Jan-2023,Total Public Health,Domino s Pizza,Public Health,57.87,"EATING PLACES, RESTAURANTS",2022-23Q4_PC0385
Sandwell Metropolitan Borough Council,http://www.sandwell.gov.uk/info/200202/performance_and_spending/3233/government_procurement_cards,20-Jan-2023,Total Public Health,SumUp   The Fish  Chi,Public Health,7,"GROCERY STORES, SUPERMARKETS",2022-23Q4_PC0386
Sandwell Metropolitan Borough Council,http://www.sandwell.gov.uk/info/200202/performance_and_spending/3233/government_procurement_cards,20-Jan-2023,Total ASCHWB,Amazon Prime 1A7JV4VH4,Total Adult Social Care,0.99,DIRECT MARKETING-CONTINUITY/SUBSCRIPTION MERCHANTS,2022-23Q4_PC0377
Sandwell Metropolitan Borough Council,http://www.sandwell.gov.uk/info/200202/performance_and_spending/3233/government_procurement_cards,20-Jan-2023,Total ASCHWB,Amazon.co.uk 1A4QP0Q04,Total Adult Social Care,21.39,DIRECT MARKETING-OTHER DIRECT MARKETERS/NOT ELSEW.,2022-23Q4_PC0378
Sandwell Metropolitan Borough Council,http://www.sandwell.gov.uk/info/200202/performance_and_spending/3233/government_procurement_cards,20-Jan-2023,Total Borough Economy,Amazon.co.uk 1A9571Q04,Total Adult Social Care,4.99,DIRECT MARKETING-OTHER DIRECT MARKETERS/NOT ELSEW.,2022-23Q4_PC0375
Sandwell Metropolitan Borough Council,http://www.sandwell.gov.uk/info/200202/performance_and_spending/3233/government_procurement_cards,20-Jan-2023,FINANCE (Inc SIU),AMZNMktplace,Total Adult Social Care,9.97,MISCELLANEOUS AND SPECIALTY RETAIL STORES,2022-23Q4_PC0381
Sandwell Metropolitan Borough Council,http://www.sandwell.gov.uk/info/200202/performance_and_spending/3233/government_procurement_cards,20-Jan-2023,Total Borough Economy,AMZNMktplace,Total Adult Social Care,11.48,MISCELLANEOUS AND SPECIALTY RETAIL STORES,2022-23Q4_PC0390
Sandwell Metropolitan Borough Council,http://www.sandwell.gov.uk/info/200202/performance_and_spending/3233/government_procurement_cards,20-Jan-2023,Total Borough Economy,AMZNMktplace,Total Adult Social Care,14.38,MISCELLANEOUS AND SPECIALTY RETAIL STORES,2022-23Q4_PC0391
Sandwell Metropolitan Borough Council,http://www.sandwell.gov.uk/info/200202/performance_and_spending/3233/government_procurement_cards,20-Jan-2023,Total Borough Economy,AMZNMktplace,Total Adult Social Care,4.39,MISCELLANEOUS AND SPECIALTY RETAIL STORES,2022-23Q4_PC0393
Sandwell Metropolitan Borough Council,http://www.sandwell.gov.uk/info/200202/performance_and_spending/3233/government_procurement_cards,20-Jan-2023,Total Borough Economy,AMZNMktplace,Total Adult Social Care,10.99,MISCELLANEOUS AND SPECIALTY RETAIL STORES,2022-23Q4_PC0395
Sandwell Metropolitan Borough Council,http://www.sandwell.gov.uk/info/200202/performance_and_spending/3233/government_procurement_cards,20-Jan-2023,Total ASCHWB,AMZNMKTPLACE AMAZON.CO,Total Adult Social Care,39.9,MISCELLANEOUS AND SPECIALTY RETAIL STORES,2022-23Q4_PC0370
Sandwell Metropolitan Borough Council,http://www.sandwell.gov.uk/info/200202/performance_and_spending/3233/government_procurement_cards,20-Jan-2023,Total Borough Economy,AMZNMKTPLACE AMAZON.CO,Total Adult Social Care,48.88,MISCELLANEOUS AND SPECIALTY RETAIL STORES,2022-23Q4_PC0389
Sandwell Metropolitan Borough Council,http://www.sandwell.gov.uk/info/200202/performance_and_spending/3233/government_procurement_cards,20-Jan-2023,Total Borough Economy,AMZNMKTPLACE AMAZON.CO,Total Adult Social Care,21.99,MISCELLANEOUS AND SPECIALTY RETAIL STORES,2022-23Q4_PC0392
Sandwell Metropolitan Borough Council,http://www.sandwell.gov.uk/info/200202/performance_and_spending/3233/government_procurement_cards,20-Jan-2023,Total Borough Economy,AMZNMKTPLACE AMAZON.CO,Total Adult Social Care,4.99,MISCELLANEOUS AND SPECIALTY RETAIL STORES,2022-23Q4_PC0394
Sandwell Metropolitan Borough Council,http://www.sandwell.gov.uk/info/200202/performance_and_spending/3233/government_procurement_cards,20-Jan-2023,Total Borough Economy,ARGOS LTD,Total Adult Social Care,192,DISCOUNT STORES,2022-23Q4_PC0374
Sandwell Metropolitan Borough Council,http://www.sandwell.gov.uk/info/200202/performance_and_spending/3233/government_procurement_cards,20-Jan-2023,Total Borough Economy,GREGGS,Total Adult Social Care,28.7,"EATING PLACES, RESTAURANTS",2022-23Q4_PC0364
Sandwell Metropolitan Borough Council,http://www.sandwell.gov.uk/info/200202/performance_and_spending/3233/government_procurement_cards,20-Jan-2023,Total ASCHWB,National Pen Promotion,Total Adult Social Care,123.59,BUSINESS SERVICES-NOT ELSEWHERE CLASSIFIED,2022-23Q4_PC0371
Sandwell Metropolitan Borough Council,http://www.sandwell.gov.uk/info/200202/performance_and_spending/3233/government_procurement_cards,20-Jan-2023,Total Borough Economy,TVLICENSING.CO.UK,Total Adult Social Care,159,"CONSULTING, MANAGEMENT, AND PUBLIC RELATIONS SVCS",2022-23Q4_PC0373
Sandwell Metropolitan Borough Council,http://www.sandwell.gov.uk/info/200202/performance_and_spending/3233/government_procurement_cards,20-Jan-2023,Total Housing Revenue Account,B   L SHUTTERS,Total Housing Revenue Account,558,INDUSTRIAL SUPPLIES NOT ELSEWHERE CLASSIFIED,2022-23Q4_PC0387
Sandwell Metropolitan Borough Council,http://www.sandwell.gov.uk/info/200202/performance_and_spending/3233/government_procurement_cards,23-Jan-2023,Total Business Strategy & Change,AMZNMktplace,Assistant Chief Executive (Excl SIU),792.69,MISCELLANEOUS AND SPECIALTY RETAIL STORES,2022-23Q4_PC0426
Sandwell Metropolitan Borough Council,http://www.sandwell.gov.uk/info/200202/performance_and_spending/3233/government_procurement_cards,23-Jan-2023,Law & Governance,AMZNMKTPLACE AMAZON.CO,Assistant Chief Executive (Excl SIU),199.98,MISCELLANEOUS AND SPECIALTY RETAIL STORES,2022-23Q4_PC0434
Sandwell Metropolitan Borough Council,http://www.sandwell.gov.uk/info/200202/performance_and_spending/3233/government_procurement_cards,23-Jan-2023,FINANCE (Inc SIU),JOHNSTONES DEC CENTRE,Assistant Chief Executive (Excl SIU),262.3,"GLASS, PAINT, WALLPAPER STORES",2022-23Q4_PC0415
Sandwell Metropolitan Borough Council,http://www.sandwell.gov.uk/info/200202/performance_and_spending/3233/government_procurement_cards,23-Jan-2023,Total Business Strategy & Change,PARAGON SERVICE POINT,Assistant Chief Executive (Excl SIU),172.8,MISCELLANEOUS PUBLISHING AND PRINTING,2022-23Q4_PC0409
Sandwell Metropolitan Borough Council,http://www.sandwell.gov.uk/info/200202/performance_and_spending/3233/government_procurement_cards,23-Jan-2023,FINANCE (Inc SIU),SCREWFIX DIR LTD,Assistant Chief Executive (Excl SIU),68.35,"BUILDING MATERIALS, LUMBER STORES",2022-23Q4_PC0414
Sandwell Metropolitan Borough Council,http://www.sandwell.gov.uk/info/200202/performance_and_spending/3233/government_procurement_cards,23-Jan-2023,FINANCE (Inc SIU),WWW.OFFICETEAMCONNECT.,Assistant Chief Executive (Excl SIU),33.36,STATIONERY/OFFICE SUPPLIES/PRINTING & WRITING PAP.,2022-23Q4_PC0418
Sandwell Metropolitan Borough Council,http://www.sandwell.gov.uk/info/200202/performance_and_spending/3233/government_procurement_cards,23-Jan-2023,Law & Governance,WWW.SCREWFIX.COM,Assistant Chief Executive (Excl SIU),23.98,"BUILDING MATERIALS, LUMBER STORES",2022-23Q4_PC0416
Sandwell Metropolitan Borough Council,http://www.sandwell.gov.uk/info/200202/performance_and_spending/3233/government_procurement_cards,23-Jan-2023,Childrens Services,AMZNMktplace,Childrens Services,25.97,MISCELLANEOUS AND SPECIALTY RETAIL STORES,2022-23Q4_PC0427
Sandwell Metropolitan Borough Council,http://www.sandwell.gov.uk/info/200202/performance_and_spending/3233/government_procurement_cards,23-Jan-2023,Childrens Services,CabCard Services UK,Childrens Services,70,LIMOUSINES AND TAXICABS,2022-23Q4_PC0422
Sandwell Metropolitan Borough Council,http://www.sandwell.gov.uk/info/200202/performance_and_spending/3233/government_procurement_cards,23-Jan-2023,Childrens Services,LIDL GB PORTHMADOG,Childrens Services,33.75,"GROCERY STORES, SUPERMARKETS",2022-23Q4_PC0420
Sandwell Metropolitan Borough Council,http://www.sandwell.gov.uk/info/200202/performance_and_spending/3233/government_procurement_cards,23-Jan-2023,Childrens Services,LIDL GB PORTHMADOG,Childrens Services,14.39,"GROCERY STORES, SUPERMARKETS",2022-23Q4_PC0421
Sandwell Metropolitan Borough Council,http://www.sandwell.gov.uk/info/200202/performance_and_spending/3233/government_procurement_cards,23-Jan-2023,Childrens Services,WWW.ESCAPE-WATERSPORTS,Childrens Services,80.7,SPORTING GOODS STORES,2022-23Q4_PC0417
Sandwell Metropolitan Borough Council,http://www.sandwell.gov.uk/info/200202/performance_and_spending/3233/government_procurement_cards,23-Jan-2023,Housing & Assets Total,Amazon Prime 1A1WJ66E4,Corporate Management,8.99,DIRECT MARKETING-CONTINUITY/SUBSCRIPTION MERCHANTS,2022-23Q4_PC0424
Sandwell Metropolitan Borough Council,http://www.sandwell.gov.uk/info/200202/performance_and_spending/3233/government_procurement_cards,23-Jan-2023,Housing & Assets Total,AMZNMktplace,Corporate Management,103.92,MISCELLANEOUS AND SPECIALTY RETAIL STORES,2022-23Q4_PC0425
Sandwell Metropolitan Borough Council,http://www.sandwell.gov.uk/info/200202/performance_and_spending/3233/government_procurement_cards,23-Jan-2023,Total ASCHWB,ALDI 772 177,Total Adult Social Care,5.04,"GROCERY STORES, SUPERMARKETS",2022-23Q4_PC0407
Sandwell Metropolitan Borough Council,http://www.sandwell.gov.uk/info/200202/performance_and_spending/3233/government_procurement_cards,23-Jan-2023,Total ASCHWB,Amazon.co.uk 1A9PQ08S4,Total Adult Social Care,18.57,DIRECT MARKETING-OTHER DIRECT MARKETERS/NOT ELSEW.,2022-23Q4_PC0435
Sandwell Metropolitan Borough Council,http://www.sandwell.gov.uk/info/200202/performance_and_spending/3233/government_procurement_cards,23-Jan-2023,Total Borough Economy,AMZNMktplace,Total Adult Social Care,26.94,MISCELLANEOUS AND SPECIALTY RETAIL STORES,2022-23Q4_PC0397
Sandwell Metropolitan Borough Council,http://www.sandwell.gov.uk/info/200202/performance_and_spending/3233/government_procurement_cards,23-Jan-2023,Housing & Assets Total,AMZNMktplace,Total Adult Social Care,-236.6,MISCELLANEOUS AND SPECIALTY RETAIL STORES,2022-23Q4_PC0398
Sandwell Metropolitan Borough Council,http://www.sandwell.gov.uk/info/200202/performance_and_spending/3233/government_procurement_cards,23-Jan-2023,Housing & Assets Total,AMZNMktplace,Total Adult Social Care,-226.86,MISCELLANEOUS AND SPECIALTY RETAIL STORES,2022-23Q4_PC0399
Sandwell Metropolitan Borough Council,http://www.sandwell.gov.uk/info/200202/performance_and_spending/3233/government_procurement_cards,23-Jan-2023,Total ASCHWB,AMZNMktplace,Total Adult Social Care,14.98,MISCELLANEOUS AND SPECIALTY RETAIL STORES,2022-23Q4_PC0402
Sandwell Metropolitan Borough Council,http://www.sandwell.gov.uk/info/200202/performance_and_spending/3233/government_procurement_cards,23-Jan-2023,Total ASCHWB,AMZNMktplace,Total Adult Social Care,55.98,MISCELLANEOUS AND SPECIALTY RETAIL STORES,2022-23Q4_PC0404
Sandwell Metropolitan Borough Council,http://www.sandwell.gov.uk/info/200202/performance_and_spending/3233/government_procurement_cards,23-Jan-2023,Total ASCHWB,AMZNMktplace,Total Adult Social Care,55.98,MISCELLANEOUS AND SPECIALTY RETAIL STORES,2022-23Q4_PC0405
Sandwell Metropolitan Borough Council,http://www.sandwell.gov.uk/info/200202/performance_and_spending/3233/government_procurement_cards,23-Jan-2023,Total Borough Economy,AMZNMktplace,Total Adult Social Care,69.95,MISCELLANEOUS AND SPECIALTY RETAIL STORES,2022-23Q4_PC0413
Sandwell Metropolitan Borough Council,http://www.sandwell.gov.uk/info/200202/performance_and_spending/3233/government_procurement_cards,23-Jan-2023,Total Borough Economy,AMZNMktplace,Total Adult Social Care,19.98,MISCELLANEOUS AND SPECIALTY RETAIL STORES,2022-23Q4_PC0430
Sandwell Metropolitan Borough Council,http://www.sandwell.gov.uk/info/200202/performance_and_spending/3233/government_procurement_cards,23-Jan-2023,Total Borough Economy,AMZNMktplace,Total Adult Social Care,112.97,MISCELLANEOUS AND SPECIALTY RETAIL STORES,2022-23Q4_PC0433
Sandwell Metropolitan Borough Council,http://www.sandwell.gov.uk/info/200202/performance_and_spending/3233/government_procurement_cards,23-Jan-2023,Housing & Assets Total,AMZNMKTPLACE AMAZON.CO,Total Adult Social Care,-236.6,MISCELLANEOUS AND SPECIALTY RETAIL STORES,2022-23Q4_PC0400
Sandwell Metropolitan Borough Council,http://www.sandwell.gov.uk/info/200202/performance_and_spending/3233/government_procurement_cards,23-Jan-2023,Total ASCHWB,AMZNMKTPLACE AMAZON.CO,Total Adult Social Care,170.39,MISCELLANEOUS AND SPECIALTY RETAIL STORES,2022-23Q4_PC0403
Sandwell Metropolitan Borough Council,http://www.sandwell.gov.uk/info/200202/performance_and_spending/3233/government_procurement_cards,23-Jan-2023,Total Borough Economy,AMZNMKTPLACE AMAZON.CO,Total Adult Social Care,42.93,MISCELLANEOUS AND SPECIALTY RETAIL STORES,2022-23Q4_PC0411
Sandwell Metropolitan Borough Council,http://www.sandwell.gov.uk/info/200202/performance_and_spending/3233/government_procurement_cards,23-Jan-2023,Total Borough Economy,AMZNMKTPLACE AMAZON.CO,Total Adult Social Care,8.47,MISCELLANEOUS AND SPECIALTY RETAIL STORES,2022-23Q4_PC0419
Sandwell Metropolitan Borough Council,http://www.sandwell.gov.uk/info/200202/performance_and_spending/3233/government_procurement_cards,23-Jan-2023,Total ASCHWB,AMZNMKTPLACE AMAZON.CO,Total Adult Social Care,84.74,MISCELLANEOUS AND SPECIALTY RETAIL STORES,2022-23Q4_PC0423
Sandwell Metropolitan Borough Council,http://www.sandwell.gov.uk/info/200202/performance_and_spending/3233/government_procurement_cards,23-Jan-2023,Total Borough Economy,AMZNMKTPLACE AMAZON.CO,Total Adult Social Care,19.88,MISCELLANEOUS AND SPECIALTY RETAIL STORES,2022-23Q4_PC0428
Sandwell Metropolitan Borough Council,http://www.sandwell.gov.uk/info/200202/performance_and_spending/3233/government_procurement_cards,23-Jan-2023,Total Borough Economy,CANVA  I03672-11015064,Total Adult Social Care,10.99,PHOTOGRAPHIC STUDIOS,2022-23Q4_PC0412
Sandwell Metropolitan Borough Council,http://www.sandwell.gov.uk/info/200202/performance_and_spending/3233/government_procurement_cards,23-Jan-2023,Total ASCHWB,ONEDIRECT UK,Total Adult Social Care,35.98,DIGITAL GOODS MULTI CATEGORY,2022-23Q4_PC0436
Sandwell Metropolitan Borough Council,http://www.sandwell.gov.uk/info/200202/performance_and_spending/3233/government_procurement_cards,23-Jan-2023,Total Borough Economy,PADDLE.NET SNAPWIDGET,Total Adult Social Care,5.41,DIGITAL GOODS MULTI CATEGORY,2022-23Q4_PC0401
Sandwell Metropolitan Borough Council,http://www.sandwell.gov.uk/info/200202/performance_and_spending/3233/government_procurement_cards,23-Jan-2023,Total Borough Economy,STRICTLY TABLES AND CH,Total Adult Social Care,425.88,OFFICE AND COMMERCIAL FURNITURE,2022-23Q4_PC0432
Sandwell Metropolitan Borough Council,http://www.sandwell.gov.uk/info/200202/performance_and_spending/3233/government_procurement_cards,23-Jan-2023,Total ASCHWB,SumUp   A J tyre Servi,Total Adult Social Care,240,"CLEANING, GARMENT, AND LAUNDRY SERVICES",2022-23Q4_PC0410
Sandwell Metropolitan Borough Council,http://www.sandwell.gov.uk/info/200202/performance_and_spending/3233/government_procurement_cards,23-Jan-2023,Total Borough Economy,TOOLSTATION UK,Total Adult Social Care,147.19,HARDWARE STORES,2022-23Q4_PC0429
Sandwell Metropolitan Borough Council,http://www.sandwell.gov.uk/info/200202/performance_and_spending/3233/government_procurement_cards,23-Jan-2023,Total Borough Economy,trainline,Total Adult Social Care,35.44,PASSENGER RAILWAYS,2022-23Q4_PC0431
Sandwell Metropolitan Borough Council,http://www.sandwell.gov.uk/info/200202/performance_and_spending/3233/government_procurement_cards,23-Jan-2023,Total Borough Economy,TVLICENSING.CO.UK,Total Adult Social Care,159,"CONSULTING, MANAGEMENT, AND PUBLIC RELATIONS SVCS",2022-23Q4_PC0408
Sandwell Metropolitan Borough Council,http://www.sandwell.gov.uk/info/200202/performance_and_spending/3233/government_procurement_cards,23-Jan-2023,Total ASCHWB,TVLICENSING.CO.UK,Total Adult Social Care,159,"CONSULTING, MANAGEMENT, AND PUBLIC RELATIONS SVCS",2022-23Q4_PC0437
Sandwell Metropolitan Borough Council,http://www.sandwell.gov.uk/info/200202/performance_and_spending/3233/government_procurement_cards,23-Jan-2023,Total ASCHWB,Wm Morrisons Store Pic,Total Adult Social Care,35.91,"GROCERY STORES, SUPERMARKETS",2022-23Q4_PC0406
Sandwell Metropolitan Borough Council,http://www.sandwell.gov.uk/info/200202/performance_and_spending/3233/government_procurement_cards,24-Jan-2023,Law & Governance,AMZNMktplace,Assistant Chief Executive (Excl SIU),35.92,MISCELLANEOUS AND SPECIALTY RETAIL STORES,2022-23Q4_PC0472
Sandwell Metropolitan Borough Council,http://www.sandwell.gov.uk/info/200202/performance_and_spending/3233/government_procurement_cards,24-Jan-2023,Law & Governance,AMZNMktplace,Assistant Chief Executive (Excl SIU),569.43,MISCELLANEOUS AND SPECIALTY RETAIL STORES,2022-23Q4_PC0473
Sandwell Metropolitan Borough Council,http://www.sandwell.gov.uk/info/200202/performance_and_spending/3233/government_procurement_cards,24-Jan-2023,Total Business Strategy & Change,AMZNMKTPLACE AMAZON.CO,Assistant Chief Executive (Excl SIU),139.98,MISCELLANEOUS AND SPECIALTY RETAIL STORES,2022-23Q4_PC0471
Sandwell Metropolitan Borough Council,http://www.sandwell.gov.uk/info/200202/performance_and_spending/3233/government_procurement_cards,24-Jan-2023,Law & Governance,TESCO STORES 2335,Assistant Chief Executive (Excl SIU),17.1,"GROCERY STORES, SUPERMARKETS",2022-23Q4_PC0441
Sandwell Metropolitan Borough Council,http://www.sandwell.gov.uk/info/200202/performance_and_spending/3233/government_procurement_cards,24-Jan-2023,Childrens Services,ALLIANCE DISPOSABLES,Childrens Services,230.64,CATERERS,2022-23Q4_PC0443
Sandwell Metropolitan Borough Council,http://www.sandwell.gov.uk/info/200202/performance_and_spending/3233/government_procurement_cards,24-Jan-2023,Childrens Services,AMZNMktplace,Childrens Services,27.99,MISCELLANEOUS AND SPECIALTY RETAIL STORES,2022-23Q4_PC0445
Sandwell Metropolitan Borough Council,http://www.sandwell.gov.uk/info/200202/performance_and_spending/3233/government_procurement_cards,24-Jan-2023,Childrens Services,AMZNMktplace,Childrens Services,25.99,MISCELLANEOUS AND SPECIALTY RETAIL STORES,2022-23Q4_PC0448
Sandwell Metropolitan Borough Council,http://www.sandwell.gov.uk/info/200202/performance_and_spending/3233/government_procurement_cards,24-Jan-2023,Childrens Services,AMZNMKTPLACE AMAZON.CO,Childrens Services,11.88,MISCELLANEOUS AND SPECIALTY RETAIL STORES,2022-23Q4_PC0444
Sandwell Metropolitan Borough Council,http://www.sandwell.gov.uk/info/200202/performance_and_spending/3233/government_procurement_cards,24-Jan-2023,Childrens Services,ASDA GROCERIES ONLINE,Childrens Services,97.01,"GROCERY STORES, SUPERMARKETS",2022-23Q4_PC0461
Sandwell Metropolitan Borough Council,http://www.sandwell.gov.uk/info/200202/performance_and_spending/3233/government_procurement_cards,24-Jan-2023,Childrens Services,EB  RESOURCE HUB TRAIN,Childrens Services,-25,BUSINESS SERVICES-NOT ELSEWHERE CLASSIFIED,2022-23Q4_PC0440
Sandwell Metropolitan Borough Council,http://www.sandwell.gov.uk/info/200202/performance_and_spending/3233/government_procurement_cards,24-Jan-2023,Childrens Services,SAINSBURYS,Childrens Services,58.4,"GROCERY STORES, SUPERMARKETS",2022-23Q4_PC0449
Sandwell Metropolitan Borough Council,http://www.sandwell.gov.uk/info/200202/performance_and_spending/3233/government_procurement_cards,24-Jan-2023,Childrens Services,TESCO STORES 2770,Childrens Services,95.42,"GROCERY STORES, SUPERMARKETS",2022-23Q4_PC0439
Sandwell Metropolitan Borough Council,http://www.sandwell.gov.uk/info/200202/performance_and_spending/3233/government_procurement_cards,24-Jan-2023,Childrens Services,TESCO STORES 3057,Childrens Services,58.8,"GROCERY STORES, SUPERMARKETS",2022-23Q4_PC0442
Sandwell Metropolitan Borough Council,http://www.sandwell.gov.uk/info/200202/performance_and_spending/3233/government_procurement_cards,24-Jan-2023,Childrens Services,TESCO STORES 3057,Childrens Services,1.4,"GROCERY STORES, SUPERMARKETS",2022-23Q4_PC0446
Sandwell Metropolitan Borough Council,http://www.sandwell.gov.uk/info/200202/performance_and_spending/3233/government_procurement_cards,24-Jan-2023,Childrens Services,TESCO STORES 3057,Childrens Services,17.7,"GROCERY STORES, SUPERMARKETS",2022-23Q4_PC0447
Sandwell Metropolitan Borough Council,http://www.sandwell.gov.uk/info/200202/performance_and_spending/3233/government_procurement_cards,24-Jan-2023,Housing & Assets Total,AMZNMktplace,Corporate Management,7.99,MISCELLANEOUS AND SPECIALTY RETAIL STORES,2022-23Q4_PC0455
Sandwell Metropolitan Borough Council,http://www.sandwell.gov.uk/info/200202/performance_and_spending/3233/government_procurement_cards,24-Jan-2023,Housing & Assets Total,AMZNMktplace,Corporate Management,4.99,MISCELLANEOUS AND SPECIALTY RETAIL STORES,2022-23Q4_PC0463
Sandwell Metropolitan Borough Council,http://www.sandwell.gov.uk/info/200202/performance_and_spending/3233/government_procurement_cards,24-Jan-2023,Housing & Assets Total,ASDA STORES,Corporate Management,18.29,"GROCERY STORES, SUPERMARKETS",2022-23Q4_PC0453
Sandwell Metropolitan Borough Council,http://www.sandwell.gov.uk/info/200202/performance_and_spending/3233/government_procurement_cards,24-Jan-2023,Housing & Assets Total,ASDA STORES,Corporate Management,16.32,"GROCERY STORES, SUPERMARKETS",2022-23Q4_PC0454
Sandwell Metropolitan Borough Council,http://www.sandwell.gov.uk/info/200202/performance_and_spending/3233/government_procurement_cards,24-Jan-2023,Housing & Assets Total,ASDA STORES,Corporate Management,17.93,"GROCERY STORES, SUPERMARKETS",2022-23Q4_PC0456
Sandwell Metropolitan Borough Council,http://www.sandwell.gov.uk/info/200202/performance_and_spending/3233/government_procurement_cards,24-Jan-2023,Housing & Assets Total,TIMPSON LTD,Corporate Management,13,MISCELLANEOUS AND SPECIALTY RETAIL STORES,2022-23Q4_PC0452
Sandwell Metropolitan Borough Council,http://www.sandwell.gov.uk/info/200202/performance_and_spending/3233/government_procurement_cards,24-Jan-2023,Individual School Budgets With Inclusion,ASDA GROCERIES ONLINE,Individual School Budgets With Inclusion,-1.25,"GROCERY STORES, SUPERMARKETS",2022-23Q4_PC0450
Sandwell Metropolitan Borough Council,http://www.sandwell.gov.uk/info/200202/performance_and_spending/3233/government_procurement_cards,24-Jan-2023,Individual School Budgets With Inclusion,ASDA GROCERIES ONLINE,Individual School Budgets With Inclusion,80.3,"GROCERY STORES, SUPERMARKETS",2022-23Q4_PC0451
Sandwell Metropolitan Borough Council,http://www.sandwell.gov.uk/info/200202/performance_and_spending/3233/government_procurement_cards,24-Jan-2023,Total Public Health,Amazon.co.uk 1A2CF6RY4,Public Health,16.98,DIRECT MARKETING-OTHER DIRECT MARKETERS/NOT ELSEW.,2022-23Q4_PC0458
Sandwell Metropolitan Borough Council,http://www.sandwell.gov.uk/info/200202/performance_and_spending/3233/government_procurement_cards,24-Jan-2023,Regeneration & Growth,Trainline.COM,Regeneration And The Economy,20.47,PASSENGER RAILWAYS,2022-23Q4_PC0468
Sandwell Metropolitan Borough Council,http://www.sandwell.gov.uk/info/200202/performance_and_spending/3233/government_procurement_cards,24-Jan-2023,Total Borough Economy,AMZNMktplace,Total Adult Social Care,16.99,MISCELLANEOUS AND SPECIALTY RETAIL STORES,2022-23Q4_PC0470
Sandwell Metropolitan Borough Council,http://www.sandwell.gov.uk/info/200202/performance_and_spending/3233/government_procurement_cards,24-Jan-2023,Total ASCHWB,AMZNMKTPLACE AMAZON.CO,Total Adult Social Care,160.14,MISCELLANEOUS AND SPECIALTY RETAIL STORES,2022-23Q4_PC0474
Sandwell Metropolitan Borough Council,http://www.sandwell.gov.uk/info/200202/performance_and_spending/3233/government_procurement_cards,24-Jan-2023,Total ASCHWB,BILLINGHAMS FLORISTS,Total Adult Social Care,50,FLORISTS,2022-23Q4_PC0460
Sandwell Metropolitan Borough Council,http://www.sandwell.gov.uk/info/200202/performance_and_spending/3233/government_procurement_cards,24-Jan-2023,Total Borough Economy,DVSA,Total Adult Social Care,1435,GOVERNMENT SERVICES-NOT ELSEWHERE CLASSIFIED,2022-23Q4_PC0462
Sandwell Metropolitan Borough Council,http://www.sandwell.gov.uk/info/200202/performance_and_spending/3233/government_procurement_cards,24-Jan-2023,Total Borough Economy,SETON,Total Adult Social Care,76.16,"DURABLE GOODS, NOT ELSEWHERE CLASSIFIED",2022-23Q4_PC0466
Sandwell Metropolitan Borough Council,http://www.sandwell.gov.uk/info/200202/performance_and_spending/3233/government_procurement_cards,24-Jan-2023,Regeneration & Growth,SP SPORT IT FIRST,Total Adult Social Care,23.18,MEN'S AND WOMEN'S CLOTHING STORES,2022-23Q4_PC0438
Sandwell Metropolitan Borough Council,http://www.sandwell.gov.uk/info/200202/performance_and_spending/3233/government_procurement_cards,24-Jan-2023,Total Borough Economy,TOOLSTATION UK,Total Adult Social Care,106.67,HARDWARE STORES,2022-23Q4_PC0469
Sandwell Metropolitan Borough Council,http://www.sandwell.gov.uk/info/200202/performance_and_spending/3233/government_procurement_cards,24-Jan-2023,Total Borough Economy,WWW.SCREWFIX.COM,Total Adult Social Care,43.94,"BUILDING MATERIALS, LUMBER STORES",2022-23Q4_PC0467
Sandwell Metropolitan Borough Council,http://www.sandwell.gov.uk/info/200202/performance_and_spending/3233/government_procurement_cards,24-Jan-2023,Total Housing Revenue Account,AMZNMKTPLACE AMAZON.CO,Total Housing Revenue Account,43.91,MISCELLANEOUS AND SPECIALTY RETAIL STORES,2022-23Q4_PC0457
Sandwell Metropolitan Borough Council,http://www.sandwell.gov.uk/info/200202/performance_and_spending/3233/government_procurement_cards,24-Jan-2023,Total Housing Revenue Account,CAPITA GAS,Total Housing Revenue Account,31.8,"ORGANIZATIONS, MEMBERSHIP-NOT ELSEWHERE CLASSIFIED",2022-23Q4_PC0464
Sandwell Metropolitan Borough Council,http://www.sandwell.gov.uk/info/200202/performance_and_spending/3233/government_procurement_cards,24-Jan-2023,Total Housing Revenue Account,Staffordshire Builder,Total Housing Revenue Account,118.71,"BUILDING MATERIALS, LUMBER STORES",2022-23Q4_PC0465
Sandwell Metropolitan Borough Council,http://www.sandwell.gov.uk/info/200202/performance_and_spending/3233/government_procurement_cards,24-Jan-2023,Total Housing Revenue Account,THE HEADSET STORE,Total Housing Revenue Account,32.33,TELECOMMUNICATION EQUIPMENT INCL TELEPHONE SALES,2022-23Q4_PC0459
Sandwell Metropolitan Borough Council,http://www.sandwell.gov.uk/info/200202/performance_and_spending/3233/government_procurement_cards,25-Jan-2023,Law & Governance,Admire Flowers,Assistant Chief Executive (Excl SIU),140,FLORISTS,2022-23Q4_PC0487
Sandwell Metropolitan Borough Council,http://www.sandwell.gov.uk/info/200202/performance_and_spending/3233/government_procurement_cards,25-Jan-2023,Law & Governance,AMZNMktplace,Assistant Chief Executive (Excl SIU),1198.5,MISCELLANEOUS AND SPECIALTY RETAIL STORES,2022-23Q4_PC0497
Sandwell Metropolitan Borough Council,http://www.sandwell.gov.uk/info/200202/performance_and_spending/3233/government_procurement_cards,25-Jan-2023,FINANCE (Inc SIU),TW WHOLESALE,Assistant Chief Executive (Excl SIU),401.99,HARDWARE EQUIPMENT AND SUPPLIES,2022-23Q4_PC0481
Sandwell Metropolitan Borough Council,http://www.sandwell.gov.uk/info/200202/performance_and_spending/3233/government_procurement_cards,25-Jan-2023,Childrens Services,AMZNMKTPLACE AMAZON.CO,Childrens Services,6.99,MISCELLANEOUS AND SPECIALTY RETAIL STORES,2022-23Q4_PC0477
Sandwell Metropolitan Borough Council,http://www.sandwell.gov.uk/info/200202/performance_and_spending/3233/government_procurement_cards,25-Jan-2023,Childrens Services,AMZNMKTPLACE AMAZON.CO,Childrens Services,15.99,MISCELLANEOUS AND SPECIALTY RETAIL STORES,2022-23Q4_PC0483
Sandwell Metropolitan Borough Council,http://www.sandwell.gov.uk/info/200202/performance_and_spending/3233/government_procurement_cards,25-Jan-2023,Childrens Services,AMZNMKTPLACE AMAZON.CO,Childrens Services,121.87,MISCELLANEOUS AND SPECIALTY RETAIL STORES,2022-23Q4_PC0484
Sandwell Metropolitan Borough Council,http://www.sandwell.gov.uk/info/200202/performance_and_spending/3233/government_procurement_cards,25-Jan-2023,Childrens Services,COASTAL LINEN,Childrens Services,147.6,MISCELLANEOUS GENERAL MERCHANDISE,2022-23Q4_PC0492
Sandwell Metropolitan Borough Council,http://www.sandwell.gov.uk/info/200202/performance_and_spending/3233/government_procurement_cards,25-Jan-2023,Childrens Services,Flip Out Sandwell,Childrens Services,240,RECREATION SERVICES (NOT ELSEWHERE CLASSIFIED),2022-23Q4_PC0488
Sandwell Metropolitan Borough Council,http://www.sandwell.gov.uk/info/200202/performance_and_spending/3233/government_procurement_cards,25-Jan-2023,Childrens Services,Flip Out Sandwell,Childrens Services,240,RECREATION SERVICES (NOT ELSEWHERE CLASSIFIED),2022-23Q4_PC0489
Sandwell Metropolitan Borough Council,http://www.sandwell.gov.uk/info/200202/performance_and_spending/3233/government_procurement_cards,25-Jan-2023,Childrens Services,Flip Out Sandwell,Childrens Services,240,RECREATION SERVICES (NOT ELSEWHERE CLASSIFIED),2022-23Q4_PC0490
Sandwell Metropolitan Borough Council,http://www.sandwell.gov.uk/info/200202/performance_and_spending/3233/government_procurement_cards,25-Jan-2023,Childrens Services,HUWS GRAY PORTHMADOG,Childrens Services,136.72,"BUILDING MATERIALS, LUMBER STORES",2022-23Q4_PC0482
Sandwell Metropolitan Borough Council,http://www.sandwell.gov.uk/info/200202/performance_and_spending/3233/government_procurement_cards,25-Jan-2023,Childrens Services,TESCO STORES 2770,Childrens Services,39.5,"GROCERY STORES, SUPERMARKETS",2022-23Q4_PC0475
Sandwell Metropolitan Borough Council,http://www.sandwell.gov.uk/info/200202/performance_and_spending/3233/government_procurement_cards,25-Jan-2023,Corporate Management,FS  JotForm,Corporate Management,19.05,DIGITAL GOODS SOFTWARE APPLICATIONS,2022-23Q4_PC0486
Sandwell Metropolitan Borough Council,http://www.sandwell.gov.uk/info/200202/performance_and_spending/3233/government_procurement_cards,25-Jan-2023,Individual School Budgets With Inclusion,WWW.CICKPHARMACY.CO.UK,Individual School Budgets With Inclusion,37.93,"DRUG STORES, PHARMACIES",2022-23Q4_PC0485
Sandwell Metropolitan Borough Council,http://www.sandwell.gov.uk/info/200202/performance_and_spending/3233/government_procurement_cards,25-Jan-2023,Regeneration & Growth,Amazon.co.uk 1A5U22WT4,Regeneration And The Economy,57.4,DIRECT MARKETING-OTHER DIRECT MARKETERS/NOT ELSEW.,2022-23Q4_PC0478
Sandwell Metropolitan Borough Council,http://www.sandwell.gov.uk/info/200202/performance_and_spending/3233/government_procurement_cards,25-Jan-2023,Total Borough Economy,BROXAP,Regeneration And The Economy,96,"CONTRACTORS,SPECIAL TRADE-NOT ELSEWHERE CLASSIFIED",2022-23Q4_PC0491
Sandwell Metropolitan Borough Council,http://www.sandwell.gov.uk/info/200202/performance_and_spending/3233/government_procurement_cards,25-Jan-2023,Regeneration & Growth,trainline,Regeneration And The Economy,110.25,PASSENGER RAILWAYS,2022-23Q4_PC0496
Sandwell Metropolitan Borough Council,http://www.sandwell.gov.uk/info/200202/performance_and_spending/3233/government_procurement_cards,25-Jan-2023,Total Borough Economy,Amazon.co.uk 1A0HD1YC4,Total Adult Social Care,37.82,DIRECT MARKETING-OTHER DIRECT MARKETERS/NOT ELSEW.,2022-23Q4_PC0495
Sandwell Metropolitan Borough Council,http://www.sandwell.gov.uk/info/200202/performance_and_spending/3233/government_procurement_cards,25-Jan-2023,Total Borough Economy,AMZNMktplace,Total Adult Social Care,34.98,MISCELLANEOUS AND SPECIALTY RETAIL STORES,2022-23Q4_PC0479
Sandwell Metropolitan Borough Council,http://www.sandwell.gov.uk/info/200202/performance_and_spending/3233/government_procurement_cards,25-Jan-2023,Total Borough Economy,AMZNMktplace,Total Adult Social Care,9.99,MISCELLANEOUS AND SPECIALTY RETAIL STORES,2022-23Q4_PC0480
Sandwell Metropolitan Borough Council,http://www.sandwell.gov.uk/info/200202/performance_and_spending/3233/government_procurement_cards,25-Jan-2023,Total Borough Economy,AMZNMktplace,Total Adult Social Care,69.92,MISCELLANEOUS AND SPECIALTY RETAIL STORES,2022-23Q4_PC0493
Sandwell Metropolitan Borough Council,http://www.sandwell.gov.uk/info/200202/performance_and_spending/3233/government_procurement_cards,25-Jan-2023,Total Borough Economy,AMZNMKTPLACE AMAZON.CO,Total Adult Social Care,132.68,MISCELLANEOUS AND SPECIALTY RETAIL STORES,2022-23Q4_PC0476
Sandwell Metropolitan Borough Council,http://www.sandwell.gov.uk/info/200202/performance_and_spending/3233/government_procurement_cards,25-Jan-2023,Total Borough Economy,AMZNMKTPLACE AMAZON.CO,Total Adult Social Care,20.96,MISCELLANEOUS AND SPECIALTY RETAIL STORES,2022-23Q4_PC0494
Sandwell Metropolitan Borough Council,http://www.sandwell.gov.uk/info/200202/performance_and_spending/3233/government_procurement_cards,26-Jan-2023,Total Business Strategy & Change,POST OFFICE COUNTER,Assistant Chief Executive (Excl SIU),2.6,POSTAL SERVICES-GOVERNMENT ONLY,2022-23Q4_PC0514
Sandwell Metropolitan Borough Council,http://www.sandwell.gov.uk/info/200202/performance_and_spending/3233/government_procurement_cards,26-Jan-2023,Total Business Strategy & Change,REMARKABLE,Assistant Chief Executive (Excl SIU),2.99,ELECTRONIC SALES,2022-23Q4_PC0504
Sandwell Metropolitan Borough Council,http://www.sandwell.gov.uk/info/200202/performance_and_spending/3233/government_procurement_cards,26-Jan-2023,Total Business Strategy & Change,SMYTHS TOYS OLDBURY,Assistant Chief Executive (Excl SIU),25,"GAME, TOY, AND HOBBY SHOPS",2022-23Q4_PC0513
Sandwell Metropolitan Borough Council,http://www.sandwell.gov.uk/info/200202/performance_and_spending/3233/government_procurement_cards,26-Jan-2023,Childrens Services,AMZNMktplace,Childrens Services,58.45,MISCELLANEOUS AND SPECIALTY RETAIL STORES,2022-23Q4_PC0501
Sandwell Metropolitan Borough Council,http://www.sandwell.gov.uk/info/200202/performance_and_spending/3233/government_procurement_cards,26-Jan-2023,Childrens Services,AMZNMKTPLACE AMAZON.CO,Childrens Services,25.8,MISCELLANEOUS AND SPECIALTY RETAIL STORES,2022-23Q4_PC0522
Sandwell Metropolitan Borough Council,http://www.sandwell.gov.uk/info/200202/performance_and_spending/3233/government_procurement_cards,26-Jan-2023,Childrens Services,ASDA GROCERIES ONLINE,Childrens Services,-2.65,"GROCERY STORES, SUPERMARKETS",2022-23Q4_PC0525
Sandwell Metropolitan Borough Council,http://www.sandwell.gov.uk/info/200202/performance_and_spending/3233/government_procurement_cards,26-Jan-2023,Childrens Services,ASDA GROCERIES ONLINE,Childrens Services,53.75,"GROCERY STORES, SUPERMARKETS",2022-23Q4_PC0526
Sandwell Metropolitan Borough Council,http://www.sandwell.gov.uk/info/200202/performance_and_spending/3233/government_procurement_cards,26-Jan-2023,Childrens Services,GOMPELS HEALTHCARE,Childrens Services,205.5,WHOLESALE CLUBS,2022-23Q4_PC0521
Sandwell Metropolitan Borough Council,http://www.sandwell.gov.uk/info/200202/performance_and_spending/3233/government_procurement_cards,26-Jan-2023,Childrens Services,HSQE LTD,Childrens Services,108,SCHOOLS & EDUCATIONAL SVC-NOT ELSEWHERE CLASSIFIED,2022-23Q4_PC0512
Sandwell Metropolitan Borough Council,http://www.sandwell.gov.uk/info/200202/performance_and_spending/3233/government_procurement_cards,26-Jan-2023,Childrens Services,Hughs Tyre's,Childrens Services,90,AUTOMOTIVE SERVICE SHOPS,2022-23Q4_PC0511
Sandwell Metropolitan Borough Council,http://www.sandwell.gov.uk/info/200202/performance_and_spending/3233/government_procurement_cards,26-Jan-2023,Childrens Services,PURPLE,Childrens Services,239.4,BUSINESS SERVICES-NOT ELSEWHERE CLASSIFIED,2022-23Q4_PC0509
Sandwell Metropolitan Borough Council,http://www.sandwell.gov.uk/info/200202/performance_and_spending/3233/government_procurement_cards,26-Jan-2023,Childrens Services,PURPLE,Childrens Services,239.4,BUSINESS SERVICES-NOT ELSEWHERE CLASSIFIED,2022-23Q4_PC0510
Sandwell Metropolitan Borough Council,http://www.sandwell.gov.uk/info/200202/performance_and_spending/3233/government_procurement_cards,26-Jan-2023,Childrens Services,SP AEROLITE,Childrens Services,87.99,COMPUTER SOFTWARE STORES,2022-23Q4_PC0508
Sandwell Metropolitan Borough Council,http://www.sandwell.gov.uk/info/200202/performance_and_spending/3233/government_procurement_cards,26-Jan-2023,Childrens Services,SumUp   Seasons Veg Bo,Childrens Services,33.75,LIMOUSINES AND TAXICABS,2022-23Q4_PC0518
Sandwell Metropolitan Borough Council,http://www.sandwell.gov.uk/info/200202/performance_and_spending/3233/government_procurement_cards,26-Jan-2023,Childrens Services,SumUp   Seasons Veg Bo,Childrens Services,77.7,LIMOUSINES AND TAXICABS,2022-23Q4_PC0519
Sandwell Metropolitan Borough Council,http://www.sandwell.gov.uk/info/200202/performance_and_spending/3233/government_procurement_cards,26-Jan-2023,Childrens Services,THE SPAR,Childrens Services,6.07,DAIRY PRODUCTS STORES,2022-23Q4_PC0517
Sandwell Metropolitan Borough Council,http://www.sandwell.gov.uk/info/200202/performance_and_spending/3233/government_procurement_cards,26-Jan-2023,Housing & Assets Total,APPLIANCEDIRECT CO,Corporate Management,179.96,COMPUTER SOFTWARE STORES,2022-23Q4_PC0520
Sandwell Metropolitan Borough Council,http://www.sandwell.gov.uk/info/200202/performance_and_spending/3233/government_procurement_cards,26-Jan-2023,Housing & Assets Total,SESSILE OAK LLANELLI,Corporate Management,770,"BAR,LOUNGE,DISCO,NIGHTCLUB,TAVERN-ALCOHOLIC DRINKS",2022-23Q4_PC0530
Sandwell Metropolitan Borough Council,http://www.sandwell.gov.uk/info/200202/performance_and_spending/3233/government_procurement_cards,26-Jan-2023,Regeneration & Growth,CC Uniforms LTD,Regeneration And The Economy,48,MEN'S AND WOMEN'S CLOTHING STORES,2022-23Q4_PC0500
Sandwell Metropolitan Borough Council,http://www.sandwell.gov.uk/info/200202/performance_and_spending/3233/government_procurement_cards,26-Jan-2023,Regeneration & Growth,STANFORD MARSH LTD,Regeneration And The Economy,77.71,"OFFICE, SCHOOL SUPPLY, AND STATIONERY STORES",2022-23Q4_PC0499
Sandwell Metropolitan Borough Council,http://www.sandwell.gov.uk/info/200202/performance_and_spending/3233/government_procurement_cards,26-Jan-2023,Regeneration & Growth,TIMPSON LTD,Regeneration And The Economy,12,MISCELLANEOUS AND SPECIALTY RETAIL STORES,2022-23Q4_PC0524
Sandwell Metropolitan Borough Council,http://www.sandwell.gov.uk/info/200202/performance_and_spending/3233/government_procurement_cards,26-Jan-2023,Total ASCHWB,AMZNMktplace,Total Adult Social Care,111.96,MISCELLANEOUS AND SPECIALTY RETAIL STORES,2022-23Q4_PC0502
Sandwell Metropolitan Borough Council,http://www.sandwell.gov.uk/info/200202/performance_and_spending/3233/government_procurement_cards,26-Jan-2023,Total Borough Economy,AMZNMktplace,Total Adult Social Care,14.95,MISCELLANEOUS AND SPECIALTY RETAIL STORES,2022-23Q4_PC0528
Sandwell Metropolitan Borough Council,http://www.sandwell.gov.uk/info/200202/performance_and_spending/3233/government_procurement_cards,26-Jan-2023,Total Borough Economy,AMZNMktplace,Total Adult Social Care,8.99,MISCELLANEOUS AND SPECIALTY RETAIL STORES,2022-23Q4_PC0529
Sandwell Metropolitan Borough Council,http://www.sandwell.gov.uk/info/200202/performance_and_spending/3233/government_procurement_cards,26-Jan-2023,Total ASCHWB,AMZNMKTPLACE AMAZON.CO,Total Adult Social Care,13.48,MISCELLANEOUS AND SPECIALTY RETAIL STORES,2022-23Q4_PC0503
Sandwell Metropolitan Borough Council,http://www.sandwell.gov.uk/info/200202/performance_and_spending/3233/government_procurement_cards,26-Jan-2023,Total Borough Economy,AMZNMKTPLACE AMAZON.CO,Total Adult Social Care,27.99,MISCELLANEOUS AND SPECIALTY RETAIL STORES,2022-23Q4_PC0527
Sandwell Metropolitan Borough Council,http://www.sandwell.gov.uk/info/200202/performance_and_spending/3233/government_procurement_cards,26-Jan-2023,Total Borough Economy,PARAGON SERVICE POINT,Total Adult Social Care,384,MISCELLANEOUS PUBLISHING AND PRINTING,2022-23Q4_PC0505
Sandwell Metropolitan Borough Council,http://www.sandwell.gov.uk/info/200202/performance_and_spending/3233/government_procurement_cards,26-Jan-2023,Total Borough Economy,POUNDLAND,Total Adult Social Care,24.2,DISCOUNT STORES,2022-23Q4_PC0523
Sandwell Metropolitan Borough Council,http://www.sandwell.gov.uk/info/200202/performance_and_spending/3233/government_procurement_cards,26-Jan-2023,Regeneration & Growth,SP SPORT IT FIRST,Total Adult Social Care,23.18,MEN'S AND WOMEN'S CLOTHING STORES,2022-23Q4_PC0498
Sandwell Metropolitan Borough Council,http://www.sandwell.gov.uk/info/200202/performance_and_spending/3233/government_procurement_cards,26-Jan-2023,Total Borough Economy,VIKING UK,Total Adult Social Care,46.34,STATIONERY/OFFICE SUPPLIES/PRINTING & WRITING PAP.,2022-23Q4_PC0506
Sandwell Metropolitan Borough Council,http://www.sandwell.gov.uk/info/200202/performance_and_spending/3233/government_procurement_cards,26-Jan-2023,Total ASCHWB,WORKWEAR EXPRESS,Total Adult Social Care,-64.01,MEN'S/WOMEN'S/CHILDREN'S UNIFORMS/COMMERCIAL CLOTH,2022-23Q4_PC0507
Sandwell Metropolitan Borough Council,http://www.sandwell.gov.uk/info/200202/performance_and_spending/3233/government_procurement_cards,26-Jan-2023,Total ASCHWB,WWW.OFFICETEAMCONNECT.,Total Adult Social Care,286.8,STATIONERY/OFFICE SUPPLIES/PRINTING & WRITING PAP.,2022-23Q4_PC0515
Sandwell Metropolitan Borough Council,http://www.sandwell.gov.uk/info/200202/performance_and_spending/3233/government_procurement_cards,26-Jan-2023,Total Housing Revenue Account,SAFETY SIGNS 4 LESS,Total Housing Revenue Account,27.66,"COMMERCIAL EQUIPMENT, NOT ELSEWHERE CLASSIFIED",2022-23Q4_PC0516
Sandwell Metropolitan Borough Council,http://www.sandwell.gov.uk/info/200202/performance_and_spending/3233/government_procurement_cards,27-Jan-2023,Law & Governance,CARTRIDGEPEOPLE.COM,Assistant Chief Executive (Excl SIU),79.9,STATIONERY/OFFICE SUPPLIES/PRINTING & WRITING PAP.,2022-23Q4_PC0535
Sandwell Metropolitan Borough Council,http://www.sandwell.gov.uk/info/200202/performance_and_spending/3233/government_procurement_cards,27-Jan-2023,Childrens Services,ADOBE PS CREATIVE CLD,Childrens Services,19.97,COMPUTER SOFTWARE STORES,2022-23Q4_PC0531
Sandwell Metropolitan Borough Council,http://www.sandwell.gov.uk/info/200202/performance_and_spending/3233/government_procurement_cards,27-Jan-2023,Childrens Services,ALDI 9 772,Childrens Services,28.04,"GROCERY STORES, SUPERMARKETS",2022-23Q4_PC0538
Sandwell Metropolitan Borough Council,http://www.sandwell.gov.uk/info/200202/performance_and_spending/3233/government_procurement_cards,27-Jan-2023,Childrens Services,AMZNMktplace,Childrens Services,164,MISCELLANEOUS AND SPECIALTY RETAIL STORES,2022-23Q4_PC0536
Sandwell Metropolitan Borough Council,http://www.sandwell.gov.uk/info/200202/performance_and_spending/3233/government_procurement_cards,27-Jan-2023,Childrens Services,ROYAL MAIL GROUP LTD,Childrens Services,2.7,POSTAL SERVICES-GOVERNMENT ONLY,2022-23Q4_PC0539
Sandwell Metropolitan Borough Council,http://www.sandwell.gov.uk/info/200202/performance_and_spending/3233/government_procurement_cards,27-Jan-2023,Childrens Services,TRAVIS PERKINS,Childrens Services,90,"BUILDING MATERIALS, LUMBER STORES",2022-23Q4_PC0537
Sandwell Metropolitan Borough Council,http://www.sandwell.gov.uk/info/200202/performance_and_spending/3233/government_procurement_cards,27-Jan-2023,Total Borough Economy,Amazon Prime 1O0C32NW4,Total Adult Social Care,8.99,DIRECT MARKETING-CONTINUITY/SUBSCRIPTION MERCHANTS,2022-23Q4_PC0534
Sandwell Metropolitan Borough Council,http://www.sandwell.gov.uk/info/200202/performance_and_spending/3233/government_procurement_cards,27-Jan-2023,Total ASCHWB,AMZNMktplace,Total Adult Social Care,55.98,MISCELLANEOUS AND SPECIALTY RETAIL STORES,2022-23Q4_PC0533
Sandwell Metropolitan Borough Council,http://www.sandwell.gov.uk/info/200202/performance_and_spending/3233/government_procurement_cards,27-Jan-2023,Total Borough Economy,AMZNMktplace,Total Adult Social Care,8.98,MISCELLANEOUS AND SPECIALTY RETAIL STORES,2022-23Q4_PC0541
Sandwell Metropolitan Borough Council,http://www.sandwell.gov.uk/info/200202/performance_and_spending/3233/government_procurement_cards,27-Jan-2023,Total Borough Economy,AMZNMktplace,Total Adult Social Care,22.43,MISCELLANEOUS AND SPECIALTY RETAIL STORES,2022-23Q4_PC0542
Sandwell Metropolitan Borough Council,http://www.sandwell.gov.uk/info/200202/performance_and_spending/3233/government_procurement_cards,27-Jan-2023,Total Borough Economy,AMZNMktplace,Total Adult Social Care,7.98,MISCELLANEOUS AND SPECIALTY RETAIL STORES,2022-23Q4_PC0543
Sandwell Metropolitan Borough Council,http://www.sandwell.gov.uk/info/200202/performance_and_spending/3233/government_procurement_cards,27-Jan-2023,Total Borough Economy,AMZNMktplace,Total Adult Social Care,7.98,MISCELLANEOUS AND SPECIALTY RETAIL STORES,2022-23Q4_PC0544
Sandwell Metropolitan Borough Council,http://www.sandwell.gov.uk/info/200202/performance_and_spending/3233/government_procurement_cards,27-Jan-2023,Total ASCHWB,AMZNMKTPLACE AMAZON.CO,Total Adult Social Care,17.98,MISCELLANEOUS AND SPECIALTY RETAIL STORES,2022-23Q4_PC0532
Sandwell Metropolitan Borough Council,http://www.sandwell.gov.uk/info/200202/performance_and_spending/3233/government_procurement_cards,27-Jan-2023,Total Borough Economy,HERON FOODS,Total Adult Social Care,7.2,"GROCERY STORES, SUPERMARKETS",2022-23Q4_PC0540
Sandwell Metropolitan Borough Council,http://www.sandwell.gov.uk/info/200202/performance_and_spending/3233/government_procurement_cards,30-Jan-2023,Law & Governance,Amazon Prime 1O7TD8PT4,Assistant Chief Executive (Excl SIU),8.99,DIRECT MARKETING-CONTINUITY/SUBSCRIPTION MERCHANTS,2022-23Q4_PC0562
Sandwell Metropolitan Borough Council,http://www.sandwell.gov.uk/info/200202/performance_and_spending/3233/government_procurement_cards,30-Jan-2023,Total Business Strategy & Change,Amazon.co.uk 1O6Q86PH4,Assistant Chief Executive (Excl SIU),245.65,DIRECT MARKETING-OTHER DIRECT MARKETERS/NOT ELSEW.,2022-23Q4_PC0550
Sandwell Metropolitan Borough Council,http://www.sandwell.gov.uk/info/200202/performance_and_spending/3233/government_procurement_cards,30-Jan-2023,Law & Governance,CARTRIDGEPEOPLE.COM,Assistant Chief Executive (Excl SIU),245.69,STATIONERY/OFFICE SUPPLIES/PRINTING & WRITING PAP.,2022-23Q4_PC0577
Sandwell Metropolitan Borough Council,http://www.sandwell.gov.uk/info/200202/performance_and_spending/3233/government_procurement_cards,30-Jan-2023,Law & Governance,COOLBLADES,Assistant Chief Executive (Excl SIU),558.2,BARBER AND BEAUTY SHOPS,2022-23Q4_PC0581
Sandwell Metropolitan Borough Council,http://www.sandwell.gov.uk/info/200202/performance_and_spending/3233/government_procurement_cards,30-Jan-2023,Childrens Services,Amazon.co.uk 1O1LF8AJ4,Childrens Services,139,DIRECT MARKETING-OTHER DIRECT MARKETERS/NOT ELSEW.,2022-23Q4_PC0558
Sandwell Metropolitan Borough Council,http://www.sandwell.gov.uk/info/200202/performance_and_spending/3233/government_procurement_cards,30-Jan-2023,Childrens Services,AMZNMktplace,Childrens Services,8.32,MISCELLANEOUS AND SPECIALTY RETAIL STORES,2022-23Q4_PC0557
Sandwell Metropolitan Borough Council,http://www.sandwell.gov.uk/info/200202/performance_and_spending/3233/government_procurement_cards,30-Jan-2023,Childrens Services,AMZNMktplace,Childrens Services,11.77,MISCELLANEOUS AND SPECIALTY RETAIL STORES,2022-23Q4_PC0559
Sandwell Metropolitan Borough Council,http://www.sandwell.gov.uk/info/200202/performance_and_spending/3233/government_procurement_cards,30-Jan-2023,Childrens Services,AMZNMktplace,Childrens Services,26.58,MISCELLANEOUS AND SPECIALTY RETAIL STORES,2022-23Q4_PC0560
Sandwell Metropolitan Borough Council,http://www.sandwell.gov.uk/info/200202/performance_and_spending/3233/government_procurement_cards,30-Jan-2023,Childrens Services,CabCard Services UK,Childrens Services,70,LIMOUSINES AND TAXICABS,2022-23Q4_PC0561
Sandwell Metropolitan Borough Council,http://www.sandwell.gov.uk/info/200202/performance_and_spending/3233/government_procurement_cards,30-Jan-2023,Childrens Services,Connect Distribution S,Childrens Services,37.95,HOUSEHOLD APPLIANCE STORES,2022-23Q4_PC0566
Sandwell Metropolitan Borough Council,http://www.sandwell.gov.uk/info/200202/performance_and_spending/3233/government_procurement_cards,30-Jan-2023,Childrens Services,POST OFFICE COUNTER,Childrens Services,4.45,POSTAL SERVICES-GOVERNMENT ONLY,2022-23Q4_PC0569
Sandwell Metropolitan Borough Council,http://www.sandwell.gov.uk/info/200202/performance_and_spending/3233/government_procurement_cards,30-Jan-2023,Childrens Services,PSHE ASSOCIATION,Childrens Services,95,SCHOOLS & EDUCATIONAL SVC-NOT ELSEWHERE CLASSIFIED,2022-23Q4_PC0552
Sandwell Metropolitan Borough Council,http://www.sandwell.gov.uk/info/200202/performance_and_spending/3233/government_procurement_cards,30-Jan-2023,Childrens Services,PURPLE,Childrens Services,-239.4,BUSINESS SERVICES-NOT ELSEWHERE CLASSIFIED,2022-23Q4_PC0551
Sandwell Metropolitan Borough Council,http://www.sandwell.gov.uk/info/200202/performance_and_spending/3233/government_procurement_cards,30-Jan-2023,Childrens Services,Trainline.COM,Childrens Services,9.36,PASSENGER RAILWAYS,2022-23Q4_PC0576
Sandwell Metropolitan Borough Council,http://www.sandwell.gov.uk/info/200202/performance_and_spending/3233/government_procurement_cards,30-Jan-2023,Childrens Services,YORKSHIRE PURCHASING O,Childrens Services,15.71,STATIONERY/OFFICE SUPPLIES/PRINTING & WRITING PAP.,2022-23Q4_PC0567
Sandwell Metropolitan Borough Council,http://www.sandwell.gov.uk/info/200202/performance_and_spending/3233/government_procurement_cards,30-Jan-2023,Childrens Services,YORKSHIRE PURCHASING O,Childrens Services,101.99,STATIONERY/OFFICE SUPPLIES/PRINTING & WRITING PAP.,2022-23Q4_PC0568
Sandwell Metropolitan Borough Council,http://www.sandwell.gov.uk/info/200202/performance_and_spending/3233/government_procurement_cards,30-Jan-2023,Childrens Services,YORKSHIRE PURCHASING O,Childrens Services,58.64,STATIONERY/OFFICE SUPPLIES/PRINTING & WRITING PAP.,2022-23Q4_PC0570
Sandwell Metropolitan Borough Council,http://www.sandwell.gov.uk/info/200202/performance_and_spending/3233/government_procurement_cards,30-Jan-2023,Total Public Health,AMZ Antspirit Store,Public Health,-43.98,MISCELLANEOUS AND SPECIALTY RETAIL STORES,2022-23Q4_PC0548
Sandwell Metropolitan Borough Council,http://www.sandwell.gov.uk/info/200202/performance_and_spending/3233/government_procurement_cards,30-Jan-2023,Total Public Health,EB  OPENING DOORS ENSU,Public Health,84,BUSINESS SERVICES-NOT ELSEWHERE CLASSIFIED,2022-23Q4_PC0563
Sandwell Metropolitan Borough Council,http://www.sandwell.gov.uk/info/200202/performance_and_spending/3233/government_procurement_cards,30-Jan-2023,Total Public Health,SAINSBURYS,Public Health,68.3,"GROCERY STORES, SUPERMARKETS",2022-23Q4_PC0571
Sandwell Metropolitan Borough Council,http://www.sandwell.gov.uk/info/200202/performance_and_spending/3233/government_procurement_cards,30-Jan-2023,Regeneration & Growth,CLEANING SUPPLIES 4 U,Regeneration And The Economy,103.02,"SANITATION, POLISHING & SPECIALITY CLEANING PREP",2022-23Q4_PC0547
Sandwell Metropolitan Borough Council,http://www.sandwell.gov.uk/info/200202/performance_and_spending/3233/government_procurement_cards,30-Jan-2023,Regeneration & Growth,WWW.OFFICETEAMCONNECT.,Regeneration And The Economy,123.32,STATIONERY/OFFICE SUPPLIES/PRINTING & WRITING PAP.,2022-23Q4_PC0546
Sandwell Metropolitan Borough Council,http://www.sandwell.gov.uk/info/200202/performance_and_spending/3233/government_procurement_cards,30-Jan-2023,Total Borough Economy,AGRIWEBB UKEU LTD,Total Adult Social Care,300,COMPUTER SOFTWARE STORES,2022-23Q4_PC0573
Sandwell Metropolitan Borough Council,http://www.sandwell.gov.uk/info/200202/performance_and_spending/3233/government_procurement_cards,30-Jan-2023,Total Borough Economy,Amazon.co.uk 1O4K85GO4,Total Adult Social Care,14.96,DIRECT MARKETING-OTHER DIRECT MARKETERS/NOT ELSEW.,2022-23Q4_PC0574
Sandwell Metropolitan Borough Council,http://www.sandwell.gov.uk/info/200202/performance_and_spending/3233/government_procurement_cards,30-Jan-2023,Total Borough Economy,AMZNMktplace,Total Adult Social Care,11.46,MISCELLANEOUS AND SPECIALTY RETAIL STORES,2022-23Q4_PC0545
Sandwell Metropolitan Borough Council,http://www.sandwell.gov.uk/info/200202/performance_and_spending/3233/government_procurement_cards,30-Jan-2023,Total ASCHWB,AMZNMktplace,Total Adult Social Care,22.98,MISCELLANEOUS AND SPECIALTY RETAIL STORES,2022-23Q4_PC0564
Sandwell Metropolitan Borough Council,http://www.sandwell.gov.uk/info/200202/performance_and_spending/3233/government_procurement_cards,30-Jan-2023,Total Borough Economy,AMZNMktplace,Total Adult Social Care,105,MISCELLANEOUS AND SPECIALTY RETAIL STORES,2022-23Q4_PC0578
Sandwell Metropolitan Borough Council,http://www.sandwell.gov.uk/info/200202/performance_and_spending/3233/government_procurement_cards,30-Jan-2023,Total Borough Economy,AMZNMktplace,Total Adult Social Care,69.99,MISCELLANEOUS AND SPECIALTY RETAIL STORES,2022-23Q4_PC0580
Sandwell Metropolitan Borough Council,http://www.sandwell.gov.uk/info/200202/performance_and_spending/3233/government_procurement_cards,30-Jan-2023,Total Borough Economy,AMZNMKTPLACE AMAZON.CO,Total Adult Social Care,25.99,MISCELLANEOUS AND SPECIALTY RETAIL STORES,2022-23Q4_PC0575
Sandwell Metropolitan Borough Council,http://www.sandwell.gov.uk/info/200202/performance_and_spending/3233/government_procurement_cards,30-Jan-2023,Total ASCHWB,PRINTSTER.CO.UK,Total Adult Social Care,183.5,MISCELLANEOUS GENERAL MERCHANDISE,2022-23Q4_PC0582
Sandwell Metropolitan Borough Council,http://www.sandwell.gov.uk/info/200202/performance_and_spending/3233/government_procurement_cards,30-Jan-2023,Total ASCHWB,SQ  JOANNES FLOWERS,Total Adult Social Care,82,MISCELLANEOUS GENERAL MERCHANDISE,2022-23Q4_PC0553
Sandwell Metropolitan Borough Council,http://www.sandwell.gov.uk/info/200202/performance_and_spending/3233/government_procurement_cards,30-Jan-2023,Total Borough Economy,SumUp   Oakdene Nurser,Total Adult Social Care,200,MISCELLANEOUS AND SPECIALTY RETAIL STORES,2022-23Q4_PC0579
Sandwell Metropolitan Borough Council,http://www.sandwell.gov.uk/info/200202/performance_and_spending/3233/government_procurement_cards,30-Jan-2023,Total Borough Economy,WWW.OFFICETEAMCONNECT.,Total Adult Social Care,210.5,STATIONERY/OFFICE SUPPLIES/PRINTING & WRITING PAP.,2022-23Q4_PC0549
Sandwell Metropolitan Borough Council,http://www.sandwell.gov.uk/info/200202/performance_and_spending/3233/government_procurement_cards,30-Jan-2023,Total Borough Economy,WWW.SCREWFIX.COM,Total Adult Social Care,8.57,"BUILDING MATERIALS, LUMBER STORES",2022-23Q4_PC0572
Sandwell Metropolitan Borough Council,http://www.sandwell.gov.uk/info/200202/performance_and_spending/3233/government_procurement_cards,30-Jan-2023,Total Housing Revenue Account,Amazon.co.uk 1O57D2AL4,Total Housing Revenue Account,17.98,DIRECT MARKETING-OTHER DIRECT MARKETERS/NOT ELSEW.,2022-23Q4_PC0565
Sandwell Metropolitan Borough Council,http://www.sandwell.gov.uk/info/200202/performance_and_spending/3233/government_procurement_cards,30-Jan-2023,Total Housing Revenue Account,POST OFFICE COUNTER,Total Housing Revenue Account,2.35,POSTAL SERVICES-GOVERNMENT ONLY,2022-23Q4_PC0554
Sandwell Metropolitan Borough Council,http://www.sandwell.gov.uk/info/200202/performance_and_spending/3233/government_procurement_cards,30-Jan-2023,Total Housing Revenue Account,POST OFFICE COUNTER,Total Housing Revenue Account,2.35,POSTAL SERVICES-GOVERNMENT ONLY,2022-23Q4_PC0555
Sandwell Metropolitan Borough Council,http://www.sandwell.gov.uk/info/200202/performance_and_spending/3233/government_procurement_cards,30-Jan-2023,Total Housing Revenue Account,POST OFFICE COUNTER,Total Housing Revenue Account,2.35,POSTAL SERVICES-GOVERNMENT ONLY,2022-23Q4_PC0556
Sandwell Metropolitan Borough Council,http://www.sandwell.gov.uk/info/200202/performance_and_spending/3233/government_procurement_cards,31-Jan-2023,FINANCE (Inc SIU),WWW.OFFICETEAMCONNECT.,Assistant Chief Executive (Excl SIU),-33.36,STATIONERY/OFFICE SUPPLIES/PRINTING & WRITING PAP.,2022-23Q4_PC0597
Sandwell Metropolitan Borough Council,http://www.sandwell.gov.uk/info/200202/performance_and_spending/3233/government_procurement_cards,31-Jan-2023,Childrens Services,LYCO GROUP LTD,Childrens Services,139.7,ELECTRICAL PARTS AND EQUIPMENT,2022-23Q4_PC0594
Sandwell Metropolitan Borough Council,http://www.sandwell.gov.uk/info/200202/performance_and_spending/3233/government_procurement_cards,31-Jan-2023,Childrens Services,TESCO STORES 2770,Childrens Services,105.41,"GROCERY STORES, SUPERMARKETS",2022-23Q4_PC0587
Sandwell Metropolitan Borough Council,http://www.sandwell.gov.uk/info/200202/performance_and_spending/3233/government_procurement_cards,31-Jan-2023,Childrens Services,WWW.OFFICETEAMCONNECT.,Childrens Services,214.01,STATIONERY/OFFICE SUPPLIES/PRINTING & WRITING PAP.,2022-23Q4_PC0599
Sandwell Metropolitan Borough Council,http://www.sandwell.gov.uk/info/200202/performance_and_spending/3233/government_procurement_cards,31-Jan-2023,Individual School Budgets With Inclusion,AMZNMKTPLACE AMAZON.CO,Individual School Budgets With Inclusion,87.78,MISCELLANEOUS AND SPECIALTY RETAIL STORES,2022-23Q4_PC0588
Sandwell Metropolitan Borough Council,http://www.sandwell.gov.uk/info/200202/performance_and_spending/3233/government_procurement_cards,31-Jan-2023,Individual School Budgets With Inclusion,ASDA GROCERIES ONLINE,Individual School Budgets With Inclusion,-6.75,"GROCERY STORES, SUPERMARKETS",2022-23Q4_PC0590
Sandwell Metropolitan Borough Council,http://www.sandwell.gov.uk/info/200202/performance_and_spending/3233/government_procurement_cards,31-Jan-2023,Individual School Budgets With Inclusion,ASDA GROCERIES ONLINE,Individual School Budgets With Inclusion,53.62,"GROCERY STORES, SUPERMARKETS",2022-23Q4_PC0591
Sandwell Metropolitan Borough Council,http://www.sandwell.gov.uk/info/200202/performance_and_spending/3233/government_procurement_cards,31-Jan-2023,Total Business Strategy & Change,AMZNMktplace,Neighbourhoods,89.97,MISCELLANEOUS AND SPECIALTY RETAIL STORES,2022-23Q4_PC0589
Sandwell Metropolitan Borough Council,http://www.sandwell.gov.uk/info/200202/performance_and_spending/3233/government_procurement_cards,31-Jan-2023,Regeneration & Growth,AMZNMktplace,Regeneration And The Economy,18.78,MISCELLANEOUS AND SPECIALTY RETAIL STORES,2022-23Q4_PC0584
Sandwell Metropolitan Borough Council,http://www.sandwell.gov.uk/info/200202/performance_and_spending/3233/government_procurement_cards,31-Jan-2023,Regeneration & Growth,WWW.CSCS.UK.COM,Regeneration And The Economy,36,"ORGANIZATIONS, MEMBERSHIP-NOT ELSEWHERE CLASSIFIED",2022-23Q4_PC0583
Sandwell Metropolitan Borough Council,http://www.sandwell.gov.uk/info/200202/performance_and_spending/3233/government_procurement_cards,31-Jan-2023,Total Borough Economy,AMZNMktplace,Total Adult Social Care,29.01,MISCELLANEOUS AND SPECIALTY RETAIL STORES,2022-23Q4_PC0598
Sandwell Metropolitan Borough Council,http://www.sandwell.gov.uk/info/200202/performance_and_spending/3233/government_procurement_cards,31-Jan-2023,Total ASCHWB,AMZNMktplace,Total Adult Social Care,20.39,MISCELLANEOUS AND SPECIALTY RETAIL STORES,2022-23Q4_PC0601
Sandwell Metropolitan Borough Council,http://www.sandwell.gov.uk/info/200202/performance_and_spending/3233/government_procurement_cards,31-Jan-2023,Total ASCHWB,HOMEBASE LTD 085,Total Adult Social Care,116,HOME SUPPLY WAREHOUSE STORES,2022-23Q4_PC0592
Sandwell Metropolitan Borough Council,http://www.sandwell.gov.uk/info/200202/performance_and_spending/3233/government_procurement_cards,31-Jan-2023,Total ASCHWB,HOMEBASE LTD 085,Total Adult Social Care,30,HOME SUPPLY WAREHOUSE STORES,2022-23Q4_PC0593
Sandwell Metropolitan Borough Council,http://www.sandwell.gov.uk/info/200202/performance_and_spending/3233/government_procurement_cards,31-Jan-2023,Total ASCHWB,POSTURITE LTD,Total Adult Social Care,715.02,MISCELLANEOUS HOUSE FURNISHING SPECIALTY SHOPS,2022-23Q4_PC0600
Sandwell Metropolitan Borough Council,http://www.sandwell.gov.uk/info/200202/performance_and_spending/3233/government_procurement_cards,31-Jan-2023,Total ASCHWB,POUNDLAND LTD 1729,Total Adult Social Care,25,DISCOUNT STORES,2022-23Q4_PC0586
Sandwell Metropolitan Borough Council,http://www.sandwell.gov.uk/info/200202/performance_and_spending/3233/government_procurement_cards,31-Jan-2023,Total Borough Economy,VIKING UK,Total Adult Social Care,105.54,STATIONERY/OFFICE SUPPLIES/PRINTING & WRITING PAP.,2022-23Q4_PC0595
Sandwell Metropolitan Borough Council,http://www.sandwell.gov.uk/info/200202/performance_and_spending/3233/government_procurement_cards,31-Jan-2023,Total Borough Economy,Wm Morrisons Store Pic,Total Adult Social Care,197.46,"GROCERY STORES, SUPERMARKETS",2022-23Q4_PC0585
Sandwell Metropolitan Borough Council,http://www.sandwell.gov.uk/info/200202/performance_and_spending/3233/government_procurement_cards,31-Jan-2023,Total Housing Revenue Account,CAPITA GAS,Total Housing Revenue Account,31.8,"ORGANIZATIONS, MEMBERSHIP-NOT ELSEWHERE CLASSIFIED",2022-23Q4_PC0596
Sandwell Metropolitan Borough Council,http://www.sandwell.gov.uk/info/200202/performance_and_spending/3233/government_procurement_cards,01-Feb-2023,Law & Governance,Costco Wholesale #115,Assistant Chief Executive (Excl SIU),64.71,"BUYING/SHOPPING CLUBS, SERVICES",2022-23Q4_PC0611
Sandwell Metropolitan Borough Council,http://www.sandwell.gov.uk/info/200202/performance_and_spending/3233/government_procurement_cards,01-Feb-2023,Law & Governance,ESSENTIALAIDS.COM LTD,Assistant Chief Executive (Excl SIU),35,DENTAL/LAB/MED/OPHTHALMIC HOSP EQUIP & SUPPLIES,2022-23Q4_PC0609
Sandwell Metropolitan Borough Council,http://www.sandwell.gov.uk/info/200202/performance_and_spending/3233/government_procurement_cards,01-Feb-2023,Law & Governance,SAINSBURYS S/MKTS,Assistant Chief Executive (Excl SIU),10.2,"GROCERY STORES, SUPERMARKETS",2022-23Q4_PC0610
Sandwell Metropolitan Borough Council,http://www.sandwell.gov.uk/info/200202/performance_and_spending/3233/government_procurement_cards,01-Feb-2023,Law & Governance,SAINSBURYS S/MKTS,Assistant Chief Executive (Excl SIU),10,"GROCERY STORES, SUPERMARKETS",2022-23Q4_PC0622
Sandwell Metropolitan Borough Council,http://www.sandwell.gov.uk/info/200202/performance_and_spending/3233/government_procurement_cards,01-Feb-2023,Childrens Services,AMZNMktplace,Childrens Services,56.55,MISCELLANEOUS AND SPECIALTY RETAIL STORES,2022-23Q4_PC0603
Sandwell Metropolitan Borough Council,http://www.sandwell.gov.uk/info/200202/performance_and_spending/3233/government_procurement_cards,01-Feb-2023,Childrens Services,AMZNMktplace,Childrens Services,18.14,MISCELLANEOUS AND SPECIALTY RETAIL STORES,2022-23Q4_PC0607
Sandwell Metropolitan Borough Council,http://www.sandwell.gov.uk/info/200202/performance_and_spending/3233/government_procurement_cards,01-Feb-2023,Childrens Services,AMZNMktplace,Childrens Services,32.85,MISCELLANEOUS AND SPECIALTY RETAIL STORES,2022-23Q4_PC0608
Sandwell Metropolitan Borough Council,http://www.sandwell.gov.uk/info/200202/performance_and_spending/3233/government_procurement_cards,01-Feb-2023,Childrens Services,AMZNMktplace,Childrens Services,134.99,MISCELLANEOUS AND SPECIALTY RETAIL STORES,2022-23Q4_PC0634
Sandwell Metropolitan Borough Council,http://www.sandwell.gov.uk/info/200202/performance_and_spending/3233/government_procurement_cards,01-Feb-2023,Childrens Services,ASDA GROCERIES ONLINE,Childrens Services,-0.9,"GROCERY STORES, SUPERMARKETS",2022-23Q4_PC0635
Sandwell Metropolitan Borough Council,http://www.sandwell.gov.uk/info/200202/performance_and_spending/3233/government_procurement_cards,01-Feb-2023,Childrens Services,ASDA GROCERIES ONLINE,Childrens Services,112.61,"GROCERY STORES, SUPERMARKETS",2022-23Q4_PC0636
Sandwell Metropolitan Borough Council,http://www.sandwell.gov.uk/info/200202/performance_and_spending/3233/government_procurement_cards,01-Feb-2023,Childrens Services,Klarna poundshop.com,Childrens Services,50.5,MISCELLANEOUS AND SPECIALTY RETAIL STORES,2022-23Q4_PC0625
Sandwell Metropolitan Borough Council,http://www.sandwell.gov.uk/info/200202/performance_and_spending/3233/government_procurement_cards,01-Feb-2023,Childrens Services,Premier Farnell,Childrens Services,68.6,ELECTRICAL PARTS AND EQUIPMENT,2022-23Q4_PC0619
Sandwell Metropolitan Borough Council,http://www.sandwell.gov.uk/info/200202/performance_and_spending/3233/government_procurement_cards,01-Feb-2023,Childrens Services,SAINSBURYS S/MKTS,Childrens Services,34.85,"GROCERY STORES, SUPERMARKETS",2022-23Q4_PC0616
Sandwell Metropolitan Borough Council,http://www.sandwell.gov.uk/info/200202/performance_and_spending/3233/government_procurement_cards,01-Feb-2023,Childrens Services,SpaceHoppers PlayZone,Childrens Services,204.05,"AMUSEMENT PARKS,CARNIVALS,CIRCUS,FORTUNE TELLERS",2022-23Q4_PC0626
Sandwell Metropolitan Borough Council,http://www.sandwell.gov.uk/info/200202/performance_and_spending/3233/government_procurement_cards,01-Feb-2023,Childrens Services,THE HOSPICE CHARITY PA,Childrens Services,10,"ORGANIZATIONS, CHARITABLE AND SOCIAL SERVICES",2022-23Q4_PC0620
Sandwell Metropolitan Borough Council,http://www.sandwell.gov.uk/info/200202/performance_and_spending/3233/government_procurement_cards,01-Feb-2023,Childrens Services,THE RANGE,Childrens Services,62.99,MISCELLANEOUS HOUSE FURNISHING SPECIALTY SHOPS,2022-23Q4_PC0621
Sandwell Metropolitan Borough Council,http://www.sandwell.gov.uk/info/200202/performance_and_spending/3233/government_procurement_cards,01-Feb-2023,Housing & Assets Total,AMZNMktplace,Corporate Management,100.77,MISCELLANEOUS AND SPECIALTY RETAIL STORES,2022-23Q4_PC0624
Sandwell Metropolitan Borough Council,http://www.sandwell.gov.uk/info/200202/performance_and_spending/3233/government_procurement_cards,01-Feb-2023,Housing & Assets Total,AMZNMKTPLACE AMAZON.CO,Corporate Management,66.47,MISCELLANEOUS AND SPECIALTY RETAIL STORES,2022-23Q4_PC0623
Sandwell Metropolitan Borough Council,http://www.sandwell.gov.uk/info/200202/performance_and_spending/3233/government_procurement_cards,01-Feb-2023,Housing & Assets Total,TIMPSON LTD,Corporate Management,12,MISCELLANEOUS AND SPECIALTY RETAIL STORES,2022-23Q4_PC0617
Sandwell Metropolitan Borough Council,http://www.sandwell.gov.uk/info/200202/performance_and_spending/3233/government_procurement_cards,01-Feb-2023,Law & Governance,SAINSBURYS S/MKTS,Dead SeRCOP,29.8,"GROCERY STORES, SUPERMARKETS",2022-23Q4_PC0637
Sandwell Metropolitan Borough Council,http://www.sandwell.gov.uk/info/200202/performance_and_spending/3233/government_procurement_cards,01-Feb-2023,Individual School Budgets With Inclusion,AMZNMktplace,Individual School Budgets With Inclusion,68.9,MISCELLANEOUS AND SPECIALTY RETAIL STORES,2022-23Q4_PC0615
Sandwell Metropolitan Borough Council,http://www.sandwell.gov.uk/info/200202/performance_and_spending/3233/government_procurement_cards,01-Feb-2023,Individual School Budgets With Inclusion,AMZNMKTPLACE AMAZON.CO,Individual School Budgets With Inclusion,27.96,MISCELLANEOUS AND SPECIALTY RETAIL STORES,2022-23Q4_PC0613
Sandwell Metropolitan Borough Council,http://www.sandwell.gov.uk/info/200202/performance_and_spending/3233/government_procurement_cards,01-Feb-2023,Individual School Budgets With Inclusion,WWW.OFFICETEAMCONNECT.,Individual School Budgets With Inclusion,290.84,STATIONERY/OFFICE SUPPLIES/PRINTING & WRITING PAP.,2022-23Q4_PC0614
Sandwell Metropolitan Borough Council,http://www.sandwell.gov.uk/info/200202/performance_and_spending/3233/government_procurement_cards,01-Feb-2023,Total Public Health,J D SPORTS PLC,Public Health,10,SPORTING GOODS STORES,2022-23Q4_PC0627
Sandwell Metropolitan Borough Council,http://www.sandwell.gov.uk/info/200202/performance_and_spending/3233/government_procurement_cards,01-Feb-2023,Total Public Health,J D SPORTS PLC,Public Health,10,SPORTING GOODS STORES,2022-23Q4_PC0628
Sandwell Metropolitan Borough Council,http://www.sandwell.gov.uk/info/200202/performance_and_spending/3233/government_procurement_cards,01-Feb-2023,Total Public Health,J D SPORTS PLC,Public Health,10,SPORTING GOODS STORES,2022-23Q4_PC0629
Sandwell Metropolitan Borough Council,http://www.sandwell.gov.uk/info/200202/performance_and_spending/3233/government_procurement_cards,01-Feb-2023,Total Public Health,J D SPORTS PLC,Public Health,10,SPORTING GOODS STORES,2022-23Q4_PC0630
Sandwell Metropolitan Borough Council,http://www.sandwell.gov.uk/info/200202/performance_and_spending/3233/government_procurement_cards,01-Feb-2023,Total Public Health,J D SPORTS PLC,Public Health,10,SPORTING GOODS STORES,2022-23Q4_PC0631
Sandwell Metropolitan Borough Council,http://www.sandwell.gov.uk/info/200202/performance_and_spending/3233/government_procurement_cards,01-Feb-2023,Total ASCHWB,AMZNMktplace,Total Adult Social Care,129.9,MISCELLANEOUS AND SPECIALTY RETAIL STORES,2022-23Q4_PC0606
Sandwell Metropolitan Borough Council,http://www.sandwell.gov.uk/info/200202/performance_and_spending/3233/government_procurement_cards,01-Feb-2023,Total Borough Economy,AMZNMktplace,Total Adult Social Care,21.18,MISCELLANEOUS AND SPECIALTY RETAIL STORES,2022-23Q4_PC0612
Sandwell Metropolitan Borough Council,http://www.sandwell.gov.uk/info/200202/performance_and_spending/3233/government_procurement_cards,01-Feb-2023,Total ASCHWB,AMZNMKTPLACE AMAZON.CO,Total Adult Social Care,72.9,MISCELLANEOUS AND SPECIALTY RETAIL STORES,2022-23Q4_PC0604
Sandwell Metropolitan Borough Council,http://www.sandwell.gov.uk/info/200202/performance_and_spending/3233/government_procurement_cards,01-Feb-2023,Total Borough Economy,GRESHAM OFFICE FURNITU,Total Adult Social Care,271.2,OFFICE AND COMMERCIAL FURNITURE,2022-23Q4_PC0641
Sandwell Metropolitan Borough Council,http://www.sandwell.gov.uk/info/200202/performance_and_spending/3233/government_procurement_cards,01-Feb-2023,Total ASCHWB,SAFELINCS,Total Adult Social Care,91.36,MISCELLANEOUS AND SPECIALTY RETAIL STORES,2022-23Q4_PC0605
Sandwell Metropolitan Borough Council,http://www.sandwell.gov.uk/info/200202/performance_and_spending/3233/government_procurement_cards,01-Feb-2023,Total Borough Economy,SumUp   Oakdene Nurser,Total Adult Social Care,120,MISCELLANEOUS AND SPECIALTY RETAIL STORES,2022-23Q4_PC0640
Sandwell Metropolitan Borough Council,http://www.sandwell.gov.uk/info/200202/performance_and_spending/3233/government_procurement_cards,01-Feb-2023,Total Borough Economy,Vistaprint,Total Adult Social Care,22.04,BUSINESS SERVICES-NOT ELSEWHERE CLASSIFIED,2022-23Q4_PC0618
Sandwell Metropolitan Borough Council,http://www.sandwell.gov.uk/info/200202/performance_and_spending/3233/government_procurement_cards,01-Feb-2023,Total Borough Economy,WWW.MASTERJECT.COM,Total Adult Social Care,46,MISCELLANEOUS AND SPECIALTY RETAIL STORES,2022-23Q4_PC0638
Sandwell Metropolitan Borough Council,http://www.sandwell.gov.uk/info/200202/performance_and_spending/3233/government_procurement_cards,01-Feb-2023,Total Borough Economy,WWW.OFFICETEAMCONNECT.,Total Adult Social Care,16.85,STATIONERY/OFFICE SUPPLIES/PRINTING & WRITING PAP.,2022-23Q4_PC0639
Sandwell Metropolitan Borough Council,http://www.sandwell.gov.uk/info/200202/performance_and_spending/3233/government_procurement_cards,01-Feb-2023,Total Borough Economy,WWW.PRESCO-UK.COM,Total Adult Social Care,167.75,"OFFICE, SCHOOL SUPPLY, AND STATIONERY STORES",2022-23Q4_PC0602
Sandwell Metropolitan Borough Council,http://www.sandwell.gov.uk/info/200202/performance_and_spending/3233/government_procurement_cards,01-Feb-2023,Total Housing Revenue Account,KANE INTERNATIONAL LTD,Total Housing Revenue Account,1009.92,ELECTRONIC SALES,2022-23Q4_PC0632
Sandwell Metropolitan Borough Council,http://www.sandwell.gov.uk/info/200202/performance_and_spending/3233/government_procurement_cards,01-Feb-2023,Total Housing Revenue Account,Staffordshire Builder,Total Housing Revenue Account,103.5,"BUILDING MATERIALS, LUMBER STORES",2022-23Q4_PC0633
Sandwell Metropolitan Borough Council,http://www.sandwell.gov.uk/info/200202/performance_and_spending/3233/government_procurement_cards,02-Feb-2023,Total Business Strategy & Change,CLOUD 5xF266,Assistant Chief Executive (Excl SIU),278.35,DIGITAL GOODS SOFTWARE APPLICATIONS,2022-23Q4_PC0667
Sandwell Metropolitan Borough Council,http://www.sandwell.gov.uk/info/200202/performance_and_spending/3233/government_procurement_cards,02-Feb-2023,Total Business Strategy & Change,P AND A MEDICAL LIMITE,Assistant Chief Executive (Excl SIU),51,DENTAL/LAB/MED/OPHTHALMIC HOSP EQUIP & SUPPLIES,2022-23Q4_PC0665
Sandwell Metropolitan Borough Council,http://www.sandwell.gov.uk/info/200202/performance_and_spending/3233/government_procurement_cards,02-Feb-2023,Total Business Strategy & Change,VIKING UK,Assistant Chief Executive (Excl SIU),78.57,STATIONERY/OFFICE SUPPLIES/PRINTING & WRITING PAP.,2022-23Q4_PC0655
Sandwell Metropolitan Borough Council,http://www.sandwell.gov.uk/info/200202/performance_and_spending/3233/government_procurement_cards,02-Feb-2023,Childrens Services,AMZNMktplace,Childrens Services,124.95,MISCELLANEOUS AND SPECIALTY RETAIL STORES,2022-23Q4_PC0661
Sandwell Metropolitan Borough Council,http://www.sandwell.gov.uk/info/200202/performance_and_spending/3233/government_procurement_cards,02-Feb-2023,Childrens Services,AMZNMktplace,Childrens Services,23.88,MISCELLANEOUS AND SPECIALTY RETAIL STORES,2022-23Q4_PC0673
Sandwell Metropolitan Borough Council,http://www.sandwell.gov.uk/info/200202/performance_and_spending/3233/government_procurement_cards,02-Feb-2023,Childrens Services,AMZNMktplace,Childrens Services,33.94,MISCELLANEOUS AND SPECIALTY RETAIL STORES,2022-23Q4_PC0674
Sandwell Metropolitan Borough Council,http://www.sandwell.gov.uk/info/200202/performance_and_spending/3233/government_procurement_cards,02-Feb-2023,Childrens Services,AMZNMktplace,Childrens Services,65.78,MISCELLANEOUS AND SPECIALTY RETAIL STORES,2022-23Q4_PC0675
Sandwell Metropolitan Borough Council,http://www.sandwell.gov.uk/info/200202/performance_and_spending/3233/government_procurement_cards,02-Feb-2023,Childrens Services,AMZNMKTPLACE AMAZON.CO,Childrens Services,46.99,MISCELLANEOUS AND SPECIALTY RETAIL STORES,2022-23Q4_PC0648
Sandwell Metropolitan Borough Council,http://www.sandwell.gov.uk/info/200202/performance_and_spending/3233/government_procurement_cards,02-Feb-2023,Childrens Services,AMZNMKTPLACE AMAZON.CO,Childrens Services,19.7,MISCELLANEOUS AND SPECIALTY RETAIL STORES,2022-23Q4_PC0670
Sandwell Metropolitan Borough Council,http://www.sandwell.gov.uk/info/200202/performance_and_spending/3233/government_procurement_cards,02-Feb-2023,Childrens Services,AMZNMKTPLACE AMAZON.CO,Childrens Services,13.58,MISCELLANEOUS AND SPECIALTY RETAIL STORES,2022-23Q4_PC0671
Sandwell Metropolitan Borough Council,http://www.sandwell.gov.uk/info/200202/performance_and_spending/3233/government_procurement_cards,02-Feb-2023,Childrens Services,AMZNMKTPLACE AMAZON.CO,Childrens Services,31.96,MISCELLANEOUS AND SPECIALTY RETAIL STORES,2022-23Q4_PC0672
Sandwell Metropolitan Borough Council,http://www.sandwell.gov.uk/info/200202/performance_and_spending/3233/government_procurement_cards,02-Feb-2023,Childrens Services,AMZNMKTPLACE AMAZON.CO,Childrens Services,19.78,MISCELLANEOUS AND SPECIALTY RETAIL STORES,2022-23Q4_PC0676
Sandwell Metropolitan Borough Council,http://www.sandwell.gov.uk/info/200202/performance_and_spending/3233/government_procurement_cards,02-Feb-2023,Childrens Services,AMZNMKTPLACE AMAZON.CO,Childrens Services,55,MISCELLANEOUS AND SPECIALTY RETAIL STORES,2022-23Q4_PC0677
Sandwell Metropolitan Borough Council,http://www.sandwell.gov.uk/info/200202/performance_and_spending/3233/government_procurement_cards,02-Feb-2023,Childrens Services,B&M 200 - MARKET DRAYT,Childrens Services,11.92,MISCELLANEOUS GENERAL MERCHANDISE,2022-23Q4_PC0651
Sandwell Metropolitan Borough Council,http://www.sandwell.gov.uk/info/200202/performance_and_spending/3233/government_procurement_cards,02-Feb-2023,Childrens Services,Canva  03683-19011520,Childrens Services,99.99,"COMMERCIAL ART, GRAPHICS, PHOTOGRAPHY",2022-23Q4_PC0656
Sandwell Metropolitan Borough Council,http://www.sandwell.gov.uk/info/200202/performance_and_spending/3233/government_procurement_cards,02-Feb-2023,Childrens Services,GOMPELS HEALTHCARE,Childrens Services,181.11,WHOLESALE CLUBS,2022-23Q4_PC0684
Sandwell Metropolitan Borough Council,http://www.sandwell.gov.uk/info/200202/performance_and_spending/3233/government_procurement_cards,02-Feb-2023,Childrens Services,Hobbycraft Trading Lim,Childrens Services,30,"ARTIST SUPPLY STORES, CRAFT SHOPS",2022-23Q4_PC0685
Sandwell Metropolitan Borough Council,http://www.sandwell.gov.uk/info/200202/performance_and_spending/3233/government_procurement_cards,02-Feb-2023,Childrens Services,MATTRESSNEXTDAY,Childrens Services,476,"EQUIP, FURNITURE, HOME FURNSHNGS STRS (EXCPT APPL)",2022-23Q4_PC0650
Sandwell Metropolitan Borough Council,http://www.sandwell.gov.uk/info/200202/performance_and_spending/3233/government_procurement_cards,02-Feb-2023,Childrens Services,MATTRESSNEXTDAY,Childrens Services,357,"EQUIP, FURNITURE, HOME FURNSHNGS STRS (EXCPT APPL)",2022-23Q4_PC0652
Sandwell Metropolitan Borough Council,http://www.sandwell.gov.uk/info/200202/performance_and_spending/3233/government_procurement_cards,02-Feb-2023,Childrens Services,SCREWFIX DIRECT,Childrens Services,9.99,"BUILDING MATERIALS, LUMBER STORES",2022-23Q4_PC0647
Sandwell Metropolitan Borough Council,http://www.sandwell.gov.uk/info/200202/performance_and_spending/3233/government_procurement_cards,02-Feb-2023,Childrens Services,SumUp   Seasons Veg Bo,Childrens Services,197.1,LIMOUSINES AND TAXICABS,2022-23Q4_PC0669
Sandwell Metropolitan Borough Council,http://www.sandwell.gov.uk/info/200202/performance_and_spending/3233/government_procurement_cards,02-Feb-2023,Childrens Services,TESCO STORES 2770,Childrens Services,67.86,"GROCERY STORES, SUPERMARKETS",2022-23Q4_PC0649
Sandwell Metropolitan Borough Council,http://www.sandwell.gov.uk/info/200202/performance_and_spending/3233/government_procurement_cards,02-Feb-2023,Childrens Services,TESCO SUBSCRIPTION,Childrens Services,7.99,DIRECT MARKETING-CONTINUITY/SUBSCRIPTION MERCHANTS,2022-23Q4_PC0645
Sandwell Metropolitan Borough Council,http://www.sandwell.gov.uk/info/200202/performance_and_spending/3233/government_procurement_cards,02-Feb-2023,Childrens Services,WWW.NISBETS.COM,Childrens Services,130.21,DIRECT MARKETING-CATALOG MERCHANTS,2022-23Q4_PC0668
Sandwell Metropolitan Borough Council,http://www.sandwell.gov.uk/info/200202/performance_and_spending/3233/government_procurement_cards,02-Feb-2023,Childrens Services,WWW.SCREWFIX.COM,Childrens Services,28.99,"BUILDING MATERIALS, LUMBER STORES",2022-23Q4_PC0646
Sandwell Metropolitan Borough Council,http://www.sandwell.gov.uk/info/200202/performance_and_spending/3233/government_procurement_cards,02-Feb-2023,Law & Governance,trainline,Dead SeRCOP,255.35,PASSENGER RAILWAYS,2022-23Q4_PC0686
Sandwell Metropolitan Borough Council,http://www.sandwell.gov.uk/info/200202/performance_and_spending/3233/government_procurement_cards,02-Feb-2023,Individual School Budgets With Inclusion,AMZNMktplace,Individual School Budgets With Inclusion,51.16,MISCELLANEOUS AND SPECIALTY RETAIL STORES,2022-23Q4_PC0642
Sandwell Metropolitan Borough Council,http://www.sandwell.gov.uk/info/200202/performance_and_spending/3233/government_procurement_cards,02-Feb-2023,Individual School Budgets With Inclusion,AMZNMktplace,Individual School Budgets With Inclusion,44.24,MISCELLANEOUS AND SPECIALTY RETAIL STORES,2022-23Q4_PC0643
Sandwell Metropolitan Borough Council,http://www.sandwell.gov.uk/info/200202/performance_and_spending/3233/government_procurement_cards,02-Feb-2023,Total Public Health,Amazon Prime 1O1BS22T4,Public Health,8.99,DIRECT MARKETING-CONTINUITY/SUBSCRIPTION MERCHANTS,2022-23Q4_PC0679
Sandwell Metropolitan Borough Council,http://www.sandwell.gov.uk/info/200202/performance_and_spending/3233/government_procurement_cards,02-Feb-2023,Total Public Health,AMZNMKTPLACE AMAZON.CO,Public Health,101.11,MISCELLANEOUS AND SPECIALTY RETAIL STORES,2022-23Q4_PC0678
Sandwell Metropolitan Borough Council,http://www.sandwell.gov.uk/info/200202/performance_and_spending/3233/government_procurement_cards,02-Feb-2023,Regeneration & Growth,AMZ Amazon.co.uk,Regeneration And The Economy,-16.22,DIRECT MARKETING-OTHER DIRECT MARKETERS/NOT ELSEW.,2022-23Q4_PC0687
Sandwell Metropolitan Borough Council,http://www.sandwell.gov.uk/info/200202/performance_and_spending/3233/government_procurement_cards,02-Feb-2023,Regeneration & Growth,WWW.SCREWFIX.COM,Regeneration And The Economy,18.09,"BUILDING MATERIALS, LUMBER STORES",2022-23Q4_PC0681
Sandwell Metropolitan Borough Council,http://www.sandwell.gov.uk/info/200202/performance_and_spending/3233/government_procurement_cards,02-Feb-2023,Total Borough Economy,Amazon.co.uk 1O38007M4,Total Adult Social Care,16.99,DIRECT MARKETING-OTHER DIRECT MARKETERS/NOT ELSEW.,2022-23Q4_PC0657
Sandwell Metropolitan Borough Council,http://www.sandwell.gov.uk/info/200202/performance_and_spending/3233/government_procurement_cards,02-Feb-2023,Total Borough Economy,Amazon.co.uk 1O6B772W4,Total Adult Social Care,16.99,DIRECT MARKETING-OTHER DIRECT MARKETERS/NOT ELSEW.,2022-23Q4_PC0659
Sandwell Metropolitan Borough Council,http://www.sandwell.gov.uk/info/200202/performance_and_spending/3233/government_procurement_cards,02-Feb-2023,Total Borough Economy,Amazon.co.uk 1O7WK17W4,Total Adult Social Care,16.99,DIRECT MARKETING-OTHER DIRECT MARKETERS/NOT ELSEW.,2022-23Q4_PC0658
Sandwell Metropolitan Borough Council,http://www.sandwell.gov.uk/info/200202/performance_and_spending/3233/government_procurement_cards,02-Feb-2023,Total Borough Economy,Amazon.co.uk 1O86Q8704,Total Adult Social Care,16.99,DIRECT MARKETING-OTHER DIRECT MARKETERS/NOT ELSEW.,2022-23Q4_PC0660
Sandwell Metropolitan Borough Council,http://www.sandwell.gov.uk/info/200202/performance_and_spending/3233/government_procurement_cards,02-Feb-2023,Total Borough Economy,Amazon.co.uk 1O9T12KO4,Total Adult Social Care,24.63,DIRECT MARKETING-OTHER DIRECT MARKETERS/NOT ELSEW.,2022-23Q4_PC0662
Sandwell Metropolitan Borough Council,http://www.sandwell.gov.uk/info/200202/performance_and_spending/3233/government_procurement_cards,02-Feb-2023,Total ASCHWB,AMZNMktplace,Total Adult Social Care,50.71,MISCELLANEOUS AND SPECIALTY RETAIL STORES,2022-23Q4_PC0653
Sandwell Metropolitan Borough Council,http://www.sandwell.gov.uk/info/200202/performance_and_spending/3233/government_procurement_cards,02-Feb-2023,Total ASCHWB,AMZNMKTPLACE AMAZON.CO,Total Adult Social Care,29.98,MISCELLANEOUS AND SPECIALTY RETAIL STORES,2022-23Q4_PC0654
Sandwell Metropolitan Borough Council,http://www.sandwell.gov.uk/info/200202/performance_and_spending/3233/government_procurement_cards,02-Feb-2023,Total ASCHWB,B & Q 1276,Total Adult Social Care,74.5,HOME SUPPLY WAREHOUSE STORES,2022-23Q4_PC0666
Sandwell Metropolitan Borough Council,http://www.sandwell.gov.uk/info/200202/performance_and_spending/3233/government_procurement_cards,02-Feb-2023,Total Borough Economy,CLOUD TB2zNQ,Total Adult Social Care,21.01,BUSINESS SERVICES-NOT ELSEWHERE CLASSIFIED,2022-23Q4_PC0644
Sandwell Metropolitan Borough Council,http://www.sandwell.gov.uk/info/200202/performance_and_spending/3233/government_procurement_cards,02-Feb-2023,Total Borough Economy,LOCKSTATION,Total Adult Social Care,57.43,MISCELLANEOUS GENERAL MERCHANDISE,2022-23Q4_PC0689
Sandwell Metropolitan Borough Council,http://www.sandwell.gov.uk/info/200202/performance_and_spending/3233/government_procurement_cards,02-Feb-2023,Total Borough Economy,Trainline.COM,Total Adult Social Care,22.1,PASSENGER RAILWAYS,2022-23Q4_PC0680
Sandwell Metropolitan Borough Council,http://www.sandwell.gov.uk/info/200202/performance_and_spending/3233/government_procurement_cards,02-Feb-2023,Total Borough Economy,WWW.OFFICETEAMCONNECT.,Total Adult Social Care,325.56,STATIONERY/OFFICE SUPPLIES/PRINTING & WRITING PAP.,2022-23Q4_PC0688
Sandwell Metropolitan Borough Council,http://www.sandwell.gov.uk/info/200202/performance_and_spending/3233/government_procurement_cards,02-Feb-2023,Total Housing Revenue Account,AMZNMKTPLACE AMAZON.CO,Total Housing Revenue Account,475,MISCELLANEOUS AND SPECIALTY RETAIL STORES,2022-23Q4_PC0683
Sandwell Metropolitan Borough Council,http://www.sandwell.gov.uk/info/200202/performance_and_spending/3233/government_procurement_cards,02-Feb-2023,Total Housing Revenue Account,POST OFFICE COUNTER,Total Housing Revenue Account,95,POSTAL SERVICES-GOVERNMENT ONLY,2022-23Q4_PC0663
Sandwell Metropolitan Borough Council,http://www.sandwell.gov.uk/info/200202/performance_and_spending/3233/government_procurement_cards,02-Feb-2023,Total Housing Revenue Account,POST OFFICE COUNTER,Total Housing Revenue Account,95,POSTAL SERVICES-GOVERNMENT ONLY,2022-23Q4_PC0664
Sandwell Metropolitan Borough Council,http://www.sandwell.gov.uk/info/200202/performance_and_spending/3233/government_procurement_cards,02-Feb-2023,Total Housing Revenue Account,WWW.OFFICETEAMCONNECT.,Total Housing Revenue Account,101.04,STATIONERY/OFFICE SUPPLIES/PRINTING & WRITING PAP.,2022-23Q4_PC0682
Sandwell Metropolitan Borough Council,http://www.sandwell.gov.uk/info/200202/performance_and_spending/3233/government_procurement_cards,03-Feb-2023,Law & Governance,ALDI 42 772,Assistant Chief Executive (Excl SIU),31.15,"GROCERY STORES, SUPERMARKETS",2022-23Q4_PC0701
Sandwell Metropolitan Borough Council,http://www.sandwell.gov.uk/info/200202/performance_and_spending/3233/government_procurement_cards,03-Feb-2023,Law & Governance,AMZNMktplace,Assistant Chief Executive (Excl SIU),15.99,MISCELLANEOUS AND SPECIALTY RETAIL STORES,2022-23Q4_PC0731
Sandwell Metropolitan Borough Council,http://www.sandwell.gov.uk/info/200202/performance_and_spending/3233/government_procurement_cards,03-Feb-2023,Childrens Services,Amazon.co.uk 1O3Q38I54,Childrens Services,9.99,DIRECT MARKETING-OTHER DIRECT MARKETERS/NOT ELSEW.,2022-23Q4_PC0729
Sandwell Metropolitan Borough Council,http://www.sandwell.gov.uk/info/200202/performance_and_spending/3233/government_procurement_cards,03-Feb-2023,Childrens Services,AMZNMktplace,Childrens Services,18.99,MISCELLANEOUS AND SPECIALTY RETAIL STORES,2022-23Q4_PC0704
Sandwell Metropolitan Borough Council,http://www.sandwell.gov.uk/info/200202/performance_and_spending/3233/government_procurement_cards,03-Feb-2023,Childrens Services,AMZNMktplace,Childrens Services,26.07,MISCELLANEOUS AND SPECIALTY RETAIL STORES,2022-23Q4_PC0708
Sandwell Metropolitan Borough Council,http://www.sandwell.gov.uk/info/200202/performance_and_spending/3233/government_procurement_cards,03-Feb-2023,Childrens Services,AMZNMktplace,Childrens Services,13.7,MISCELLANEOUS AND SPECIALTY RETAIL STORES,2022-23Q4_PC0709
Sandwell Metropolitan Borough Council,http://www.sandwell.gov.uk/info/200202/performance_and_spending/3233/government_procurement_cards,03-Feb-2023,Childrens Services,AMZNMktplace,Childrens Services,29.85,MISCELLANEOUS AND SPECIALTY RETAIL STORES,2022-23Q4_PC0717
Sandwell Metropolitan Borough Council,http://www.sandwell.gov.uk/info/200202/performance_and_spending/3233/government_procurement_cards,03-Feb-2023,Childrens Services,AMZNMKTPLACE AMAZON.CO,Childrens Services,38.06,MISCELLANEOUS AND SPECIALTY RETAIL STORES,2022-23Q4_PC0714
Sandwell Metropolitan Borough Council,http://www.sandwell.gov.uk/info/200202/performance_and_spending/3233/government_procurement_cards,03-Feb-2023,Childrens Services,CabCard Services UK,Childrens Services,140,LIMOUSINES AND TAXICABS,2022-23Q4_PC0707
Sandwell Metropolitan Borough Council,http://www.sandwell.gov.uk/info/200202/performance_and_spending/3233/government_procurement_cards,03-Feb-2023,Childrens Services,ROYAL MAIL GROUP LTD,Childrens Services,8.1,POSTAL SERVICES-GOVERNMENT ONLY,2022-23Q4_PC0715
Sandwell Metropolitan Borough Council,http://www.sandwell.gov.uk/info/200202/performance_and_spending/3233/government_procurement_cards,03-Feb-2023,Childrens Services,ROYAL MAIL GROUP LTD,Childrens Services,2.7,POSTAL SERVICES-GOVERNMENT ONLY,2022-23Q4_PC0716
Sandwell Metropolitan Borough Council,http://www.sandwell.gov.uk/info/200202/performance_and_spending/3233/government_procurement_cards,03-Feb-2023,Childrens Services,WEST MIDLANDS TRAV,Childrens Services,206.34,BUS LINES,2022-23Q4_PC0730
Sandwell Metropolitan Borough Council,http://www.sandwell.gov.uk/info/200202/performance_and_spending/3233/government_procurement_cards,03-Feb-2023,Housing & Assets Total,WWW.OFFICETEAMCONNECT.,Corporate Management,211.68,STATIONERY/OFFICE SUPPLIES/PRINTING & WRITING PAP.,2022-23Q4_PC0733
Sandwell Metropolitan Borough Council,http://www.sandwell.gov.uk/info/200202/performance_and_spending/3233/government_procurement_cards,03-Feb-2023,Individual School Budgets With Inclusion,AMZNMKTPLACE AMAZON.CO,Individual School Budgets With Inclusion,35.47,MISCELLANEOUS AND SPECIALTY RETAIL STORES,2022-23Q4_PC0690
Sandwell Metropolitan Borough Council,http://www.sandwell.gov.uk/info/200202/performance_and_spending/3233/government_procurement_cards,03-Feb-2023,Individual School Budgets With Inclusion,AMZNMKTPLACE AMAZON.CO,Individual School Budgets With Inclusion,79.45,MISCELLANEOUS AND SPECIALTY RETAIL STORES,2022-23Q4_PC0692
Sandwell Metropolitan Borough Council,http://www.sandwell.gov.uk/info/200202/performance_and_spending/3233/government_procurement_cards,03-Feb-2023,Individual School Budgets With Inclusion,AMZNMKTPLACE AMAZON.CO,Individual School Budgets With Inclusion,59.74,MISCELLANEOUS AND SPECIALTY RETAIL STORES,2022-23Q4_PC0693
Sandwell Metropolitan Borough Council,http://www.sandwell.gov.uk/info/200202/performance_and_spending/3233/government_procurement_cards,03-Feb-2023,Individual School Budgets With Inclusion,KELLYMAHLER,Individual School Budgets With Inclusion,57.75,SCHOOLS & EDUCATIONAL SVC-NOT ELSEWHERE CLASSIFIED,2022-23Q4_PC0706
Sandwell Metropolitan Borough Council,http://www.sandwell.gov.uk/info/200202/performance_and_spending/3233/government_procurement_cards,03-Feb-2023,Individual School Budgets With Inclusion,RENTOKIL PEST CONT,Individual School Budgets With Inclusion,351.83,EXTERMINATING AND DISINFECTING SERVICES,2022-23Q4_PC0691
Sandwell Metropolitan Borough Council,http://www.sandwell.gov.uk/info/200202/performance_and_spending/3233/government_procurement_cards,03-Feb-2023,Individual School Budgets With Inclusion,WWW.OFFICETEAMCONNECT.,Individual School Budgets With Inclusion,145.5,STATIONERY/OFFICE SUPPLIES/PRINTING & WRITING PAP.,2022-23Q4_PC0705
Sandwell Metropolitan Borough Council,http://www.sandwell.gov.uk/info/200202/performance_and_spending/3233/government_procurement_cards,03-Feb-2023,Total Public Health,AMZ CKB LTD,Public Health,-19.99,MISCELLANEOUS AND SPECIALTY RETAIL STORES,2022-23Q4_PC0699
Sandwell Metropolitan Borough Council,http://www.sandwell.gov.uk/info/200202/performance_and_spending/3233/government_procurement_cards,03-Feb-2023,Total Public Health,AMZNMKTPLACE AMAZON.CO,Public Health,55.99,MISCELLANEOUS AND SPECIALTY RETAIL STORES,2022-23Q4_PC0710
Sandwell Metropolitan Borough Council,http://www.sandwell.gov.uk/info/200202/performance_and_spending/3233/government_procurement_cards,03-Feb-2023,Total Public Health,CIM,Public Health,540,SCHOOLS & EDUCATIONAL SVC-NOT ELSEWHERE CLASSIFIED,2022-23Q4_PC0712
Sandwell Metropolitan Borough Council,http://www.sandwell.gov.uk/info/200202/performance_and_spending/3233/government_procurement_cards,03-Feb-2023,Total Public Health,COLLECT SAME DAY,Public Health,290.82,"COURIER SVC-AIR & GROUND, FREIGHT FORWARDERS",2022-23Q4_PC0711
Sandwell Metropolitan Borough Council,http://www.sandwell.gov.uk/info/200202/performance_and_spending/3233/government_procurement_cards,03-Feb-2023,Total Public Health,Just Eat,Public Health,96.57,FAST FOOD RESTAURANTS,2022-23Q4_PC0719
Sandwell Metropolitan Borough Council,http://www.sandwell.gov.uk/info/200202/performance_and_spending/3233/government_procurement_cards,03-Feb-2023,Total Public Health,The Fish & Chip Shop,Public Health,8.25,FAST FOOD RESTAURANTS,2022-23Q4_PC0718
Sandwell Metropolitan Borough Council,http://www.sandwell.gov.uk/info/200202/performance_and_spending/3233/government_procurement_cards,03-Feb-2023,Regeneration & Growth,CENTRE FOR ASSESSMENT,Regeneration And The Economy,1483.79,SCHOOLS & EDUCATIONAL SVC-NOT ELSEWHERE CLASSIFIED,2022-23Q4_PC0695
Sandwell Metropolitan Borough Council,http://www.sandwell.gov.uk/info/200202/performance_and_spending/3233/government_procurement_cards,03-Feb-2023,Regeneration & Growth,CHRIS BRAIN ASSOCIATES,Regeneration And The Economy,990,"CONSULTING, MANAGEMENT, AND PUBLIC RELATIONS SVCS",2022-23Q4_PC0694
Sandwell Metropolitan Borough Council,http://www.sandwell.gov.uk/info/200202/performance_and_spending/3233/government_procurement_cards,03-Feb-2023,Total Borough Economy,Amazon.co.uk 1O2L52IC4,Total Adult Social Care,17.97,DIRECT MARKETING-OTHER DIRECT MARKETERS/NOT ELSEW.,2022-23Q4_PC0726
Sandwell Metropolitan Borough Council,http://www.sandwell.gov.uk/info/200202/performance_and_spending/3233/government_procurement_cards,03-Feb-2023,Total ASCHWB,Amazon.co.uk 1O43U8674,Total Adult Social Care,18.98,DIRECT MARKETING-OTHER DIRECT MARKETERS/NOT ELSEW.,2022-23Q4_PC0700
Sandwell Metropolitan Borough Council,http://www.sandwell.gov.uk/info/200202/performance_and_spending/3233/government_procurement_cards,03-Feb-2023,Total ASCHWB,AMZNMktplace,Total Adult Social Care,102,MISCELLANEOUS AND SPECIALTY RETAIL STORES,2022-23Q4_PC0698
Sandwell Metropolitan Borough Council,http://www.sandwell.gov.uk/info/200202/performance_and_spending/3233/government_procurement_cards,03-Feb-2023,Total ASCHWB,AMZNMktplace,Total Adult Social Care,47.45,MISCELLANEOUS AND SPECIALTY RETAIL STORES,2022-23Q4_PC0702
Sandwell Metropolitan Borough Council,http://www.sandwell.gov.uk/info/200202/performance_and_spending/3233/government_procurement_cards,03-Feb-2023,Total ASCHWB,AMZNMktplace,Total Adult Social Care,131.7,MISCELLANEOUS AND SPECIALTY RETAIL STORES,2022-23Q4_PC0703
Sandwell Metropolitan Borough Council,http://www.sandwell.gov.uk/info/200202/performance_and_spending/3233/government_procurement_cards,03-Feb-2023,Total Borough Economy,AMZNMktplace,Total Adult Social Care,57.98,MISCELLANEOUS AND SPECIALTY RETAIL STORES,2022-23Q4_PC0724
Sandwell Metropolitan Borough Council,http://www.sandwell.gov.uk/info/200202/performance_and_spending/3233/government_procurement_cards,03-Feb-2023,Total Borough Economy,AMZNMktplace,Total Adult Social Care,6.99,MISCELLANEOUS AND SPECIALTY RETAIL STORES,2022-23Q4_PC0727
Sandwell Metropolitan Borough Council,http://www.sandwell.gov.uk/info/200202/performance_and_spending/3233/government_procurement_cards,03-Feb-2023,Total Borough Economy,AMZNMktplace,Total Adult Social Care,6.99,MISCELLANEOUS AND SPECIALTY RETAIL STORES,2022-23Q4_PC0728
Sandwell Metropolitan Borough Council,http://www.sandwell.gov.uk/info/200202/performance_and_spending/3233/government_procurement_cards,03-Feb-2023,Total Borough Economy,AMZNMKTPLACE AMAZON.CO,Total Adult Social Care,106.18,MISCELLANEOUS AND SPECIALTY RETAIL STORES,2022-23Q4_PC0725
Sandwell Metropolitan Borough Council,http://www.sandwell.gov.uk/info/200202/performance_and_spending/3233/government_procurement_cards,03-Feb-2023,Total Borough Economy,MISS ANN FLORIST,Total Adult Social Care,51,FLORISTS,2022-23Q4_PC0713
Sandwell Metropolitan Borough Council,http://www.sandwell.gov.uk/info/200202/performance_and_spending/3233/government_procurement_cards,03-Feb-2023,Total ASCHWB,National Pen Promotion,Total Adult Social Care,434.37,BUSINESS SERVICES-NOT ELSEWHERE CLASSIFIED,2022-23Q4_PC0732
Sandwell Metropolitan Borough Council,http://www.sandwell.gov.uk/info/200202/performance_and_spending/3233/government_procurement_cards,03-Feb-2023,Total Borough Economy,NYA Vendaid Ltd,Total Adult Social Care,0.5,"MISC FOOD STORE-CONVENIENCE,MRKT,SPLTY,VENDNG MACS",2022-23Q4_PC0696
Sandwell Metropolitan Borough Council,http://www.sandwell.gov.uk/info/200202/performance_and_spending/3233/government_procurement_cards,03-Feb-2023,Total Borough Economy,ROBINSON BAKERY,Total Adult Social Care,6.95,BAKERIES,2022-23Q4_PC0697
Sandwell Metropolitan Borough Council,http://www.sandwell.gov.uk/info/200202/performance_and_spending/3233/government_procurement_cards,03-Feb-2023,Total Borough Economy,trainline,Total Adult Social Care,58.28,PASSENGER RAILWAYS,2022-23Q4_PC0723
Sandwell Metropolitan Borough Council,http://www.sandwell.gov.uk/info/200202/performance_and_spending/3233/government_procurement_cards,03-Feb-2023,Total Housing Revenue Account,AMZNMktplace,Total Housing Revenue Account,29.97,MISCELLANEOUS AND SPECIALTY RETAIL STORES,2022-23Q4_PC0734
